{"text_format":"1","workbook":"xlsx","n_sheets":5,"sheets":["Instructions","Index","Price List","Websites","Updates"],"not_rendered":{"charts":0,"images":1,"macros":1,"external_links":0,"defined_names":19,"comments":0,"pivot_tables":0},"unopened":[],"bounds":{"document_bytes":16777216,"sheet_cells":100000,"rows_first":2000,"rows_last":500,"rows_between":2000,"halvings":0,"cell_chars":16384,"cell_head_chars":4096},"cells_cut":0,"cells_raw":0,"read":"whole","date_system":"1900"}

{"sheet":"Instructions","index":0,"n_rows":72,"n_cols":7,"rows_kept":72,"cut":false,"hidden":false,"merged":[[7,2,7,6]]}
["Manufacturer","Tools"]
["File as","T"]
["Product Code","N"]
["CCTD Effective Date","11/1/23"]
[]
[]
[]
["Enter your Company Name"]
[]
[null,"Click on \"Index\" to set the print area for the price list index"]
[null,"Then you can send it to print"]
[]
[]
[null,"Click on \"Suggested Price List\" to set the print area for Conestoga Tile's suggested price list."]
[null,"Then you can send it to print"]
[]
[]
[null,"Enter your discount codes if you want a personal net cost sheet."]
[]
[null,null,"Product"]
[null,null,"Code","Disc. %"]
[null,null,{"$f":"+B3","v":"N"},0,"  This is a \"NET\" price list.  0% is the discount for this spreadsheet"]
[]
[null,"Click on \"Your Cost\" to set the print area for your personal cost report."]
[null,"Then you can send it to print"]
[]
[]
["Discount: ","To help establish your price list, enter the gross profit percent for each type of product."]
[null,"If you want to use Conestoga Tile's list price, leave them blank."]
[]
["Round Nickel: ","If you always want your price to round to the nearest nickel, enter \"YES\"."]
[null,"If you enter \"NO\", it will NOT round to the nearest nickel."]
[]
["Ending Cents: ","If you always want your price to end with a certain cents, enter that cent value."]
[null,"If you leave it \"blank\" will NOT round to this cent value."]
[]
[null,"GP Margin % for","Group","GP Margin","Round Nickel","add/subtract","Ending Cents"]
[null,"Barwalt - Saws/Cutters","PR1",null,"No",0]
[null,"Barwalt - All Other","PR",null,"No",0]
[null,"DeWalt - Saws/Cutters","DW1",null,"No",0]
[null,"DeWalt - All Other","DW",null,"No",0]
[null,"ETM - HP","ET1",null,"No",0]
[null,"ETM - All Other","ET",null,"No",0]
[null,"Gundlach - All","GU",null,"No",0]
[null,"Hydra - All","HY",null,"No",0]
[null,{"$error":"#N/A"},"IE1",null,"No",0]
[null,{"$error":"#N/A"},"IE",null,"No",0]
[null,"IQ Tools - Saws/Cutters","IQ1",null,"No",0]
[null,"IQ Tools - All Other","IQ",null,"No",0]
[null,{"$error":"#N/A"},"MK1",null,"No",0]
[null,{"$error":"#N/A"},"MK",null,"No",0]
[null,"Progress Profiles - All","PP",null,"No",0]
[null,"Rubi - Saws/Cutters","RU1",null,"No",0]
[null,"Rubi - All Other","RU",null,"No",0]
[null,"Schluter - Trowels","SH",null,"No",0]
[null,"Troxell - Saws/Cutters","TR1",null,"No",0]
[null,"Troxell - All Other","TR",null,"No",0]
[null,"Extend-O-Drains","XX",null,"No",0]
[]
["If you want to manually adjust your price list, hit \"F5\" and go to \"Customer_Cost\" to manually adjust pricing."]
["You can enter a value in the column labeled \"Adj.\" to change your price manually."]
[]
[null,"Click on \"Your Price Calculation\" to set the print area for your personal cost calculation report."]
[null,"Then you can send it to print"]
[]
[]
[null,"Click on \"Your Price List\" to set the print area for your personal price list."]
[null,"Then you can send it to print"]
[null,null,null,null,null,null,"Yes"]
[]
["If you have any questions on how to best use this spreadsheet, please feel free to contact"]
["Jim Vogel at (800) 422-6860, ext. 4201 or via e-mail at jimvogel@cctd.com"]

{"sheet":"Index","index":1,"n_rows":50,"n_cols":9,"rows_kept":50,"cut":false,"hidden":false,"merged":[[5,0,5,10],[47,0,47,10],[49,0,49,10],[2,5,2,10],[3,4,3,7],[10,2,10,4],[10,8,10,10]]}
[]
[]
[null,null,null,null,null,{"$f":"\"File '\"&Instructions!B2&\"' - \"&Instructions!B1","v":"File 'T' - Tools"}]
[]
[]
[{"$f":"\"Price List Index - \"&Instructions!B4","v":"Price List Index - 11/1/23"}]
[]
[]
[]
[]
["Page",null,"Product Type",null,null,null,"Page",null,"Product Type"]
[]
[]
[]
[]
[]
[]
[]
[]
[]
[]
[]
[]
[]
[]
[]
[]
[]
[]
[]
[]
[]
[]
[]
[]
[]
[]
[]
[]
[]
[]
[]
[]
[]
[]
[]
[]
["This price list is available electronically on an Excel spreadsheet at www.conestogatile.com/pricelists."]
[]
["The spreadsheet has many special features to assist you.  Apply your discount to generate your net costs for your purchasing department.  Apply your standard gross margin percentage or custom prices to generate your own custom price list for your showroom.  Print out individual price list for each series that can be attached to the back of your sample boards for easy reference."]

{"sheet":"Price List","index":2,"n_rows":531,"n_cols":41,"rows_kept":531,"cut":false,"hidden":false,"merged":[[3,22,3,23],[4,22,4,23],[3,14,3,19],[4,30,4,32],[520,3,520,4],[515,2,515,19],[8,2,8,4],[513,2,513,18],[9,2,9,18],[10,2,10,18],[8,14,8,15],[391,2,391,18],[229,18,230,18]]}
[null,{"$error":"#N/A"},null,"Our Part #",null,"Description",null,null,null,null,null,null,null,null,"Mfg.",null,null,null,{"$f":"IF(Suggested=\"Yes\",'Price List'!AA1,'Price List'!AG1)","v":{"$error":"#N/A"}},"EA",{"$f":"+Instructions!$B$3","v":"N"},null,{"$f":"+Instructions!$D$22","v":0},{"$f":"ROUND($AA1*(1-W1)+0.004999,2)","v":{"$error":"#N/A"}},null,"new",{"$error":"#N/A"},{"$f":"+W1","v":0},{"$f":"+X1","v":{"$error":"#N/A"}},{"$f":"(AG1-AC1)/AG1","v":{"$error":"#N/A"}},null,{"$f":"+A1","v":0},{"$f":"SUM(AJ1:AL1)+AE1","v":{"$error":"#N/A"}},null,null,{"$f":"ROUND(AC1/(1-VLOOKUP(AF1,Group,2,FALSE)),2)","v":{"$error":"#N/A"}},{"$f":"IF(VLOOKUP(AF1,Group,3,FALSE)=\"YES\",VLOOKUP(ROUND(ROUND(AJ1,1)-AJ1,2),Round,2,FALSE)+VLOOKUP(AF1,Group,4,FALSE),0)","v":{"$error":"#N/A"}},{"$f":"IF(VLOOKUP(AF1,Group,5,FALSE)=\"\",0,ROUND(AJ1-0.04999,1)-AJ1+AM1)","v":{"$error":"#N/A"}},{"$f":"IF(VLOOKUP(AF1,Group,5,FALSE)=\"\",\"\",VLOOKUP(AF1,Group,5,FALSE))","v":{"$error":"#N/A"}},null,"X"]
[null,"Format",null,null,null,null,null,null,null,null,null,null,null,null,null,null,"Stock","a",1000,"ABC",null,null,0.1,1000,null,"ABC",1000,0.1,1000,0.1,10,null,1000,null,null,null,null,null,null,null,"X"]
[null,null,null,null,null,null,null,null,null,null,null,null,null,null,null,null,null,null,null,null,null,null,null,null,null,null,null,null,null,null,null,null,null,null,null,null,null,null,null,null,"X"]
[null,null,null,null,null,null,null,null,null,null,null,null,null,null,{"$f":"\"File '\"&Instructions!B2&\"' - \"&Instructions!B1","v":"File 'T' - Tools"},null,null,null,null,null,null,null,null,null,null,null,null,null,null,null,null,null,"Retail Price Calculations",null,null,null,null,null,null,null,"X"]
[null,null,null,null,null,null,null,null,null,null,null,null,null,null,null,null,null,null,null,{"$f":"+Instructions!B4","v":"11/1/23"},null,null,"Cost",null,null,null,null,null,null,null,{"$f":"TODAY()","v":"2023-09-28"},null,null,null,null,null,null,null,null,null,"X"]
[null,null,{"$f":"\"Product Code '\"&Instructions!B3&\"'\"","v":"Product Code 'N'"},null,null,null,null,null,null,null,null,null,null,null,null,null,null,null,null,null,null,null,null,null,null,null,null,null,null,null,null,null,null,null,null,null,null,null,null,null,"X"]
[null,null,null,null,null,null,null,null,null,null,null,null,null,null,null,null,null,null,null,null,null,null,null,null,null,null,null,null,null,null,null,null,null,null,null,null,null,null,null,null,"X"]
[null,null,null,null,null,null,null,null,null,null,null,null,null,null,null,null,null,null,null,null,null,null,null,null,null,null,null,null,null,null,null,null,null,null,null,null,null,null,null,null,"X"]
[null,null,"Part Number",null,null,"Description",null,null,null,null,null,null,null,null,"Manufacturer",null,"Stock","Note","Net Price","U/M","Code",null,"Disc.","Net",null,"Chg","Net Price","Disc","Act. Cost","GP%","Adj.","Group","Price",null,null,"Calc Price",".05 Round","Cents","Round to",null,"X"]
[null,null,"Pricing is subject to change without notice.",null,null,null,null,null,null,null,null,null,null,null,null,null,null,null,null,null,null,null,null,null,null,null,null,null,null,null,null,null,null,null,null,null,null,null,null,null,"X"]
[null,null,"PRICING LISTED IS NET PRICING.  TRADE DISCOUNTS DO NOT APPLY.",null,null,null,null,null,null,null,null,null,null,null,null,null,null,null,null,null,null,null,null,null,null,null,null,null,null,null,null,null,null,null,null,null,null,null,null,null,"X"]
[null,null,null,null,null,null,null,null,null,null,null,null,null,null,null,null,null,null,null,null,null,null,null,null,null,null,null,null,null,null,null,null,null,null,null,null,null,null,null,null,"X"]
[null,null,"Trowels",null,null,null,null,null,null,null,null,null,null,null,null,null,null,null,null,null,null,null,null,null,null,null,null,null,null,null,null,null,null,null,null,null,null,null,null,null,"X"]
[null,null,null,null,null,null,null,null,null,null,null,null,null,null,null,null,null,null,null,null,null,null,null,null,null,null,null,null,null,null,null,null,null,null,null,null,null,null,null,null,"X"]
[null,null,null,"U-Notched - Trowels",null,null,null,null,null,null,null,null,null,null,null,null,null,null,null,null,null,null,null,null,null,null,null,null,null,null,null,null,null,null,null,null,null,null,null,null,"X"]
["PR","Barwalt - All Other",null,"PR71073",null,"1/4 x 1/4",null,"71073 #72",null,"- Soft Grip",null,null,null,null,"Barwalt",null,null,null,{"$f":"IF(Suggested=\"Yes\",'Price List'!AA16,'Price List'!AG16)","v":10.8},"EA",{"$f":"+Instructions!$B$3","v":"N"},null,{"$f":"+Instructions!$D$22","v":0},{"$f":"ROUND($AA16*(1-W16)+0.004999,2)","v":10.8},null,"YES",10.8,{"$f":"+W16","v":0},{"$f":"+X16","v":10.8},{"$f":"(AG16-AC16)/AG16","v":0},null,{"$f":"+A16","v":"PR"},{"$f":"SUM(AJ16:AL16)+AE16","v":10.8},null,null,{"$f":"ROUND(AC16/(1-VLOOKUP(AF16,Group,2,FALSE)),2)","v":10.8},{"$f":"IF(VLOOKUP(AF16,Group,3,FALSE)=\"YES\",VLOOKUP(ROUND(ROUND(AJ16,1)-AJ16,2),Round,2,FALSE)+VLOOKUP(AF16,Group,4,FALSE),0)","v":0},{"$f":"IF(VLOOKUP(AF16,Group,5,FALSE)=\"\",0,ROUND(AJ16-0.04999,1)-AJ16+AM16)","v":0},{"$f":"IF(VLOOKUP(AF16,Group,5,FALSE)=\"\",\"\",VLOOKUP(AF16,Group,5,FALSE))","v":""},null,"X"]
["PR","Barwalt - All Other",null,"PR70959",null,"1/4 x 1/4",null,"70959 #72",null,"- Soft Grip, Stainless Steel",null,null,null,null,"Barwalt",null,"Stock","new",{"$f":"IF(Suggested=\"Yes\",'Price List'!AA17,'Price List'!AG17)","v":12.3},"EA",{"$f":"+Instructions!$B$3","v":"N"},null,{"$f":"+Instructions!$D$22","v":0},{"$f":"ROUND($AA17*(1-W17)+0.004999,2)","v":12.3},null,"new",12.3,{"$f":"+W17","v":0},{"$f":"+X17","v":12.3},{"$f":"(AG17-AC17)/AG17","v":0},null,{"$f":"+A17","v":"PR"},{"$f":"SUM(AJ17:AL17)+AE17","v":12.3},null,null,{"$f":"ROUND(AC17/(1-VLOOKUP(AF17,Group,2,FALSE)),2)","v":12.3},{"$f":"IF(VLOOKUP(AF17,Group,3,FALSE)=\"YES\",VLOOKUP(ROUND(ROUND(AJ17,1)-AJ17,2),Round,2,FALSE)+VLOOKUP(AF17,Group,4,FALSE),0)","v":0},{"$f":"IF(VLOOKUP(AF17,Group,5,FALSE)=\"\",0,ROUND(AJ17-0.04999,1)-AJ17+AM17)","v":0},{"$f":"IF(VLOOKUP(AF17,Group,5,FALSE)=\"\",\"\",VLOOKUP(AF17,Group,5,FALSE))","v":""},null,"X"]
[null,null,null,null,null,null,null,null,null,null,null,null,null,null,null,null,null,null,null,null,null,null,null,null,null,null,null,null,null,null,null,null,null,null,null,null,null,null,null,null,"X"]
["PR","Barwalt - All Other",null,"PR71079",null,"3/8 x 1/4",null,"71079 #76",null,"- Soft Grip",null,null,null,null,"Barwalt",null,null,null,{"$f":"IF(Suggested=\"Yes\",'Price List'!AA19,'Price List'!AG19)","v":10.8},"EA",{"$f":"+Instructions!$B$3","v":"N"},null,{"$f":"+Instructions!$D$22","v":0},{"$f":"ROUND($AA19*(1-W19)+0.004999,2)","v":10.8},null,"YES",10.8,{"$f":"+W19","v":0},10.8,{"$f":"(AG19-AC19)/AG19","v":0},null,{"$f":"+A19","v":"PR"},{"$f":"SUM(AJ19:AL19)+AE19","v":10.8},null,null,{"$f":"ROUND(AC19/(1-VLOOKUP(AF19,Group,2,FALSE)),2)","v":10.8},{"$f":"IF(VLOOKUP(AF19,Group,3,FALSE)=\"YES\",VLOOKUP(ROUND(ROUND(AJ19,1)-AJ19,2),Round,2,FALSE)+VLOOKUP(AF19,Group,4,FALSE),0)","v":0},{"$f":"IF(VLOOKUP(AF19,Group,5,FALSE)=\"\",0,ROUND(AJ19-0.04999,1)-AJ19+AM19)","v":0},{"$f":"IF(VLOOKUP(AF19,Group,5,FALSE)=\"\",\"\",VLOOKUP(AF19,Group,5,FALSE))","v":""},null,"X"]
["PR","Barwalt - All Other",null,"PR70960",null,"3/8 x 1/4",null,"70960 #76",null,"- Soft Grip, Stainless Steel",null,null,null,null,"Barwalt",null,"Stock",null,{"$f":"IF(Suggested=\"Yes\",'Price List'!AA20,'Price List'!AG20)","v":12.3},"EA",{"$f":"+Instructions!$B$3","v":"N"},null,{"$f":"+Instructions!$D$22","v":0},{"$f":"ROUND($AA20*(1-W20)+0.004999,2)","v":12.3},null,"YES",12.3,0,12.3,{"$f":"(AG20-AC20)/AG20","v":0},null,{"$f":"+A20","v":"PR"},{"$f":"SUM(AJ20:AL20)+AE20","v":12.3},null,null,{"$f":"ROUND(AC20/(1-VLOOKUP(AF20,Group,2,FALSE)),2)","v":12.3},{"$f":"IF(VLOOKUP(AF20,Group,3,FALSE)=\"YES\",VLOOKUP(ROUND(ROUND(AJ20,1)-AJ20,2),Round,2,FALSE)+VLOOKUP(AF20,Group,4,FALSE),0)","v":0},{"$f":"IF(VLOOKUP(AF20,Group,5,FALSE)=\"\",0,ROUND(AJ20-0.04999,1)-AJ20+AM20)","v":0},{"$f":"IF(VLOOKUP(AF20,Group,5,FALSE)=\"\",\"\",VLOOKUP(AF20,Group,5,FALSE))","v":""},null,"X"]
[null,null,null,null,null,null,null,null,null,null,null,null,null,null,null,null,null,null,null,null,null,null,null,null,null,null,null,null,null,null,null,null,null,null,null,null,null,null,null,null,"X"]
["TR","Troxell - All Other",null,"TX14-66SS",null,"3/8 x 3/8",null,"14-66SS",null,"- Soft Grip, Stainless Steel",null,null,null,null,"Troxell",null,"Stock","new",{"$f":"IF(Suggested=\"Yes\",'Price List'!AA22,'Price List'!AG22)","v":13.2},"EA",{"$f":"+Instructions!$B$3","v":"N"},null,{"$f":"+Instructions!$D$22","v":0},{"$f":"ROUND($AA22*(1-W22)+0.004999,2)","v":13.2},null,"YES",13.2,0,13.2,{"$f":"(AG22-AC22)/AG22","v":0},null,{"$f":"+A22","v":"TR"},{"$f":"SUM(AJ22:AL22)+AE22","v":13.2},null,null,{"$f":"ROUND(AC22/(1-VLOOKUP(AF22,Group,2,FALSE)),2)","v":13.2},{"$f":"IF(VLOOKUP(AF22,Group,3,FALSE)=\"YES\",VLOOKUP(ROUND(ROUND(AJ22,1)-AJ22,2),Round,2,FALSE)+VLOOKUP(AF22,Group,4,FALSE),0)","v":0},{"$f":"IF(VLOOKUP(AF22,Group,5,FALSE)=\"\",0,ROUND(AJ22-0.04999,1)-AJ22+AM22)","v":0},{"$f":"IF(VLOOKUP(AF22,Group,5,FALSE)=\"\",\"\",VLOOKUP(AF22,Group,5,FALSE))","v":""},null,"X"]
[null,null,null,null,null,null,null,null,null,null,null,null,null,null,null,null,null,null,null,null,null,null,null,null,null,null,null,null,null,null,null,null,null,null,null,null,null,null,null,null,"X"]
["PR","Barwalt - All Other",null,"PR71080",null,"1/2 x 1/4",null,"71080 #78",null,"- Soft Grip",null,null,null,null,"Barwalt",null,null,null,{"$f":"IF(Suggested=\"Yes\",'Price List'!AA24,'Price List'!AG24)","v":10.8},"EA",{"$f":"+Instructions!$B$3","v":"N"},null,{"$f":"+Instructions!$D$22","v":0},{"$f":"ROUND($AA24*(1-W24)+0.004999,2)","v":10.8},null,"YES",10.8,{"$f":"+W24","v":0},{"$f":"+X24","v":10.8},{"$f":"(AG24-AC24)/AG24","v":0},null,{"$f":"+A24","v":"PR"},{"$f":"SUM(AJ24:AL24)+AE24","v":10.8},null,null,{"$f":"ROUND(AC24/(1-VLOOKUP(AF24,Group,2,FALSE)),2)","v":10.8},{"$f":"IF(VLOOKUP(AF24,Group,3,FALSE)=\"YES\",VLOOKUP(ROUND(ROUND(AJ24,1)-AJ24,2),Round,2,FALSE)+VLOOKUP(AF24,Group,4,FALSE),0)","v":0},{"$f":"IF(VLOOKUP(AF24,Group,5,FALSE)=\"\",0,ROUND(AJ24-0.04999,1)-AJ24+AM24)","v":0},{"$f":"IF(VLOOKUP(AF24,Group,5,FALSE)=\"\",\"\",VLOOKUP(AF24,Group,5,FALSE))","v":""},null,"X"]
["PR","Barwalt - All Other",null,"PR70962",null,"1/2 x 1/4",null,"70962 #78",null,"- Soft Grip, Stainless Steel",null,null,null,null,"Barwalt",null,"Stock",null,{"$f":"IF(Suggested=\"Yes\",'Price List'!AA25,'Price List'!AG25)","v":12.3},"EA",{"$f":"+Instructions!$B$3","v":"N"},null,{"$f":"+Instructions!$D$22","v":0},{"$f":"ROUND($AA25*(1-W25)+0.004999,2)","v":12.3},null,"YES",12.3,{"$f":"+W25","v":0},{"$f":"+X25","v":12.3},{"$f":"(AG25-AC25)/AG25","v":0},null,{"$f":"+A25","v":"PR"},{"$f":"SUM(AJ25:AL25)+AE25","v":12.3},null,null,{"$f":"ROUND(AC25/(1-VLOOKUP(AF25,Group,2,FALSE)),2)","v":12.3},{"$f":"IF(VLOOKUP(AF25,Group,3,FALSE)=\"YES\",VLOOKUP(ROUND(ROUND(AJ25,1)-AJ25,2),Round,2,FALSE)+VLOOKUP(AF25,Group,4,FALSE),0)","v":0},{"$f":"IF(VLOOKUP(AF25,Group,5,FALSE)=\"\",0,ROUND(AJ25-0.04999,1)-AJ25+AM25)","v":0},{"$f":"IF(VLOOKUP(AF25,Group,5,FALSE)=\"\",\"\",VLOOKUP(AF25,Group,5,FALSE))","v":""},null,"X"]
[null,null,null,null,null,null,null,null,null,null,null,null,null,null,null,null,null,null,null,null,null,null,null,null,null,null,null,null,null,null,null,null,null,null,null,null,null,null,null,null,"X"]
["PR","Barwalt - All Other",null,"PR70956",null,"1/2 x 1/2",null,"70956 #58",null,"- Soft Grip, Stainless Steel",null,null,null,null,"Barwalt",null,"Stock","new",{"$f":"IF(Suggested=\"Yes\",'Price List'!AA27,'Price List'!AG27)","v":12.3},"EA",{"$f":"+Instructions!$B$3","v":"N"},null,{"$f":"+Instructions!$D$22","v":0},{"$f":"ROUND($AA27*(1-W27)+0.004999,2)","v":12.3},null,"new",12.3,{"$f":"+W27","v":0},{"$f":"+X27","v":12.3},{"$f":"(AG27-AC27)/AG27","v":0},null,{"$f":"+A27","v":"PR"},{"$f":"SUM(AJ27:AL27)+AE27","v":12.3},null,null,{"$f":"ROUND(AC27/(1-VLOOKUP(AF27,Group,2,FALSE)),2)","v":12.3},{"$f":"IF(VLOOKUP(AF27,Group,3,FALSE)=\"YES\",VLOOKUP(ROUND(ROUND(AJ27,1)-AJ27,2),Round,2,FALSE)+VLOOKUP(AF27,Group,4,FALSE),0)","v":0},{"$f":"IF(VLOOKUP(AF27,Group,5,FALSE)=\"\",0,ROUND(AJ27-0.04999,1)-AJ27+AM27)","v":0},{"$f":"IF(VLOOKUP(AF27,Group,5,FALSE)=\"\",\"\",VLOOKUP(AF27,Group,5,FALSE))","v":""},null,"X"]
[]
[null,null,null,"Square Notched - Trowels",null,null,null,null,null,null,null,null,null,null,null,null,null,null,null,null,null,null,null,null,null,null,null,null,null,null,null,null,null,null,null,null,null,null,null,null,"X"]
[null,null,null,null,null,null,null,null,null,null,null,null,null,null,null,null,null,null,null,null,null,null,null,null,null,null,null,null,null,null,null,null,null,null,null,null,null,null,null,null,"X"]
["PR","Barwalt - All Other",null,"PR71138",null,"1/2 x 1/2",null,"71138 #58",null,"- Soft Grip, Extra Long 16\"",null,null,null,null,"Barwalt",null,"Stock",null,{"$f":"IF(Suggested=\"Yes\",'Price List'!AA31,'Price List'!AG31)","v":12.3},"EA",{"$f":"+Instructions!$B$3","v":"N"},null,{"$f":"+Instructions!$D$22","v":0},{"$f":"ROUND($AA31*(1-W31)+0.004999,2)","v":12.3},null,"YES",12.3,{"$f":"+W31","v":0},{"$f":"+X31","v":12.3},{"$f":"(AG31-AC31)/AG31","v":0},null,{"$f":"+A31","v":"PR"},{"$f":"SUM(AJ31:AL31)+AE31","v":12.3},null,null,{"$f":"ROUND(AC31/(1-VLOOKUP(AF31,Group,2,FALSE)),2)","v":12.3},{"$f":"IF(VLOOKUP(AF31,Group,3,FALSE)=\"YES\",VLOOKUP(ROUND(ROUND(AJ31,1)-AJ31,2),Round,2,FALSE)+VLOOKUP(AF31,Group,4,FALSE),0)","v":0},{"$f":"IF(VLOOKUP(AF31,Group,5,FALSE)=\"\",0,ROUND(AJ31-0.04999,1)-AJ31+AM31)","v":0},{"$f":"IF(VLOOKUP(AF31,Group,5,FALSE)=\"\",\"\",VLOOKUP(AF31,Group,5,FALSE))","v":""},null,"X"]
[]
[null,null,null,"Euro-Notched - Trowels",null,null,null,null,null,null,null,null,null,null,null,null,null,null,null,null,null,null,null,null,null,null,null,null,null,null,null,null,null,null,null,null,null,null,null,null,"X"]
["PR","Barwalt - All Other",null,"PR71145",null,"Euro-Notch",null,"71145 #100",null,"- Soft Grip",null,null,null,null,"Barwalt",null,null,null,{"$f":"IF(Suggested=\"Yes\",'Price List'!AA34,'Price List'!AG34)","v":10.8},"EA",{"$f":"+Instructions!$B$3","v":"N"},null,{"$f":"+Instructions!$D$22","v":0},{"$f":"ROUND($AA34*(1-W34)+0.004999,2)","v":10.8},null,"YES",10.8,{"$f":"+W34","v":0},{"$f":"+X34","v":10.8},{"$f":"(AG34-AC34)/AG34","v":0},null,{"$f":"+A34","v":"PR"},{"$f":"SUM(AJ34:AL34)+AE34","v":10.8},null,null,{"$f":"ROUND(AC34/(1-VLOOKUP(AF34,Group,2,FALSE)),2)","v":10.8},{"$f":"IF(VLOOKUP(AF34,Group,3,FALSE)=\"YES\",VLOOKUP(ROUND(ROUND(AJ34,1)-AJ34,2),Round,2,FALSE)+VLOOKUP(AF34,Group,4,FALSE),0)","v":0},{"$f":"IF(VLOOKUP(AF34,Group,5,FALSE)=\"\",0,ROUND(AJ34-0.04999,1)-AJ34+AM34)","v":0},{"$f":"IF(VLOOKUP(AF34,Group,5,FALSE)=\"\",\"\",VLOOKUP(AF34,Group,5,FALSE))","v":""},null,"X"]
["PR","Barwalt - All Other",null,"PR70966",null,"Euro-Notch",null,"70966 #100",null,"- Soft Grip, Stainless Steel",null,null,null,null,"Barwalt",null,"Stock",null,{"$f":"IF(Suggested=\"Yes\",'Price List'!AA35,'Price List'!AG35)","v":12.3},"EA",{"$f":"+Instructions!$B$3","v":"N"},null,{"$f":"+Instructions!$D$22","v":0},{"$f":"ROUND($AA35*(1-W35)+0.004999,2)","v":12.3},null,"YES",12.3,{"$f":"+W35","v":0},{"$f":"+X35","v":12.3},{"$f":"(AG35-AC35)/AG35","v":0},null,{"$f":"+A35","v":"PR"},{"$f":"SUM(AJ35:AL35)+AE35","v":12.3},null,null,{"$f":"ROUND(AC35/(1-VLOOKUP(AF35,Group,2,FALSE)),2)","v":12.3},{"$f":"IF(VLOOKUP(AF35,Group,3,FALSE)=\"YES\",VLOOKUP(ROUND(ROUND(AJ35,1)-AJ35,2),Round,2,FALSE)+VLOOKUP(AF35,Group,4,FALSE),0)","v":0},{"$f":"IF(VLOOKUP(AF35,Group,5,FALSE)=\"\",0,ROUND(AJ35-0.04999,1)-AJ35+AM35)","v":0},{"$f":"IF(VLOOKUP(AF35,Group,5,FALSE)=\"\",\"\",VLOOKUP(AF35,Group,5,FALSE))","v":""},null,"X"]
["TR","Troxell - All Other",null,"TX14-EUSS",null,"Euro-Notch",null,"14-EUSS",null,"- Soft Grip, Stainless Steel",null,null,null,null,"Troxell",null,null,null,{"$f":"IF(Suggested=\"Yes\",'Price List'!AA36,'Price List'!AG36)","v":13.2},"EA",{"$f":"+Instructions!$B$3","v":"N"},null,{"$f":"+Instructions!$D$22","v":0},{"$f":"ROUND($AA36*(1-W36)+0.004999,2)","v":13.2},null,"YES",13.2,{"$f":"+W36","v":0},{"$f":"+X36","v":13.2},{"$f":"(AG36-AC36)/AG36","v":0},null,{"$f":"+A36","v":"TR"},{"$f":"SUM(AJ36:AL36)+AE36","v":13.2},null,null,{"$f":"ROUND(AC36/(1-VLOOKUP(AF36,Group,2,FALSE)),2)","v":13.2},{"$f":"IF(VLOOKUP(AF36,Group,3,FALSE)=\"YES\",VLOOKUP(ROUND(ROUND(AJ36,1)-AJ36,2),Round,2,FALSE)+VLOOKUP(AF36,Group,4,FALSE),0)","v":0},{"$f":"IF(VLOOKUP(AF36,Group,5,FALSE)=\"\",0,ROUND(AJ36-0.04999,1)-AJ36+AM36)","v":0},{"$f":"IF(VLOOKUP(AF36,Group,5,FALSE)=\"\",\"\",VLOOKUP(AF36,Group,5,FALSE))","v":""},null,"X"]
[null,null,null,null,null,null,null,null,null,null,null,null,null,null,null,null,null,null,null,null,null,null,null,null,null,null,null,null,null,null,null,null,null,null,null,null,null,null,null,null,"X"]
[null,null,null,"Schluter Sized - Trowels",null,null,null,null,null,null,null,null,null,null,null,null,null,null,null,null,null,null,null,null,null,null,null,null,null,null,null,null,null,null,null,null,null,null,null,null,"X"]
["SH","Schluter - Trowels",null,"SHTRLKER6",null,"1/8 x 1/8",null,"TRL-KER",null,"Schluter Kerdi trowel",null,null,null,null,"Schluter",null,null,null,{"$f":"IF(Suggested=\"Yes\",'Price List'!AA39,'Price List'!AG39)","v":23.15},"EA",{"$f":"+Instructions!$B$3","v":"N"},null,{"$f":"+Instructions!$D$22","v":0},{"$f":"ROUND($AA39*(1-W39)+0.004999,2)","v":23.15},null,"YES",23.15,{"$f":"+W39","v":0},{"$f":"+X39","v":23.15},{"$f":"(AG39-AC39)/AG39","v":0},null,{"$f":"+A39","v":"SH"},{"$f":"SUM(AJ39:AL39)+AE39","v":23.15},null,null,{"$f":"ROUND(AC39/(1-VLOOKUP(AF39,Group,2,FALSE)),2)","v":23.15},{"$f":"IF(VLOOKUP(AF39,Group,3,FALSE)=\"YES\",VLOOKUP(ROUND(ROUND(AJ39,1)-AJ39,2),Round,2,FALSE)+VLOOKUP(AF39,Group,4,FALSE),0)","v":0},{"$f":"IF(VLOOKUP(AF39,Group,5,FALSE)=\"\",0,ROUND(AJ39-0.04999,1)-AJ39+AM39)","v":0},{"$f":"IF(VLOOKUP(AF39,Group,5,FALSE)=\"\",\"\",VLOOKUP(AF39,Group,5,FALSE))","v":""},null,"X"]
["TR","Troxell - All Other",null,"TX1410SS",null,"1/8 x 1/8",null,"14-10SS",null,"Kerdi-Size Trowel, Soft Grip, Stainless",null,null,null,null,"Troxell",null,"Stock",null,{"$f":"IF(Suggested=\"Yes\",'Price List'!AA40,'Price List'!AG40)","v":13.2},"EA",{"$f":"+Instructions!$B$3","v":"N"},null,{"$f":"+Instructions!$D$22","v":0},{"$f":"ROUND($AA40*(1-W40)+0.004999,2)","v":13.2},null,"YES",13.2,{"$f":"+W40","v":0},{"$f":"+X40","v":13.2},{"$f":"(AG40-AC40)/AG40","v":0},null,{"$f":"+A40","v":"TR"},{"$f":"SUM(AJ40:AL40)+AE40","v":13.2},null,null,{"$f":"ROUND(AC40/(1-VLOOKUP(AF40,Group,2,FALSE)),2)","v":13.2},{"$f":"IF(VLOOKUP(AF40,Group,3,FALSE)=\"YES\",VLOOKUP(ROUND(ROUND(AJ40,1)-AJ40,2),Round,2,FALSE)+VLOOKUP(AF40,Group,4,FALSE),0)","v":0},{"$f":"IF(VLOOKUP(AF40,Group,5,FALSE)=\"\",0,ROUND(AJ40-0.04999,1)-AJ40+AM40)","v":0},{"$f":"IF(VLOOKUP(AF40,Group,5,FALSE)=\"\",\"\",VLOOKUP(AF40,Group,5,FALSE))","v":""},null,"X"]
[]
["SH","Schluter - Trowels",null,"SHTRLDIT6",null,"11/64 x 11/64",null,"TRL-DIT",null,"Schluter Ditra trowel",null,null,null,null,"Schluter",null,null,null,{"$f":"IF(Suggested=\"Yes\",'Price List'!AA42,'Price List'!AG42)","v":23.15},"EA",{"$f":"+Instructions!$B$3","v":"N"},null,{"$f":"+Instructions!$D$22","v":0},{"$f":"ROUND($AA42*(1-W42)+0.004999,2)","v":23.15},null,"YES",23.15,{"$f":"+W42","v":0},{"$f":"+X42","v":23.15},{"$f":"(AG42-AC42)/AG42","v":0},null,{"$f":"+A42","v":"SH"},{"$f":"SUM(AJ42:AL42)+AE42","v":23.15},null,null,{"$f":"ROUND(AC42/(1-VLOOKUP(AF42,Group,2,FALSE)),2)","v":23.15},{"$f":"IF(VLOOKUP(AF42,Group,3,FALSE)=\"YES\",VLOOKUP(ROUND(ROUND(AJ42,1)-AJ42,2),Round,2,FALSE)+VLOOKUP(AF42,Group,4,FALSE),0)","v":0},{"$f":"IF(VLOOKUP(AF42,Group,5,FALSE)=\"\",0,ROUND(AJ42-0.04999,1)-AJ42+AM42)","v":0},{"$f":"IF(VLOOKUP(AF42,Group,5,FALSE)=\"\",\"\",VLOOKUP(AF42,Group,5,FALSE))","v":""},null,"X"]
["TR","Troxell - All Other",null,"TX1420SS",null,"11/64 x 11/64",null,"14-20SS",null,"Ditra-Size Trowel, Soft Grip, Stainless",null,null,null,null,"Troxell",null,"Stock",null,{"$f":"IF(Suggested=\"Yes\",'Price List'!AA43,'Price List'!AG43)","v":13.2},"EA",{"$f":"+Instructions!$B$3","v":"N"},null,{"$f":"+Instructions!$D$22","v":0},{"$f":"ROUND($AA43*(1-W43)+0.004999,2)","v":13.2},null,"YES",13.2,{"$f":"+W43","v":0},{"$f":"+X43","v":13.2},{"$f":"(AG43-AC43)/AG43","v":0},null,{"$f":"+A43","v":"TR"},{"$f":"SUM(AJ43:AL43)+AE43","v":13.2},null,null,{"$f":"ROUND(AC43/(1-VLOOKUP(AF43,Group,2,FALSE)),2)","v":13.2},{"$f":"IF(VLOOKUP(AF43,Group,3,FALSE)=\"YES\",VLOOKUP(ROUND(ROUND(AJ43,1)-AJ43,2),Round,2,FALSE)+VLOOKUP(AF43,Group,4,FALSE),0)","v":0},{"$f":"IF(VLOOKUP(AF43,Group,5,FALSE)=\"\",0,ROUND(AJ43-0.04999,1)-AJ43+AM43)","v":0},{"$f":"IF(VLOOKUP(AF43,Group,5,FALSE)=\"\",\"\",VLOOKUP(AF43,Group,5,FALSE))","v":""},null,"X"]
[]
["SH","Schluter - Trowels",null,"SHTRLDHXL",null,"1/4 x 1/4",null,"TRL-DHXL",null,"Schluter DitraXL trowel",null,null,null,null,"Schluter",null,null,null,{"$f":"IF(Suggested=\"Yes\",'Price List'!AA45,'Price List'!AG45)","v":23.15},"EA",{"$f":"+Instructions!$B$3","v":"N"},null,{"$f":"+Instructions!$D$22","v":0},{"$f":"ROUND($AA45*(1-W45)+0.004999,2)","v":23.15},null,"new",23.15,{"$f":"+W45","v":0},{"$f":"+X45","v":23.15},{"$f":"(AG45-AC45)/AG45","v":0},null,{"$f":"+A45","v":"SH"},{"$f":"SUM(AJ45:AL45)+AE45","v":23.15},null,null,{"$f":"ROUND(AC45/(1-VLOOKUP(AF45,Group,2,FALSE)),2)","v":23.15},{"$f":"IF(VLOOKUP(AF45,Group,3,FALSE)=\"YES\",VLOOKUP(ROUND(ROUND(AJ45,1)-AJ45,2),Round,2,FALSE)+VLOOKUP(AF45,Group,4,FALSE),0)","v":0},{"$f":"IF(VLOOKUP(AF45,Group,5,FALSE)=\"\",0,ROUND(AJ45-0.04999,1)-AJ45+AM45)","v":0},{"$f":"IF(VLOOKUP(AF45,Group,5,FALSE)=\"\",\"\",VLOOKUP(AF45,Group,5,FALSE))","v":""},null,"X"]
["PR","Barwalt - All Other",null,"PR71073",null,"1/4 x 1/4",null,"71073 #72",null,"U-Notched - Soft Grip",null,null,null,null,"Barwalt",null,"Stock",null,{"$f":"IF(Suggested=\"Yes\",'Price List'!AA46,'Price List'!AG46)","v":10.8},"EA",{"$f":"+Instructions!$B$3","v":"N"},null,{"$f":"+Instructions!$D$22","v":0},{"$f":"ROUND($AA46*(1-W46)+0.004999,2)","v":10.8},null,"YES",10.8,{"$f":"+W46","v":0},{"$f":"+X46","v":10.8},{"$f":"(AG46-AC46)/AG46","v":0},null,{"$f":"+A46","v":"PR"},{"$f":"SUM(AJ46:AL46)+AE46","v":10.8},null,null,{"$f":"ROUND(AC46/(1-VLOOKUP(AF46,Group,2,FALSE)),2)","v":10.8},{"$f":"IF(VLOOKUP(AF46,Group,3,FALSE)=\"YES\",VLOOKUP(ROUND(ROUND(AJ46,1)-AJ46,2),Round,2,FALSE)+VLOOKUP(AF46,Group,4,FALSE),0)","v":0},{"$f":"IF(VLOOKUP(AF46,Group,5,FALSE)=\"\",0,ROUND(AJ46-0.04999,1)-AJ46+AM46)","v":0},{"$f":"IF(VLOOKUP(AF46,Group,5,FALSE)=\"\",\"\",VLOOKUP(AF46,Group,5,FALSE))","v":""},null,"X"]
[]
[null,null,null,"V-Notched - Trowels",null,null,null,null,null,null,null,null,null,null,null,null,null,null,null,null,null,null,null,null,null,null,null,null,null,null,null,null,null,null,null,null,null,null,null,null,"X"]
["PR","Barwalt - All Other",null,"PR71011",null,"3/16 x 1/4",null,"71011 #09",null,"- Soft Grip",null,null,null,null,"Barwalt",null,null,null,{"$f":"IF(Suggested=\"Yes\",'Price List'!AA49,'Price List'!AG49)","v":10.75},"EA",{"$f":"+Instructions!$B$3","v":"N"},null,{"$f":"+Instructions!$D$22","v":0},{"$f":"ROUND($AA49*(1-W49)+0.004999,2)","v":10.75},null,"YES",10.75,{"$f":"+W49","v":0},10.75,{"$f":"(AG49-AC49)/AG49","v":0},null,{"$f":"+A49","v":"PR"},{"$f":"SUM(AJ49:AL49)+AE49","v":10.75},null,null,{"$f":"ROUND(AC49/(1-VLOOKUP(AF49,Group,2,FALSE)),2)","v":10.75},{"$f":"IF(VLOOKUP(AF49,Group,3,FALSE)=\"YES\",VLOOKUP(ROUND(ROUND(AJ49,1)-AJ49,2),Round,2,FALSE)+VLOOKUP(AF49,Group,4,FALSE),0)","v":0},{"$f":"IF(VLOOKUP(AF49,Group,5,FALSE)=\"\",0,ROUND(AJ49-0.04999,1)-AJ49+AM49)","v":0},{"$f":"IF(VLOOKUP(AF49,Group,5,FALSE)=\"\",\"\",VLOOKUP(AF49,Group,5,FALSE))","v":""},null,"X"]
["PR","Barwalt - All Other",null,"PR70950",null,"3/16 x 1/4",null,"70950 #09",null,"- Soft Grip, Stainless Steel",null,null,null,null,"Barwalt",null,"Stock","new",{"$f":"IF(Suggested=\"Yes\",'Price List'!AA50,'Price List'!AG50)","v":12.3},"EA",{"$f":"+Instructions!$B$3","v":"N"},null,{"$f":"+Instructions!$D$22","v":0},{"$f":"ROUND($AA50*(1-W50)+0.004999,2)","v":12.3},null,"new",12.3,0,12.3,{"$f":"(AG50-AC50)/AG50","v":0},null,{"$f":"+A50","v":"PR"},{"$f":"SUM(AJ50:AL50)+AE50","v":12.3},null,null,{"$f":"ROUND(AC50/(1-VLOOKUP(AF50,Group,2,FALSE)),2)","v":12.3},{"$f":"IF(VLOOKUP(AF50,Group,3,FALSE)=\"YES\",VLOOKUP(ROUND(ROUND(AJ50,1)-AJ50,2),Round,2,FALSE)+VLOOKUP(AF50,Group,4,FALSE),0)","v":0},{"$f":"IF(VLOOKUP(AF50,Group,5,FALSE)=\"\",0,ROUND(AJ50-0.04999,1)-AJ50+AM50)","v":0},{"$f":"IF(VLOOKUP(AF50,Group,5,FALSE)=\"\",\"\",VLOOKUP(AF50,Group,5,FALSE))","v":""},null,"X"]
["TR","Troxell - All Other",null,"TX1444SS",null,"3/16 x 1/4",null,"14-44SS",null,"- Soft Grip, Stainless Steel",null,null,null,null,"Troxell",null,null,null,{"$f":"IF(Suggested=\"Yes\",'Price List'!AA51,'Price List'!AG51)","v":13.2},"EA",{"$f":"+Instructions!$B$3","v":"N"},null,{"$f":"+Instructions!$D$22","v":0},{"$f":"ROUND($AA51*(1-W51)+0.004999,2)","v":13.2},null,"YES",13.2,0,13.2,{"$f":"(AG51-AC51)/AG51","v":0},null,{"$f":"+A51","v":"TR"},{"$f":"SUM(AJ51:AL51)+AE51","v":13.2},null,null,{"$f":"ROUND(AC51/(1-VLOOKUP(AF51,Group,2,FALSE)),2)","v":13.2},{"$f":"IF(VLOOKUP(AF51,Group,3,FALSE)=\"YES\",VLOOKUP(ROUND(ROUND(AJ51,1)-AJ51,2),Round,2,FALSE)+VLOOKUP(AF51,Group,4,FALSE),0)","v":0},{"$f":"IF(VLOOKUP(AF51,Group,5,FALSE)=\"\",0,ROUND(AJ51-0.04999,1)-AJ51+AM51)","v":0},{"$f":"IF(VLOOKUP(AF51,Group,5,FALSE)=\"\",\"\",VLOOKUP(AF51,Group,5,FALSE))","v":""},null,"X"]
[null,null,null,null,null,null,null,null,null,null,null,null,null,null,null,null,null,null,null,null,null,null,null,null,null,null,null,null,null,null,null,null,null,null,null,null,null,null,null,null,"X"]
["PR","Barwalt - All Other",null,"PR71034",null,"1/4 x 5/16",null,"71034 #33",null,"- Soft Grip",null,null,null,null,"Barwalt",null,null,null,{"$f":"IF(Suggested=\"Yes\",'Price List'!AA53,'Price List'!AG53)","v":10.75},"EA",{"$f":"+Instructions!$B$3","v":"N"},null,{"$f":"+Instructions!$D$22","v":0},{"$f":"ROUND($AA53*(1-W53)+0.004999,2)","v":10.75},null,"YES",10.75,{"$f":"+W53","v":0},10.75,{"$f":"(AG53-AC53)/AG53","v":0},null,{"$f":"+A53","v":"PR"},{"$f":"SUM(AJ53:AL53)+AE53","v":10.75},null,null,{"$f":"ROUND(AC53/(1-VLOOKUP(AF53,Group,2,FALSE)),2)","v":10.75},{"$f":"IF(VLOOKUP(AF53,Group,3,FALSE)=\"YES\",VLOOKUP(ROUND(ROUND(AJ53,1)-AJ53,2),Round,2,FALSE)+VLOOKUP(AF53,Group,4,FALSE),0)","v":0},{"$f":"IF(VLOOKUP(AF53,Group,5,FALSE)=\"\",0,ROUND(AJ53-0.04999,1)-AJ53+AM53)","v":0},{"$f":"IF(VLOOKUP(AF53,Group,5,FALSE)=\"\",\"\",VLOOKUP(AF53,Group,5,FALSE))","v":""},null,"X"]
["PR","Barwalt - All Other",null,"PR70953",null,"1/4 x 5/16",null,"70953 #33",null,"- Soft Grip, Stainless Steel",null,null,null,null,"Barwalt",null,"Stock","new",{"$f":"IF(Suggested=\"Yes\",'Price List'!AA54,'Price List'!AG54)","v":12.3},"EA",{"$f":"+Instructions!$B$3","v":"N"},null,{"$f":"+Instructions!$D$22","v":0},{"$f":"ROUND($AA54*(1-W54)+0.004999,2)","v":12.3},null,"new",12.3,0,12.3,{"$f":"(AG54-AC54)/AG54","v":0},null,{"$f":"+A54","v":"PR"},{"$f":"SUM(AJ54:AL54)+AE54","v":12.3},null,null,{"$f":"ROUND(AC54/(1-VLOOKUP(AF54,Group,2,FALSE)),2)","v":12.3},{"$f":"IF(VLOOKUP(AF54,Group,3,FALSE)=\"YES\",VLOOKUP(ROUND(ROUND(AJ54,1)-AJ54,2),Round,2,FALSE)+VLOOKUP(AF54,Group,4,FALSE),0)","v":0},{"$f":"IF(VLOOKUP(AF54,Group,5,FALSE)=\"\",0,ROUND(AJ54-0.04999,1)-AJ54+AM54)","v":0},{"$f":"IF(VLOOKUP(AF54,Group,5,FALSE)=\"\",\"\",VLOOKUP(AF54,Group,5,FALSE))","v":""},null,"X"]
["TR","Troxell - All Other",null,"TX1433SS",null,"1/4 x 5/16",null,"14-33SS",null,"- Soft Grip, Stainless Steel",null,null,null,null,"Troxell",null,null,null,{"$f":"IF(Suggested=\"Yes\",'Price List'!AA55,'Price List'!AG55)","v":13.2},"EA",{"$f":"+Instructions!$B$3","v":"N"},null,{"$f":"+Instructions!$D$22","v":0},{"$f":"ROUND($AA55*(1-W55)+0.004999,2)","v":13.2},null,"YES",13.2,0,13.2,{"$f":"(AG55-AC55)/AG55","v":0},null,{"$f":"+A55","v":"TR"},{"$f":"SUM(AJ55:AL55)+AE55","v":13.2},null,null,{"$f":"ROUND(AC55/(1-VLOOKUP(AF55,Group,2,FALSE)),2)","v":13.2},{"$f":"IF(VLOOKUP(AF55,Group,3,FALSE)=\"YES\",VLOOKUP(ROUND(ROUND(AJ55,1)-AJ55,2),Round,2,FALSE)+VLOOKUP(AF55,Group,4,FALSE),0)","v":0},{"$f":"IF(VLOOKUP(AF55,Group,5,FALSE)=\"\",0,ROUND(AJ55-0.04999,1)-AJ55+AM55)","v":0},{"$f":"IF(VLOOKUP(AF55,Group,5,FALSE)=\"\",\"\",VLOOKUP(AF55,Group,5,FALSE))","v":""},null,"X"]
[null,null,null,null,null,null,null,null,null,null,null,null,null,null,null,null,null,null,null,null,null,null,null,null,null,null,null,null,null,null,null,null,null,null,null,null,null,null,null,null,"X"]
[null,null,null,null,"Note:","3/16\" x 1/4\" is recommended for installation of Schluter Kerdi Matting.",null,null,null,null,null,null,null,null,null,null,null,null,null,null,null,null,null,null,null,null,null,null,null,null,null,null,null,null,null,null,null,null,null,null,"X"]
[null,null,null,null,null,"1/4\"\" x 5/16\" is recommended for installation of Schluter Ditra Matting.",null,null,null,null,null,null,null,null,null,null,null,null,null,null,null,null,null,null,null,null,null,null,null,null,null,null,null,null,null,null,null,null,null,null,"X"]
[null,null,null,null,null,null,null,null,null,null,null,null,null,null,null,null,null,null,null,null,null,null,null,null,null,null,null,null,null,null,null,null,null,null,null,null,null,null,null,null,"X"]
[null,null,null,"Margin Trowels - Notched",null,null,null,null,null,null,null,null,null,null,null,null,null,null,null,null,null,null,null,null,null,null,null,null,null,null,null,null,null,null,null,null,null,null,null,null,"X"]
["PR","Barwalt - All Other",null,"PR70921",null,"5\" x 2\"",null,"70921",null,"1/4\" Square Notched",null,null,null,null,"Barwalt",null,"Stock",null,{"$f":"IF(Suggested=\"Yes\",'Price List'!AA61,'Price List'!AG61)","v":2.2999999999999998},"EA",{"$f":"+Instructions!$B$3","v":"N"},null,{"$f":"+Instructions!$D$22","v":0},{"$f":"ROUND($AA61*(1-W61)+0.004999,2)","v":2.2999999999999998},null,"",2.2999999999999998,{"$f":"+W61","v":0},{"$f":"+X61","v":2.2999999999999998},{"$f":"(AG61-AC61)/AG61","v":0},null,{"$f":"+A61","v":"PR"},{"$f":"SUM(AJ61:AL61)+AE61","v":2.2999999999999998},null,null,{"$f":"ROUND(AC61/(1-VLOOKUP(AF61,Group,2,FALSE)),2)","v":2.2999999999999998},{"$f":"IF(VLOOKUP(AF61,Group,3,FALSE)=\"YES\",VLOOKUP(ROUND(ROUND(AJ61,1)-AJ61,2),Round,2,FALSE)+VLOOKUP(AF61,Group,4,FALSE),0)","v":0},{"$f":"IF(VLOOKUP(AF61,Group,5,FALSE)=\"\",0,ROUND(AJ61-0.04999,1)-AJ61+AM61)","v":0},{"$f":"IF(VLOOKUP(AF61,Group,5,FALSE)=\"\",\"\",VLOOKUP(AF61,Group,5,FALSE))","v":""},null,"X"]
[null,null,null,null,null,null,null,null,null,null,null,null,null,null,null,null,null,null,null,null,null,null,null,null,null,null,null,null,null,null,null,null,null,null,null,null,null,null,null,null,"X"]
[null,null,null,"Margin Trowels",null,null,null,null,null,null,null,null,null,null,null,null,null,null,null,null,null,null,null,null,null,null,null,null,null,null,null,null,null,null,null,null,null,null,null,null,"X"]
["PR","Barwalt - All Other",null,"PR70910",null,"5\" x 2\"",null,"70910",null,"- Soft Grip",null,null,null,null,"Barwalt",null,null,null,{"$f":"IF(Suggested=\"Yes\",'Price List'!AA64,'Price List'!AG64)","v":9.65},"EA",{"$f":"+Instructions!$B$3","v":"N"},null,{"$f":"+Instructions!$D$22","v":0},{"$f":"ROUND($AA64*(1-W64)+0.004999,2)","v":9.65},null,"",9.65,{"$f":"+W64","v":0},9.65,{"$f":"(AG64-AC64)/AG64","v":0},null,{"$f":"+A64","v":"PR"},{"$f":"SUM(AJ64:AL64)+AE64","v":9.65},null,null,{"$f":"ROUND(AC64/(1-VLOOKUP(AF64,Group,2,FALSE)),2)","v":9.65},{"$f":"IF(VLOOKUP(AF64,Group,3,FALSE)=\"YES\",VLOOKUP(ROUND(ROUND(AJ64,1)-AJ64,2),Round,2,FALSE)+VLOOKUP(AF64,Group,4,FALSE),0)","v":0},{"$f":"IF(VLOOKUP(AF64,Group,5,FALSE)=\"\",0,ROUND(AJ64-0.04999,1)-AJ64+AM64)","v":0},{"$f":"IF(VLOOKUP(AF64,Group,5,FALSE)=\"\",\"\",VLOOKUP(AF64,Group,5,FALSE))","v":""},null,"X"]
["TR","Troxell - All Other",null,"TX15-522",null,"5\" x 2\"",null,"15-522",null,"- Soft Grip, Stainless Steel",null,null,null,null,"Troxell",null,"Stock",null,{"$f":"IF(Suggested=\"Yes\",'Price List'!AA65,'Price List'!AG65)","v":7.4},"EA",{"$f":"+Instructions!$B$3","v":"N"},null,{"$f":"+Instructions!$D$22","v":0},{"$f":"ROUND($AA65*(1-W65)+0.004999,2)","v":7.4},null,"YES",7.4,0,7.4,{"$f":"(AG65-AC65)/AG65","v":0},null,{"$f":"+A65","v":"TR"},{"$f":"SUM(AJ65:AL65)+AE65","v":7.4},null,null,{"$f":"ROUND(AC65/(1-VLOOKUP(AF65,Group,2,FALSE)),2)","v":7.4},{"$f":"IF(VLOOKUP(AF65,Group,3,FALSE)=\"YES\",VLOOKUP(ROUND(ROUND(AJ65,1)-AJ65,2),Round,2,FALSE)+VLOOKUP(AF65,Group,4,FALSE),0)","v":0},{"$f":"IF(VLOOKUP(AF65,Group,5,FALSE)=\"\",0,ROUND(AJ65-0.04999,1)-AJ65+AM65)","v":0},{"$f":"IF(VLOOKUP(AF65,Group,5,FALSE)=\"\",\"\",VLOOKUP(AF65,Group,5,FALSE))","v":""},null,"X"]
["PR","Barwalt - All Other",null,"PR70912",null,"8\" x 2\"",null,"70912",null,"- Soft Grip",null,null,null,null,"Barwalt",null,null,null,{"$f":"IF(Suggested=\"Yes\",'Price List'!AA66,'Price List'!AG66)","v":11.8},"EA",{"$f":"+Instructions!$B$3","v":"N"},null,{"$f":"+Instructions!$D$22","v":0},{"$f":"ROUND($AA66*(1-W66)+0.004999,2)","v":11.8},null,"",11.8,0,11.8,{"$f":"(AG66-AC66)/AG66","v":0},null,{"$f":"+A66","v":"PR"},{"$f":"SUM(AJ66:AL66)+AE66","v":11.8},null,null,{"$f":"ROUND(AC66/(1-VLOOKUP(AF66,Group,2,FALSE)),2)","v":11.8},{"$f":"IF(VLOOKUP(AF66,Group,3,FALSE)=\"YES\",VLOOKUP(ROUND(ROUND(AJ66,1)-AJ66,2),Round,2,FALSE)+VLOOKUP(AF66,Group,4,FALSE),0)","v":0},{"$f":"IF(VLOOKUP(AF66,Group,5,FALSE)=\"\",0,ROUND(AJ66-0.04999,1)-AJ66+AM66)","v":0},{"$f":"IF(VLOOKUP(AF66,Group,5,FALSE)=\"\",\"\",VLOOKUP(AF66,Group,5,FALSE))","v":""},null,"X"]
["TR","Troxell - All Other",null,"TX15-582",null,"8\" x 2\"",null,"15-582",null,"- Soft Grip, Stainless Steel",null,null,null,null,"Troxell",null,"Stock",null,{"$f":"IF(Suggested=\"Yes\",'Price List'!AA67,'Price List'!AG67)","v":8.4499999999999993},"EA",{"$f":"+Instructions!$B$3","v":"N"},null,{"$f":"+Instructions!$D$22","v":0},{"$f":"ROUND($AA67*(1-W67)+0.004999,2)","v":8.4499999999999993},null,"YES",8.4499999999999993,0,8.4499999999999993,{"$f":"(AG67-AC67)/AG67","v":0},null,{"$f":"+A67","v":"TR"},{"$f":"SUM(AJ67:AL67)+AE67","v":8.4499999999999993},null,null,{"$f":"ROUND(AC67/(1-VLOOKUP(AF67,Group,2,FALSE)),2)","v":8.4499999999999993},{"$f":"IF(VLOOKUP(AF67,Group,3,FALSE)=\"YES\",VLOOKUP(ROUND(ROUND(AJ67,1)-AJ67,2),Round,2,FALSE)+VLOOKUP(AF67,Group,4,FALSE),0)","v":0},{"$f":"IF(VLOOKUP(AF67,Group,5,FALSE)=\"\",0,ROUND(AJ67-0.04999,1)-AJ67+AM67)","v":0},{"$f":"IF(VLOOKUP(AF67,Group,5,FALSE)=\"\",\"\",VLOOKUP(AF67,Group,5,FALSE))","v":""},null,"X"]
[null,null,null,null,null,null,null,null,null,null,null,null,null,null,null,null,null,null,null,null,null,null,null,null,null,null,null,null,null,null,null,null,null,null,null,null,null,null,null,null,"X"]
[null,null,"Floats",null,null,null,null,null,null,null,null,null,null,null,null,null,null,null,null,null,null,null,null,null,null,null,null,null,null,null,null,null,null,null,null,null,null,null,null,null,"X"]
[null,null,null,null,null,null,null,null,null,null,null,null,null,null,null,null,null,null,null,null,null,null,null,null,null,null,null,null,null,null,null,null,null,null,null,null,null,null,null,null,"X"]
[null,null,null,"Regular Floats",null,null,null,null,null,null,null,null,null,null,null,null,null,null,null,null,null,null,null,null,null,null,null,null,null,null,null,null,null,null,null,null,null,null,null,null,"X"]
[null,null,null,null,null,null,null,null,null,null,null,null,null,null,null,null,null,null,null,null,null,null,null,null,null,null,null,null,null,null,null,null,null,null,null,null,null,null,null,null,"X"]
["PR","Barwalt - All Other",null,"PR71158",null,"4\" x 9\"",null,"71158",null,"- Lightweight w/ Cushion Handle",null,null,null,null,"Barwalt",null,"Stock",null,{"$f":"IF(Suggested=\"Yes\",'Price List'!AA73,'Price List'!AG73)","v":9.6999999999999993},"EA",{"$f":"+Instructions!$B$3","v":"N"},null,{"$f":"+Instructions!$D$22","v":0},{"$f":"ROUND($AA73*(1-W73)+0.004999,2)","v":9.6999999999999993},null,"YES",9.6999999999999993,{"$f":"+W73","v":0},9.6999999999999993,{"$f":"(AG73-AC73)/AG73","v":0},null,{"$f":"+A73","v":"PR"},{"$f":"SUM(AJ73:AL73)+AE73","v":9.6999999999999993},null,null,{"$f":"ROUND(AC73/(1-VLOOKUP(AF73,Group,2,FALSE)),2)","v":9.6999999999999993},{"$f":"IF(VLOOKUP(AF73,Group,3,FALSE)=\"YES\",VLOOKUP(ROUND(ROUND(AJ73,1)-AJ73,2),Round,2,FALSE)+VLOOKUP(AF73,Group,4,FALSE),0)","v":0},{"$f":"IF(VLOOKUP(AF73,Group,5,FALSE)=\"\",0,ROUND(AJ73-0.04999,1)-AJ73+AM73)","v":0},{"$f":"IF(VLOOKUP(AF73,Group,5,FALSE)=\"\",\"\",VLOOKUP(AF73,Group,5,FALSE))","v":""},null,"X"]
["PR","Barwalt - All Other",null,"PR71175",null,"4\" x 9\"",null,"71175",null,"- Gum Rubber w/ Metal Backing, Soft Grip",null,null,null,null,"Barwalt",null,"Stock",null,{"$f":"IF(Suggested=\"Yes\",'Price List'!AA74,'Price List'!AG74)","v":10},"EA",{"$f":"+Instructions!$B$3","v":"N"},null,{"$f":"+Instructions!$D$22","v":0},10,null,"YES",10,0,10,0,null,{"$f":"+A74","v":"PR"},10,null,null,10,0,0,"",null,"X"]
["TR","Troxell - All Other",null,"TX0943P",null,"4\" x 9\"",null,"09-43P",null,"Super-Grip PROFLEX Gum Float",null,null,null,null,"Troxell",null,"Stock",null,{"$f":"IF(Suggested=\"Yes\",'Price List'!AA75,'Price List'!AG75)","v":13.7},"EA",{"$f":"+Instructions!$B$3","v":"N"},null,{"$f":"+Instructions!$D$22","v":0},13.7,null,"YES",13.7,0,13.7,0,null,{"$f":"+A75","v":"TR"},13.7,null,null,13.7,0,0,"",null,"X"]
["PR","Barwalt - All Other",null,"PRUWF1",null,"4\" x 10\"",null,"81319 UWF-1B",null,"- Ultralight w/ Hollow Handle (Green)",null,null,null,null,"Barwalt",null,"Stock",null,{"$f":"IF(Suggested=\"Yes\",'Price List'!AA76,'Price List'!AG76)","v":13.8},"EA",{"$f":"+Instructions!$B$3","v":"N"},null,{"$f":"+Instructions!$D$22","v":0},13.8,null,"",13.8,0,13.8,0,null,{"$f":"+A76","v":"PR"},13.8,null,null,13.8,0,0,"",null,"X"]
["PR","Barwalt - All Other",null,"PR71185",null,"4\" x 10-1/2\"",null,"71185",null,"- Ultrasoft Float",null,null,null,null,"Barwalt",null,"Stock",null,{"$f":"IF(Suggested=\"Yes\",'Price List'!AA77,'Price List'!AG77)","v":12.9},"EA",{"$f":"+Instructions!$B$3","v":"N"},null,{"$f":"+Instructions!$D$22","v":0},12.9,null,"",12.9,0,12.9,0,null,{"$f":"+A77","v":"PR"},12.9,null,null,12.9,0,0,"",null,"X"]
["TR","Troxell - All Other",null,"TX0943PXL",null,"4\" x 12\"",null,"09-43PXL",null,"Super-Grip PROFLEX Gum Float",null,null,null,null,"Troxell",null,"Stock",null,{"$f":"IF(Suggested=\"Yes\",'Price List'!AA78,'Price List'!AG78)","v":19.149999999999999},"EA",{"$f":"+Instructions!$B$3","v":"N"},null,{"$f":"+Instructions!$D$22","v":0},19.149999999999999,null,"YES",19.149999999999999,0,19.149999999999999,0,null,{"$f":"+A78","v":"TR"},19.149999999999999,null,null,19.149999999999999,0,0,"",null,"X"]
[null,null,null,null,null,null,null,null,null,null,null,null,null,null,null,null,null,null,null,null,null,null,null,null,null,null,null,null,null,null,null,null,null,null,null,null,null,null,null,null,"X"]
[null,null,null,"Offset Floats",null,null,null,null,null,null,null,null,null,null,null,null,null,null,null,null,null,null,null,null,null,null,null,null,null,null,null,null,null,null,null,null,null,null,null,null,"X"]
["PR","Barwalt - All Other",null,"PR71178",null,"3\" x 12\"",null,"71178",null,"- Gum Rubber w/ Metal Backing, Soft Grip",null,null,null,null,"Barwalt",null,null,null,{"$f":"IF(Suggested=\"Yes\",'Price List'!AA81,'Price List'!AG81)","v":10},"EA",{"$f":"+Instructions!$B$3","v":"N"},null,{"$f":"+Instructions!$D$22","v":0},{"$f":"ROUND($AA81*(1-W81)+0.004999,2)","v":10},null,"YES",10,{"$f":"+W81","v":0},{"$f":"+X81","v":10},{"$f":"(AG81-AC81)/AG81","v":0},null,{"$f":"+A81","v":"PR"},{"$f":"SUM(AJ81:AL81)+AE81","v":10},null,null,{"$f":"ROUND(AC81/(1-VLOOKUP(AF81,Group,2,FALSE)),2)","v":10},{"$f":"IF(VLOOKUP(AF81,Group,3,FALSE)=\"YES\",VLOOKUP(ROUND(ROUND(AJ81,1)-AJ81,2),Round,2,FALSE)+VLOOKUP(AF81,Group,4,FALSE),0)","v":0},{"$f":"IF(VLOOKUP(AF81,Group,5,FALSE)=\"\",0,ROUND(AJ81-0.04999,1)-AJ81+AM81)","v":0},{"$f":"IF(VLOOKUP(AF81,Group,5,FALSE)=\"\",\"\",VLOOKUP(AF81,Group,5,FALSE))","v":""},null,"X"]
[null,null,null,null,null,null,null,null,null,null,null,null,null,null,null,null,null,null,null,null,null,null,null,null,null,null,null,null,null,null,null,null,null,null,null,null,null,null,null,null,"X"]
[null,null,null,"Epoxy Floats",null,null,null,null,null,null,null,null,null,null,null,null,null,null,null,null,null,null,null,null,null,null,null,null,null,null,null,null,null,null,null,null,null,null,null,null,"X"]
["TR","Troxell - All Other",null,"TX09KF",null,"4\" x 9\"",null,"09-KF",null,"Super-Grip PROFLEX Yellow Float",null,null,null,null,"Troxell",null,"Stock",null,{"$f":"IF(Suggested=\"Yes\",'Price List'!AA84,'Price List'!AG84)","v":21.8},"EA",{"$f":"+Instructions!$B$3","v":"N"},null,{"$f":"+Instructions!$D$22","v":0},{"$f":"ROUND($AA84*(1-W84)+0.004999,2)","v":21.8},null,"YES",21.8,{"$f":"+W84","v":0},21.8,{"$f":"(AG84-AC84)/AG84","v":0},null,{"$f":"+A84","v":"TR"},{"$f":"SUM(AJ84:AL84)+AE84","v":21.8},null,null,{"$f":"ROUND(AC84/(1-VLOOKUP(AF84,Group,2,FALSE)),2)","v":21.8},{"$f":"IF(VLOOKUP(AF84,Group,3,FALSE)=\"YES\",VLOOKUP(ROUND(ROUND(AJ84,1)-AJ84,2),Round,2,FALSE)+VLOOKUP(AF84,Group,4,FALSE),0)","v":0},{"$f":"IF(VLOOKUP(AF84,Group,5,FALSE)=\"\",0,ROUND(AJ84-0.04999,1)-AJ84+AM84)","v":0},{"$f":"IF(VLOOKUP(AF84,Group,5,FALSE)=\"\",\"\",VLOOKUP(AF84,Group,5,FALSE))","v":""},null,"X"]
["PR","Barwalt - All Other",null,"PRUFF2000",null,null,null,"81400 UFF-2000",null,"- Ultralight w/ Solid Handle",null,null,null,null,"Barwalt",null,"Stock",null,{"$f":"IF(Suggested=\"Yes\",'Price List'!AA85,'Price List'!AG85)","v":16.45},"EA",{"$f":"+Instructions!$B$3","v":"N"},null,{"$f":"+Instructions!$D$22","v":0},{"$f":"ROUND($AA85*(1-W85)+0.004999,2)","v":16.45},null,"",16.45,0,16.45,{"$f":"(AG85-AC85)/AG85","v":0},null,{"$f":"+A85","v":"PR"},{"$f":"SUM(AJ85:AL85)+AE85","v":16.45},null,null,{"$f":"ROUND(AC85/(1-VLOOKUP(AF85,Group,2,FALSE)),2)","v":16.45},{"$f":"IF(VLOOKUP(AF85,Group,3,FALSE)=\"YES\",VLOOKUP(ROUND(ROUND(AJ85,1)-AJ85,2),Round,2,FALSE)+VLOOKUP(AF85,Group,4,FALSE),0)","v":0},{"$f":"IF(VLOOKUP(AF85,Group,5,FALSE)=\"\",0,ROUND(AJ85-0.04999,1)-AJ85+AM85)","v":0},{"$f":"IF(VLOOKUP(AF85,Group,5,FALSE)=\"\",\"\",VLOOKUP(AF85,Group,5,FALSE))","v":""},null,"X"]
[null,null,null,null,null,null,null,null,null,null,null,null,null,null,null,null,null,null,null,null,null,null,null,null,null,null,null,null,null,null,null,null,null,null,null,null,null,null,null,null,"X"]
[null,null,null,"Margin Floats",null,null,null,null,null,null,null,null,null,null,null,null,null,null,null,null,null,null,null,null,null,null,null,null,null,null,null,null,null,null,null,null,null,null,null,null,"X"]
["PR","Barwalt - All Other",null,"PR70922",null,"2\" x 6\"",null,"70922",null,"- Wood Handle",null,null,null,null,"Barwalt",null,null,null,{"$f":"IF(Suggested=\"Yes\",'Price List'!AA88,'Price List'!AG88)","v":5.4},"EA",{"$f":"+Instructions!$B$3","v":"N"},null,{"$f":"+Instructions!$D$22","v":0},{"$f":"ROUND($AA88*(1-W88)+0.004999,2)","v":5.4},null,"",5.4,{"$f":"+W88","v":0},{"$f":"+X88","v":5.4},{"$f":"(AG88-AC88)/AG88","v":0},null,{"$f":"+A88","v":"PR"},{"$f":"SUM(AJ88:AL88)+AE88","v":5.4},null,null,{"$f":"ROUND(AC88/(1-VLOOKUP(AF88,Group,2,FALSE)),2)","v":5.4},{"$f":"IF(VLOOKUP(AF88,Group,3,FALSE)=\"YES\",VLOOKUP(ROUND(ROUND(AJ88,1)-AJ88,2),Round,2,FALSE)+VLOOKUP(AF88,Group,4,FALSE),0)","v":0},{"$f":"IF(VLOOKUP(AF88,Group,5,FALSE)=\"\",0,ROUND(AJ88-0.04999,1)-AJ88+AM88)","v":0},{"$f":"IF(VLOOKUP(AF88,Group,5,FALSE)=\"\",\"\",VLOOKUP(AF88,Group,5,FALSE))","v":""},null,"X"]
["TR","Troxell - All Other",null,"TX09MTF",null,"2\" x 6\"",null,"09-MTF",null,"- Soft Grip, Stainless Steel",null,null,null,null,"Troxell",null,"n/s","New",{"$f":"IF(Suggested=\"Yes\",'Price List'!AA89,'Price List'!AG89)","v":8.1},"EA",{"$f":"+Instructions!$B$3","v":"N"},null,{"$f":"+Instructions!$D$22","v":0},{"$f":"ROUND($AA89*(1-W89)+0.004999,2)","v":8.1},null,"YES",8.1,{"$f":"+W89","v":0},{"$f":"+X89","v":8.1},{"$f":"(AG89-AC89)/AG89","v":0},null,{"$f":"+A89","v":"TR"},{"$f":"SUM(AJ89:AL89)+AE89","v":8.1},null,null,{"$f":"ROUND(AC89/(1-VLOOKUP(AF89,Group,2,FALSE)),2)","v":8.1},{"$f":"IF(VLOOKUP(AF89,Group,3,FALSE)=\"YES\",VLOOKUP(ROUND(ROUND(AJ89,1)-AJ89,2),Round,2,FALSE)+VLOOKUP(AF89,Group,4,FALSE),0)","v":0},{"$f":"IF(VLOOKUP(AF89,Group,5,FALSE)=\"\",0,ROUND(AJ89-0.04999,1)-AJ89+AM89)","v":0},{"$f":"IF(VLOOKUP(AF89,Group,5,FALSE)=\"\",\"\",VLOOKUP(AF89,Group,5,FALSE))","v":""},null,"X"]
[null,null,null,null,null,null,null,null,null,null,null,null,null,null,null,null,null,null,null,null,null,null,null,null,null,null,null,null,null,null,null,null,null,null,null,null,null,null,null,null,"X"]
[null,null,"Grouting Clean Up Systems / Sponges",null,null,null,null,null,null,null,null,null,null,null,null,null,null,null,null,null,null,null,null,null,null,null,null,null,null,null,null,null,null,null,null,null,null,null,null,null,"X"]
[null,null,null,null,null,null,null,null,null,null,null,null,null,null,null,null,null,null,null,null,null,null,null,null,null,null,null,null,null,null,null,null,null,null,null,null,null,null,null,null,"X"]
[null,null,null,"Ultra Grouting System",null,null,null,null,null,null,null,null,null,null,null,null,null,null,null,null,null,null,null,null,null,null,null,null,null,null,null,null,null,null,null,null,null,null,null,null,"X"]
["PR","Barwalt - All Other",null,"PR81584",null,"81584 Ultra Grouting System",null,null,null,null,null,null,null,null,"Barwalt",null,"Stock",null,{"$f":"IF(Suggested=\"Yes\",'Price List'!AA94,'Price List'!AG94)","v":113.75},"EA",{"$f":"+Instructions!$B$3","v":"N"},null,{"$f":"+Instructions!$D$22","v":0},{"$f":"ROUND($AA94*(1-W94)+0.004999,2)","v":113.75},null,"",113.75,{"$f":"+W94","v":0},{"$f":"+X94","v":113.75},{"$f":"(AG94-AC94)/AG94","v":0},null,{"$f":"+A94","v":"PR"},{"$f":"SUM(AJ94:AL94)+AE94","v":113.75},null,null,{"$f":"ROUND(AC94/(1-VLOOKUP(AF94,Group,2,FALSE)),2)","v":113.75},{"$f":"IF(VLOOKUP(AF94,Group,3,FALSE)=\"YES\",VLOOKUP(ROUND(ROUND(AJ94,1)-AJ94,2),Round,2,FALSE)+VLOOKUP(AF94,Group,4,FALSE),0)","v":0},{"$f":"IF(VLOOKUP(AF94,Group,5,FALSE)=\"\",0,ROUND(AJ94-0.04999,1)-AJ94+AM94)","v":0},{"$f":"IF(VLOOKUP(AF94,Group,5,FALSE)=\"\",\"\",VLOOKUP(AF94,Group,5,FALSE))","v":""},null,"X"]
["PR","Barwalt - All Other",null,"PR81510",null,null,"81510 Wall Sponge Holder",null,null,null,null,null,null,null,"Barwalt",null,"Stock",null,{"$f":"IF(Suggested=\"Yes\",'Price List'!AA95,'Price List'!AG95)","v":16.55},"EA",{"$f":"+Instructions!$B$3","v":"N"},null,{"$f":"+Instructions!$D$22","v":0},16.55,null,"",16.55,0,16.55,0,null,{"$f":"+A95","v":"PR"},16.55,null,null,16.55,0,0,"",null,"X"]
["PR","Barwalt - All Other",null,"PR81511",null,null,"81511 Wall Replacement Sponge",null,null,null,null,null,null,null,"Barwalt",null,"Stock",null,{"$f":"IF(Suggested=\"Yes\",'Price List'!AA96,'Price List'!AG96)","v":5.45},"EA",{"$f":"+Instructions!$B$3","v":"N"},null,{"$f":"+Instructions!$D$22","v":0},5.45,null,"",5.45,0,5.45,0,null,{"$f":"+A96","v":"PR"},5.45,null,null,5.45,0,0,"",null,"X"]
["PR","Barwalt - All Other",null,"PR81520",null,null,"81520 Floor Sponge Holder",null,null,null,null,null,null,null,"Barwalt",null,"Stock",null,{"$f":"IF(Suggested=\"Yes\",'Price List'!AA97,'Price List'!AG97)","v":16.55},"EA",{"$f":"+Instructions!$B$3","v":"N"},null,{"$f":"+Instructions!$D$22","v":0},16.55,null,"",16.55,0,16.55,0,null,{"$f":"+A97","v":"PR"},16.55,null,null,16.55,0,0,"",null,"X"]
["PR","Barwalt - All Other",null,"PR81521",null,null,"81521 Floor Replacement Sponge",null,null,null,null,null,null,null,"Barwalt",null,"Stock",null,{"$f":"IF(Suggested=\"Yes\",'Price List'!AA98,'Price List'!AG98)","v":5.45},"EA",{"$f":"+Instructions!$B$3","v":"N"},null,{"$f":"+Instructions!$D$22","v":0},5.45,null,"",5.45,0,5.45,0,null,{"$f":"+A98","v":"PR"},5.45,null,null,5.45,0,0,"",null,"X"]
["TR","Troxell - All Other",null,"TX09CADDY",null,"09-CADDY Troxell Grout Caddy (Complete Set)",null,null,null,null,null,null,null,null,"Troxell",null,"n/s","New",{"$f":"IF(Suggested=\"Yes\",'Price List'!AA99,'Price List'!AG99)","v":99.3},"EA",{"$f":"+Instructions!$B$3","v":"N"},null,{"$f":"+Instructions!$D$22","v":0},99.3,null,"YES",99.3,0,99.3,0,null,{"$f":"+A99","v":"TR"},99.3,null,null,99.3,0,0,"",null,"X"]
["TR","Troxell - All Other",null,"TX09CADDYS",null,null,"Grout Caddy Replacement - 5\"x11\" Wall Sponge",null,null,null,null,null,null,null,"Troxell",null,"n/s","New",{"$f":"IF(Suggested=\"Yes\",'Price List'!AA100,'Price List'!AG100)","v":5.9},"EA",{"$f":"+Instructions!$B$3","v":"N"},null,{"$f":"+Instructions!$D$22","v":0},5.9,null,"YES",5.9,0,5.9,0,null,{"$f":"+A100","v":"TR"},5.9,null,null,5.9,0,0,"",null,"X"]
["TR","Troxell - All Other",null,"TX09CADDYH",null,null,"Grout Caddy Replacement - 5\"x11\" Wall Handle",null,null,null,null,null,null,null,"Troxell",null,"n/s","New",{"$f":"IF(Suggested=\"Yes\",'Price List'!AA101,'Price List'!AG101)","v":7.5},"EA",{"$f":"+Instructions!$B$3","v":"N"},null,{"$f":"+Instructions!$D$22","v":0},7.5,null,"YES",7.5,0,7.5,0,null,{"$f":"+A101","v":"TR"},7.5,null,null,7.5,0,0,"",null,"X"]
["TR","Troxell - All Other",null,"TX09CADDYSXL",null,null,"Grout Caddy Replacement - 8\"x14\" Floor Sponge",null,null,null,null,null,null,null,"Troxell",null,"n/s","New",{"$f":"IF(Suggested=\"Yes\",'Price List'!AA102,'Price List'!AG102)","v":12.15},"EA",{"$f":"+Instructions!$B$3","v":"N"},null,{"$f":"+Instructions!$D$22","v":0},12.15,null,"YES",12.15,0,12.15,0,null,{"$f":"+A102","v":"TR"},12.15,null,null,12.15,0,0,"",null,"X"]
["TR","Troxell - All Other",null,"TX09CADDYHXL",null,null,"Grout Caddy Replacement - 8\"x14\" Floor Handle",null,null,null,null,null,null,null,"Troxell",null,"n/s","New",{"$f":"IF(Suggested=\"Yes\",'Price List'!AA103,'Price List'!AG103)","v":15.15},"EA",{"$f":"+Instructions!$B$3","v":"N"},null,{"$f":"+Instructions!$D$22","v":0},15.15,null,"YES",15.15,0,15.15,0,null,{"$f":"+A103","v":"TR"},15.15,null,null,15.15,0,0,"",null,"X"]
[null,null,null,null,null,null,null,null,null,null,null,null,null,null,null,null,null,null,null,null,null,null,null,null,null,null,null,null,null,null,null,null,null,null,null,null,null,null,null,null,"X"]
[null,null,null,"Doodlebugs",null,null,null,null,null,null,null,null,null,null,null,null,null,null,null,null,null,null,null,null,null,null,null,null,null,null,null,null,null,null,null,null,null,null,null,null,"X"]
["GU","Gundlach - All",null,"GU8242",null,"8242 Medium Blue Doodlebug Pad",null,null,null,null,null,null,null,null,"Gundlach",null,"Stock",null,{"$f":"IF(Suggested=\"Yes\",'Price List'!AA106,'Price List'!AG106)","v":5.15},"EA",{"$f":"+Instructions!$B$3","v":"N"},null,{"$f":"+Instructions!$D$22","v":0},5.15,null,"",5.15,0,5.15,0,null,{"$f":"+A106","v":"GU"},5.15,null,null,5.15,{"$f":"IF(VLOOKUP(AF106,Group,3,FALSE)=\"YES\",VLOOKUP(ROUND(ROUND(AJ106,1)-AJ106,2),Round,2,FALSE)+VLOOKUP(AF106,Group,4,FALSE),0)","v":0},{"$f":"IF(VLOOKUP(AF106,Group,5,FALSE)=\"\",0,ROUND(AJ106-0.04999,1)-AJ106+AM106)","v":0},{"$f":"IF(VLOOKUP(AF106,Group,5,FALSE)=\"\",\"\",VLOOKUP(AF106,Group,5,FALSE))","v":""},null,"X"]
["GU","Gundlach - All",null,"GU8440",null,"8440 Fine White Doodlebug Pad",null,null,null,null,null,null,null,null,"Gundlach",null,"Stock",null,{"$f":"IF(Suggested=\"Yes\",'Price List'!AA107,'Price List'!AG107)","v":5.15},"EA",{"$f":"+Instructions!$B$3","v":"N"},null,{"$f":"+Instructions!$D$22","v":0},5.15,null,"",5.15,0,5.15,0,null,{"$f":"+A107","v":"GU"},5.15,null,null,5.15,{"$f":"IF(VLOOKUP(AF107,Group,3,FALSE)=\"YES\",VLOOKUP(ROUND(ROUND(AJ107,1)-AJ107,2),Round,2,FALSE)+VLOOKUP(AF107,Group,4,FALSE),0)","v":0},{"$f":"IF(VLOOKUP(AF107,Group,5,FALSE)=\"\",0,ROUND(AJ107-0.04999,1)-AJ107+AM107)","v":0},{"$f":"IF(VLOOKUP(AF107,Group,5,FALSE)=\"\",\"\",VLOOKUP(AF107,Group,5,FALSE))","v":""},null,"X"]
["TR","Troxell - All Other",null,"TX10112",null,"10-112","6\"x12\" Scrub Pad Handle with Velcro",null,null,null,null,null,null,null,"Troxell",null,null,null,{"$f":"IF(Suggested=\"Yes\",'Price List'!AA108,'Price List'!AG108)","v":9.1},"EA",{"$f":"+Instructions!$B$3","v":"N"},null,{"$f":"+Instructions!$D$22","v":0},9.1,null,"",9.1,0,9.1,0,null,{"$f":"+A108","v":"TR"},9.1,null,null,9.1,{"$f":"IF(VLOOKUP(AF108,Group,3,FALSE)=\"YES\",VLOOKUP(ROUND(ROUND(AJ108,1)-AJ108,2),Round,2,FALSE)+VLOOKUP(AF108,Group,4,FALSE),0)","v":0},{"$f":"IF(VLOOKUP(AF108,Group,5,FALSE)=\"\",0,ROUND(AJ108-0.04999,1)-AJ108+AM108)","v":0},{"$f":"IF(VLOOKUP(AF108,Group,5,FALSE)=\"\",\"\",VLOOKUP(AF108,Group,5,FALSE))","v":""},null,"X"]
["TR","Troxell - All Other",null,"TX10200",null,"10-200","6\"x12\" Scrub Pad - White Fine ",null,null,null,null,null,null,null,"Troxell",null,null,null,{"$f":"IF(Suggested=\"Yes\",'Price List'!AA109,'Price List'!AG109)","v":5.15},"EA",{"$f":"+Instructions!$B$3","v":"N"},null,{"$f":"+Instructions!$D$22","v":0},{"$f":"ROUND($AA109*(1-W109)+0.004999,2)","v":5.15},null,"",5.15,{"$f":"+W109","v":0},{"$f":"+X109","v":5.15},{"$f":"(AG109-AC109)/AG109","v":0},null,{"$f":"+A109","v":"TR"},{"$f":"SUM(AJ109:AL109)+AE109","v":5.15},null,null,{"$f":"ROUND(AC109/(1-VLOOKUP(AF109,Group,2,FALSE)),2)","v":5.15},{"$f":"IF(VLOOKUP(AF109,Group,3,FALSE)=\"YES\",VLOOKUP(ROUND(ROUND(AJ109,1)-AJ109,2),Round,2,FALSE)+VLOOKUP(AF109,Group,4,FALSE),0)","v":0},{"$f":"IF(VLOOKUP(AF109,Group,5,FALSE)=\"\",0,ROUND(AJ109-0.04999,1)-AJ109+AM109)","v":0},{"$f":"IF(VLOOKUP(AF109,Group,5,FALSE)=\"\",\"\",VLOOKUP(AF109,Group,5,FALSE))","v":""},null,"X"]
["TR","Troxell - All Other",null,"TX10201",null,"10-201","6\"x12\" Scrub Pad - Blue Medium ",null,null,null,null,null,null,null,"Troxell",null,null,null,{"$f":"IF(Suggested=\"Yes\",'Price List'!AA110,'Price List'!AG110)","v":6.6},"EA",{"$f":"+Instructions!$B$3","v":"N"},null,{"$f":"+Instructions!$D$22","v":0},6.6,null,"",6.6,0,6.6,0,null,{"$f":"+A110","v":"TR"},6.6,null,null,6.6,{"$f":"IF(VLOOKUP(AF110,Group,3,FALSE)=\"YES\",VLOOKUP(ROUND(ROUND(AJ110,1)-AJ110,2),Round,2,FALSE)+VLOOKUP(AF110,Group,4,FALSE),0)","v":0},{"$f":"IF(VLOOKUP(AF110,Group,5,FALSE)=\"\",0,ROUND(AJ110-0.04999,1)-AJ110+AM110)","v":0},{"$f":"IF(VLOOKUP(AF110,Group,5,FALSE)=\"\",\"\",VLOOKUP(AF110,Group,5,FALSE))","v":""},null,"X"]
[null,null,null,null,null,null,null,null,null,null,null,null,null,null,null,null,null,null,null,null,null,null,null,null,null,null,null,null,null,null,null,null,null,null,null,null,null,null,null,null,"X"]
[null,null,null,"Sponges",null,null,null,null,null,null,null,null,null,null,null,null,null,null,null,null,null,null,null,null,null,null,null,null,null,null,null,null,null,null,null,null,null,null,null,null,"X"]
["HY","Hydra - All",null,"HY6HS",null,"TM-B","6\" Medium Sponge",null,null,null,null,null,null,null,"Hydra",null,"Stock",null,{"$f":"IF(Suggested=\"Yes\",'Price List'!AA113,'Price List'!AG113)","v":1.9},"EA",{"$f":"+Instructions!$B$3","v":"N"},null,{"$f":"+Instructions!$D$22","v":0},1.9,null,"YES",1.9,0,1.9,0,null,{"$f":"+A113","v":"HY"},1.9,null,null,1.9,{"$f":"IF(VLOOKUP(AF113,Group,3,FALSE)=\"YES\",VLOOKUP(ROUND(ROUND(AJ113,1)-AJ113,2),Round,2,FALSE)+VLOOKUP(AF113,Group,4,FALSE),0)","v":0},{"$f":"IF(VLOOKUP(AF113,Group,5,FALSE)=\"\",0,ROUND(AJ113-0.04999,1)-AJ113+AM113)","v":0},{"$f":"IF(VLOOKUP(AF113,Group,5,FALSE)=\"\",\"\",VLOOKUP(AF113,Group,5,FALSE))","v":""},null,"X"]
["HY","Hydra - All",null,"HY6HS",null,"TM-B","6\" Medium Sponge",null,null,"- Bag of 40",null,null,null,null,"Hydra",null,"Stock","a",{"$f":"IF(Suggested=\"Yes\",'Price List'!AA114,'Price List'!AG114)","v":1.5},"EA",{"$f":"+Instructions!$B$3","v":"N"},null,{"$f":"+Instructions!$D$22","v":0},1.5,null,"YES",1.5,0,1.5,0,null,{"$f":"+A114","v":"HY"},1.5,null,null,1.5,0,0,"",null,"X"]
["HY","Hydra - All",null,"HY8HS",null,"TXL-B","8\" X-Large Sponge",null,null,null,null,null,null,null,"Hydra",null,"Stock",null,{"$f":"IF(Suggested=\"Yes\",'Price List'!AA115,'Price List'!AG115)","v":2.6},"EA",{"$f":"+Instructions!$B$3","v":"N"},null,{"$f":"+Instructions!$D$22","v":0},2.6,null,"YES",2.6,0,2.6,0,null,{"$f":"+A115","v":"HY"},2.6,null,null,2.6,0,0,"",null,"X"]
["HY","Hydra - All",null,"HY8HS",null,"TXL-B","8\" X-Large Sponge",null,null,"- Bag of 25",null,null,null,null,"Hydra",null,"Stock","a",{"$f":"IF(Suggested=\"Yes\",'Price List'!AA116,'Price List'!AG116)","v":2.15},"EA",{"$f":"+Instructions!$B$3","v":"N"},null,{"$f":"+Instructions!$D$22","v":0},2.15,null,"YES",2.15,0,2.15,0,null,{"$f":"+A116","v":"HY"},2.15,null,null,2.15,0,0,"",null,"X"]
["HY","Hydra - All",null,"HYEPL",null,"EPL","Epoxy Sponge White",null,null,null,null,null,null,null,"Hydra",null,"Stock",null,{"$f":"IF(Suggested=\"Yes\",'Price List'!AA117,'Price List'!AG117)","v":2.5},"EA",{"$f":"+Instructions!$B$3","v":"N"},null,{"$f":"+Instructions!$D$22","v":0},2.5,null,"",2.5,0,2.5,0,null,{"$f":"+A117","v":"HY"},2.5,null,null,2.5,0,0,"",null,"X"]
[null,null,null,null,null,null,null,null,null,null,null,null,null,null,null,null,null,null,null,null,null,null,null,null,null,null,null,null,null,null,null,null,null,null,null,null,null,null,null,null,"X"]
[null,null,null,"Notes:","a) Special Pricing for FULL BAG purchases.",null,null,null,null,null,null,null,null,null,null,null,null,null,null,null,null,null,null,null,null,null,null,null,null,null,null,null,null,null,null,null,null,null,null,null,"X"]
[null,null,null,null,null,null,null,null,null,null,null,null,null,null,null,null,null,null,null,null,null,null,null,null,null,null,null,null,null,null,null,null,null,null,null,null,null,null,null,null,"X"]
[null,null,"Tile Spacers",null,null,null,null,null,null,null,null,null,null,null,null,null,null,null,null,null,null,null,null,null,null,null,null,null,null,null,null,null,null,null,null,null,null,null,null,null,"X"]
[null,null,null,null,null,null,null,null,null,null,null,null,null,null,null,null,null,null,null,null,null,null,null,null,null,null,null,null,null,null,null,null,null,null,null,null,null,null,null,null,"X"]
[null,null,null,"Hollow Spacers - specially designed to be grouted over - they don't have to be removed",null,null,null,null,null,null,null,null,null,null,null,null,null,null,null,null,null,null,null,null,null,null,null,null,null,null,null,null,null,null,null,null,null,null,null,null,"X"]
["PR","Barwalt - All Other",null,"PR116G",null,"1/16\"  +",null,"16000 - Clamshell",null,null,null,"- 500 Count",null,null,"Barwalt",null,"Stock",null,{"$f":"IF(Suggested=\"Yes\",'Price List'!AA124,'Price List'!AG124)","v":8.85},"EA",{"$f":"+Instructions!$B$3","v":"N"},null,{"$f":"+Instructions!$D$22","v":0},{"$f":"ROUND($AA124*(1-W124)+0.004999,2)","v":8.85},null,"",8.85,{"$f":"+W124","v":0},{"$f":"+X124","v":8.85},{"$f":"(AG124-AC124)/AG124","v":0},null,{"$f":"+A124","v":"PR"},{"$f":"SUM(AJ124:AL124)+AE124","v":8.85},null,null,{"$f":"ROUND(AC124/(1-VLOOKUP(AF124,Group,2,FALSE)),2)","v":8.85},{"$f":"IF(VLOOKUP(AF124,Group,3,FALSE)=\"YES\",VLOOKUP(ROUND(ROUND(AJ124,1)-AJ124,2),Round,2,FALSE)+VLOOKUP(AF124,Group,4,FALSE),0)","v":0},{"$f":"IF(VLOOKUP(AF124,Group,5,FALSE)=\"\",0,ROUND(AJ124-0.04999,1)-AJ124+AM124)","v":0},{"$f":"IF(VLOOKUP(AF124,Group,5,FALSE)=\"\",\"\",VLOOKUP(AF124,Group,5,FALSE))","v":""},null,"X"]
["PR","Barwalt - All Other",null,"PR18H",null,"1/8\"  +",null,"16020 - Clamshell",null,null,null,"- 500 Count",null,null,"Barwalt",null,"Stock",null,{"$f":"IF(Suggested=\"Yes\",'Price List'!AA125,'Price List'!AG125)","v":8.85},"EA",{"$f":"+Instructions!$B$3","v":"N"},null,{"$f":"+Instructions!$D$22","v":0},8.85,null,"",8.85,0,8.85,0,null,{"$f":"+A125","v":"PR"},8.85,null,null,8.85,{"$f":"IF(VLOOKUP(AF125,Group,3,FALSE)=\"YES\",VLOOKUP(ROUND(ROUND(AJ125,1)-AJ125,2),Round,2,FALSE)+VLOOKUP(AF125,Group,4,FALSE),0)","v":0},{"$f":"IF(VLOOKUP(AF125,Group,5,FALSE)=\"\",0,ROUND(AJ125-0.04999,1)-AJ125+AM125)","v":0},{"$f":"IF(VLOOKUP(AF125,Group,5,FALSE)=\"\",\"\",VLOOKUP(AF125,Group,5,FALSE))","v":""},null,"X"]
["PR","Barwalt - All Other",null,"PR316H",null,"3/16\"  + ",null,"16030 - Clamshell",null,null,null,"- 500 Count",null,null,"Barwalt",null,"Stock",null,{"$f":"IF(Suggested=\"Yes\",'Price List'!AA126,'Price List'!AG126)","v":8.85},"EA",{"$f":"+Instructions!$B$3","v":"N"},null,{"$f":"+Instructions!$D$22","v":0},8.85,null,"",8.85,0,8.85,0,null,{"$f":"+A126","v":"PR"},8.85,null,null,8.85,{"$f":"IF(VLOOKUP(AF126,Group,3,FALSE)=\"YES\",VLOOKUP(ROUND(ROUND(AJ126,1)-AJ126,2),Round,2,FALSE)+VLOOKUP(AF126,Group,4,FALSE),0)","v":0},{"$f":"IF(VLOOKUP(AF126,Group,5,FALSE)=\"\",0,ROUND(AJ126-0.04999,1)-AJ126+AM126)","v":0},{"$f":"IF(VLOOKUP(AF126,Group,5,FALSE)=\"\",\"\",VLOOKUP(AF126,Group,5,FALSE))","v":""},null,"X"]
["PR","Barwalt - All Other",null,"PR14H",null,"1/4\"  +",null,"16040 - Clamshell",null,null,null,"- 400 Count",null,null,"Barwalt",null,null,null,{"$f":"IF(Suggested=\"Yes\",'Price List'!AA127,'Price List'!AG127)","v":8.85},"EA",{"$f":"+Instructions!$B$3","v":"N"},null,{"$f":"+Instructions!$D$22","v":0},8.85,null,"",8.85,0,8.85,0,null,{"$f":"+A127","v":"PR"},8.85,null,null,8.85,{"$f":"IF(VLOOKUP(AF127,Group,3,FALSE)=\"YES\",VLOOKUP(ROUND(ROUND(AJ127,1)-AJ127,2),Round,2,FALSE)+VLOOKUP(AF127,Group,4,FALSE),0)","v":0},{"$f":"IF(VLOOKUP(AF127,Group,5,FALSE)=\"\",0,ROUND(AJ127-0.04999,1)-AJ127+AM127)","v":0},{"$f":"IF(VLOOKUP(AF127,Group,5,FALSE)=\"\",\"\",VLOOKUP(AF127,Group,5,FALSE))","v":""},null,"X"]
[null,null,null,null,null,null,null,null,null,null,null,null,null,null,null,null,null,null,null,null,null,null,null,null,null,null,null,null,null,null,null,null,null,null,null,null,null,null,null,null,"X"]
["PR","Barwalt - All Other",null,"PR116TH",null,"1/16\"  T",null,"16100 - Clamshell",null,null,null,"- 500 Count",null,null,"Barwalt",null,"Stock","new",{"$f":"IF(Suggested=\"Yes\",'Price List'!AA129,'Price List'!AG129)","v":8.85},"EA",{"$f":"+Instructions!$B$3","v":"N"},null,{"$f":"+Instructions!$D$22","v":0},{"$f":"ROUND($AA129*(1-W129)+0.004999,2)","v":8.85},null,"new",8.85,{"$f":"+W129","v":0},{"$f":"+X129","v":8.85},{"$f":"(AG129-AC129)/AG129","v":0},null,{"$f":"+A129","v":"PR"},{"$f":"SUM(AJ129:AL129)+AE129","v":8.85},null,null,{"$f":"ROUND(AC129/(1-VLOOKUP(AF129,Group,2,FALSE)),2)","v":8.85},{"$f":"IF(VLOOKUP(AF129,Group,3,FALSE)=\"YES\",VLOOKUP(ROUND(ROUND(AJ129,1)-AJ129,2),Round,2,FALSE)+VLOOKUP(AF129,Group,4,FALSE),0)","v":0},{"$f":"IF(VLOOKUP(AF129,Group,5,FALSE)=\"\",0,ROUND(AJ129-0.04999,1)-AJ129+AM129)","v":0},{"$f":"IF(VLOOKUP(AF129,Group,5,FALSE)=\"\",\"\",VLOOKUP(AF129,Group,5,FALSE))","v":""},null,"X"]
["PR","Barwalt - All Other",null,"PR18TH",null,"1/8\"  T",null,"16120 - Clamshell",null,null,null,"- 500 Count",null,null,"Barwalt",null,"Stock",null,{"$f":"IF(Suggested=\"Yes\",'Price List'!AA130,'Price List'!AG130)","v":8.85},"EA",{"$f":"+Instructions!$B$3","v":"N"},null,{"$f":"+Instructions!$D$22","v":0},8.85,null,"",8.85,0,8.85,0,null,{"$f":"+A130","v":"PR"},8.85,null,null,8.85,{"$f":"IF(VLOOKUP(AF130,Group,3,FALSE)=\"YES\",VLOOKUP(ROUND(ROUND(AJ130,1)-AJ130,2),Round,2,FALSE)+VLOOKUP(AF130,Group,4,FALSE),0)","v":0},{"$f":"IF(VLOOKUP(AF130,Group,5,FALSE)=\"\",0,ROUND(AJ130-0.04999,1)-AJ130+AM130)","v":0},{"$f":"IF(VLOOKUP(AF130,Group,5,FALSE)=\"\",\"\",VLOOKUP(AF130,Group,5,FALSE))","v":""},null,"X"]
["PR","Barwalt - All Other",null,"PR316TH",null,"3/16\"  T",null,"16130 - Clamshell",null,null,null,"- 500 Count",null,null,"Barwalt",null,"Stock",null,{"$f":"IF(Suggested=\"Yes\",'Price List'!AA131,'Price List'!AG131)","v":8.85},"EA",{"$f":"+Instructions!$B$3","v":"N"},null,{"$f":"+Instructions!$D$22","v":0},8.85,null,"",8.85,0,8.85,0,null,{"$f":"+A131","v":"PR"},8.85,null,null,8.85,{"$f":"IF(VLOOKUP(AF131,Group,3,FALSE)=\"YES\",VLOOKUP(ROUND(ROUND(AJ131,1)-AJ131,2),Round,2,FALSE)+VLOOKUP(AF131,Group,4,FALSE),0)","v":0},{"$f":"IF(VLOOKUP(AF131,Group,5,FALSE)=\"\",0,ROUND(AJ131-0.04999,1)-AJ131+AM131)","v":0},{"$f":"IF(VLOOKUP(AF131,Group,5,FALSE)=\"\",\"\",VLOOKUP(AF131,Group,5,FALSE))","v":""},null,"X"]
[null,null,null,null,null,null,null,null,null,null,null,null,null,null,null,null,null,null,null,null,null,null,null,null,null,null,null,null,null,null,null,null,null,null,null,null,null,null,null,null,"X"]
[null,null,null,"Precision Tile Spacers",null,null,null,null,null,null,null,null,null,null,null,null,null,null,null,null,null,null,null,null,null,null,null,null,null,null,null,null,null,null,null,null,null,null,null,null,"X"]
["PR","Barwalt - All Other",null,"PR18",null,"1/8\"  +",null,"10020 - Bag",null,null,null,"- 200 Count",null,null,"Barwalt",null,"Stock",null,{"$f":"IF(Suggested=\"Yes\",'Price List'!AA134,'Price List'!AG134)","v":2.2999999999999998},"EA",{"$f":"+Instructions!$B$3","v":"N"},null,{"$f":"+Instructions!$D$22","v":0},2.2999999999999998,null,"",2.2999999999999998,0,2.2999999999999998,0,null,{"$f":"+A134","v":"PR"},2.2999999999999998,null,null,2.2999999999999998,{"$f":"IF(VLOOKUP(AF134,Group,3,FALSE)=\"YES\",VLOOKUP(ROUND(ROUND(AJ134,1)-AJ134,2),Round,2,FALSE)+VLOOKUP(AF134,Group,4,FALSE),0)","v":0},{"$f":"IF(VLOOKUP(AF134,Group,5,FALSE)=\"\",0,ROUND(AJ134-0.04999,1)-AJ134+AM134)","v":0},{"$f":"IF(VLOOKUP(AF134,Group,5,FALSE)=\"\",\"\",VLOOKUP(AF134,Group,5,FALSE))","v":""},null,"X"]
["PR","Barwalt - All Other",null,"PR316",null,"3/16\"  + ",null,"10030 - Bag",null,null,null,"- 150 Count",null,null,"Barwalt",null,"Stock",null,{"$f":"IF(Suggested=\"Yes\",'Price List'!AA135,'Price List'!AG135)","v":2.2999999999999998},"EA",{"$f":"+Instructions!$B$3","v":"N"},null,{"$f":"+Instructions!$D$22","v":0},2.2999999999999998,null,"",2.2999999999999998,0,2.2999999999999998,0,null,{"$f":"+A135","v":"PR"},2.2999999999999998,null,null,2.2999999999999998,{"$f":"IF(VLOOKUP(AF135,Group,3,FALSE)=\"YES\",VLOOKUP(ROUND(ROUND(AJ135,1)-AJ135,2),Round,2,FALSE)+VLOOKUP(AF135,Group,4,FALSE),0)","v":0},{"$f":"IF(VLOOKUP(AF135,Group,5,FALSE)=\"\",0,ROUND(AJ135-0.04999,1)-AJ135+AM135)","v":0},{"$f":"IF(VLOOKUP(AF135,Group,5,FALSE)=\"\",\"\",VLOOKUP(AF135,Group,5,FALSE))","v":""},null,"X"]
[null,null,null,null,null,null,null,null,null,null,null,null,null,null,null,null,null,null,null,null,null,null,null,null,null,null,null,null,null,null,null,null,null,null,null,null,null,null,null,null,"X"]
[null,null,null,"Horseshoe Shim Spacers",null,null,null,null,null,null,null,null,null,null,null,null,null,null,null,null,null,null,null,null,null,null,null,null,null,null,null,null,null,null,null,null,null,null,null,null,"X"]
["PR","Barwalt - All Other",null,"PR116U",null,"1/16\" U",null,"12000 - Box",null,null,null,"- 270 Count",null,null,"Barwalt",null,"Stock",null,{"$f":"IF(Suggested=\"Yes\",'Price List'!AA138,'Price List'!AG138)","v":18.95},"EA",{"$f":"+Instructions!$B$3","v":"N"},null,{"$f":"+Instructions!$D$22","v":0},18.95,null,"",18.95,0,18.95,0,null,{"$f":"+A138","v":"PR"},18.95,null,null,18.95,{"$f":"IF(VLOOKUP(AF138,Group,3,FALSE)=\"YES\",VLOOKUP(ROUND(ROUND(AJ138,1)-AJ138,2),Round,2,FALSE)+VLOOKUP(AF138,Group,4,FALSE),0)","v":0},{"$f":"IF(VLOOKUP(AF138,Group,5,FALSE)=\"\",0,ROUND(AJ138-0.04999,1)-AJ138+AM138)","v":0},{"$f":"IF(VLOOKUP(AF138,Group,5,FALSE)=\"\",\"\",VLOOKUP(AF138,Group,5,FALSE))","v":""},null,"X"]
["PR","Barwalt - All Other",null,"PR18U",null,"1/8 U",null,"12020 - Box",null,null,null,"- 160 Count",null,null,"Barwalt",null,"Stock",null,{"$f":"IF(Suggested=\"Yes\",'Price List'!AA139,'Price List'!AG139)","v":13.45},"EA",{"$f":"+Instructions!$B$3","v":"N"},null,{"$f":"+Instructions!$D$22","v":0},13.45,null,"",13.45,0,13.45,0,null,{"$f":"+A139","v":"PR"},13.45,null,null,13.45,{"$f":"IF(VLOOKUP(AF139,Group,3,FALSE)=\"YES\",VLOOKUP(ROUND(ROUND(AJ139,1)-AJ139,2),Round,2,FALSE)+VLOOKUP(AF139,Group,4,FALSE),0)","v":0},{"$f":"IF(VLOOKUP(AF139,Group,5,FALSE)=\"\",0,ROUND(AJ139-0.04999,1)-AJ139+AM139)","v":0},{"$f":"IF(VLOOKUP(AF139,Group,5,FALSE)=\"\",\"\",VLOOKUP(AF139,Group,5,FALSE))","v":""},null,"X"]
[null,null,null,null,null,null,null,null,null,null,null,null,null,null,null,null,null,null,null,null,null,null,null,null,null,null,null,null,null,null,null,null,null,null,null,null,null,null,null,null,"X"]
[null,null,null,"Wedges",null,null,null,null,null,null,null,null,null,null,null,null,null,null,null,null,null,null,null,null,null,null,null,null,null,null,null,null,null,null,null,null,null,null,null,null,"X"]
["PR","Barwalt - All Other",null,"PRWEDGEJAR",null,null,null,"12370 - Reg. Wedges",null,null,null,"- 450 Count",null,null,"Barwalt",null,"Stock",null,{"$f":"IF(Suggested=\"Yes\",'Price List'!AA142,'Price List'!AG142)","v":6.4},"EA",{"$f":"+Instructions!$B$3","v":"N"},null,{"$f":"+Instructions!$D$22","v":0},6.4,null,"",6.4,0,6.4,0,null,{"$f":"+A142","v":"PR"},6.4,null,null,6.4,{"$f":"IF(VLOOKUP(AF142,Group,3,FALSE)=\"YES\",VLOOKUP(ROUND(ROUND(AJ142,1)-AJ142,2),Round,2,FALSE)+VLOOKUP(AF142,Group,4,FALSE),0)","v":0},{"$f":"IF(VLOOKUP(AF142,Group,5,FALSE)=\"\",0,ROUND(AJ142-0.04999,1)-AJ142+AM142)","v":0},{"$f":"IF(VLOOKUP(AF142,Group,5,FALSE)=\"\",\"\",VLOOKUP(AF142,Group,5,FALSE))","v":""},null,"X"]
["PR","Barwalt - All Other",null,"PRWEDGESUPER",null,null,null,"12380 - Super Wedges",null,null,null,"- 75 Count",null,null,"Barwalt",null,"Stock",null,{"$f":"IF(Suggested=\"Yes\",'Price List'!AA143,'Price List'!AG143)","v":6.4},"EA",{"$f":"+Instructions!$B$3","v":"N"},null,{"$f":"+Instructions!$D$22","v":0},6.4,null,"",6.4,0,6.4,0,null,{"$f":"+A143","v":"PR"},6.4,null,null,6.4,{"$f":"IF(VLOOKUP(AF143,Group,3,FALSE)=\"YES\",VLOOKUP(ROUND(ROUND(AJ143,1)-AJ143,2),Round,2,FALSE)+VLOOKUP(AF143,Group,4,FALSE),0)","v":0},{"$f":"IF(VLOOKUP(AF143,Group,5,FALSE)=\"\",0,ROUND(AJ143-0.04999,1)-AJ143+AM143)","v":0},{"$f":"IF(VLOOKUP(AF143,Group,5,FALSE)=\"\",\"\",VLOOKUP(AF143,Group,5,FALSE))","v":""},null,"X"]
["PR","Barwalt - All Other",null,"PR16370",null,null,null,"16370 - Gripper Wedges",null,null,null,"- 550 Count",null,null,"Barwalt",null,null,null,{"$f":"IF(Suggested=\"Yes\",'Price List'!AA144,'Price List'!AG144)","v":8.9},"EA",{"$f":"+Instructions!$B$3","v":"N"},null,{"$f":"+Instructions!$D$22","v":0},8.9,null,"",8.9,0,8.9,0,null,{"$f":"+A144","v":"PR"},8.9,null,null,8.9,{"$f":"IF(VLOOKUP(AF144,Group,3,FALSE)=\"YES\",VLOOKUP(ROUND(ROUND(AJ144,1)-AJ144,2),Round,2,FALSE)+VLOOKUP(AF144,Group,4,FALSE),0)","v":0},{"$f":"IF(VLOOKUP(AF144,Group,5,FALSE)=\"\",0,ROUND(AJ144-0.04999,1)-AJ144+AM144)","v":0},{"$f":"IF(VLOOKUP(AF144,Group,5,FALSE)=\"\",\"\",VLOOKUP(AF144,Group,5,FALSE))","v":""},null,"X"]
[null,null,null,null,null,null,null,null,null,null,null,null,null,null,null,null,null,null,null,null,null,null,null,null,null,null,null,null,null,null,null,null,null,null,null,null,null,null,null,null,"X"]
[null,null,null,"Chasers/Removers",null,null,null,null,null,null,null,null,null,null,null,null,null,null,null,null,null,null,null,null,null,null,null,null,null,null,null,null,null,null,null,null,null,null,null,null,"X"]
["PR","Barwalt - All Other",null,"PRSC1",null,"84000 SC-1 Spacer Chaser",null,null,null,null,null,null,null,null,"Barwalt",null,null,null,{"$f":"IF(Suggested=\"Yes\",'Price List'!AA147,'Price List'!AG147)","v":3.55},"EA",{"$f":"+Instructions!$B$3","v":"N"},null,{"$f":"+Instructions!$D$22","v":0},3.55,null,"YES",3.55,0,3.55,0,null,{"$f":"+A147","v":"PR"},3.55,null,null,3.55,{"$f":"IF(VLOOKUP(AF147,Group,3,FALSE)=\"YES\",VLOOKUP(ROUND(ROUND(AJ147,1)-AJ147,2),Round,2,FALSE)+VLOOKUP(AF147,Group,4,FALSE),0)","v":0},{"$f":"IF(VLOOKUP(AF147,Group,5,FALSE)=\"\",0,ROUND(AJ147-0.04999,1)-AJ147+AM147)","v":0},{"$f":"IF(VLOOKUP(AF147,Group,5,FALSE)=\"\",\"\",VLOOKUP(AF147,Group,5,FALSE))","v":""},null,"X"]
[null,null,null,null,null,null,null,null,null,null,null,null,null,null,null,null,null,null,null,null,null,null,null,null,null,null,null,null,null,null,null,null,null,null,null,null,null,null,null,null,"X"]
[null,null,"Lippage Reduction Systems",null,null,null,null,null,null,null,null,null,null,null,null,null,null,null,null,null,null,null,null,null,null,null,null,null,null,null,null,null,null,null,null,null,null,null,null,null,"X"]
[null,null,null,null,null,null,null,null,null,null,null,null,null,null,null,null,null,null,null,null,null,null,null,null,null,null,null,null,null,null,null,null,null,null,null,null,null,null,null,null,"X"]
[null,null,null,"ProLeveling System",null,null,null,null,null,null,null,null,null,null,null,null,null,null,null,null,null,null,null,null,null,null,null,null,null,null,null,null,null,null,null,null,null,null,null,null,"X"]
[null,null,null,null,null,null,null,null,null,null,null,null,null,null,null,null,null,null,null,null,null,null,null,null,null,null,null,null,null,null,null,null,null,null,null,null,null,null,null,null,"X"]
["PP","Progress Profiles - All",null,"PPPRSL1",null,"1 mm - 1/16\"",null,"PRSL1","Linear Levelers",null,null,null,"- 100 Count",null,"Progress",null,"Stock",null,{"$f":"IF(Suggested=\"Yes\",'Price List'!AA153,'Price List'!AG153)","v":32.25},"EA",{"$f":"+Instructions!$B$3","v":"N"},null,{"$f":"+Instructions!$D$22","v":0},{"$f":"ROUND($AA153*(1-W153)+0.004999,2)","v":32.25},null,"YES",32.25,{"$f":"+W153","v":0},{"$f":"+X153","v":32.25},{"$f":"(AG153-AC153)/AG153","v":0},null,{"$f":"+A153","v":"PP"},{"$f":"SUM(AJ153:AL153)+AE153","v":32.25},null,null,{"$f":"ROUND(AC153/(1-VLOOKUP(AF153,Group,2,FALSE)),2)","v":32.25},{"$f":"IF(VLOOKUP(AF153,Group,3,FALSE)=\"YES\",VLOOKUP(ROUND(ROUND(AJ153,1)-AJ153,2),Round,2,FALSE)+VLOOKUP(AF153,Group,4,FALSE),0)","v":0},{"$f":"IF(VLOOKUP(AF153,Group,5,FALSE)=\"\",0,ROUND(AJ153-0.04999,1)-AJ153+AM153)","v":0},{"$f":"IF(VLOOKUP(AF153,Group,5,FALSE)=\"\",\"\",VLOOKUP(AF153,Group,5,FALSE))","v":""},null,"X"]
["PP","Progress Profiles - All",null,"PPPRSL2",null,"2 mm - 3/32\"",null,"PRSL2","Linear Levelers",null,null,null,"- 100 Count",null,"Progress",null,"Stock",null,{"$f":"IF(Suggested=\"Yes\",'Price List'!AA154,'Price List'!AG154)","v":42.25},"EA",{"$f":"+Instructions!$B$3","v":"N"},null,{"$f":"+Instructions!$D$22","v":0},42.25,null,"YES",42.25,0,42.25,0,null,{"$f":"+A154","v":"PP"},42.25,null,null,42.25,{"$f":"IF(VLOOKUP(AF154,Group,3,FALSE)=\"YES\",VLOOKUP(ROUND(ROUND(AJ154,1)-AJ154,2),Round,2,FALSE)+VLOOKUP(AF154,Group,4,FALSE),0)","v":0},{"$f":"IF(VLOOKUP(AF154,Group,5,FALSE)=\"\",0,ROUND(AJ154-0.04999,1)-AJ154+AM154)","v":0},{"$f":"IF(VLOOKUP(AF154,Group,5,FALSE)=\"\",\"\",VLOOKUP(AF154,Group,5,FALSE))","v":""},null,"X"]
["PP","Progress Profiles - All",null,"PPPRSL3",null,"3 mm - 1/8\"",null,"PRSL3","Linear Levelers",null,null,null,"- 100 Count",null,"Progress",null,"Stock",null,{"$f":"IF(Suggested=\"Yes\",'Price List'!AA155,'Price List'!AG155)","v":42.25},"EA",{"$f":"+Instructions!$B$3","v":"N"},null,{"$f":"+Instructions!$D$22","v":0},42.25,null,"YES",42.25,0,42.25,0,null,{"$f":"+A155","v":"PP"},42.25,null,null,42.25,{"$f":"IF(VLOOKUP(AF155,Group,3,FALSE)=\"YES\",VLOOKUP(ROUND(ROUND(AJ155,1)-AJ155,2),Round,2,FALSE)+VLOOKUP(AF155,Group,4,FALSE),0)","v":0},{"$f":"IF(VLOOKUP(AF155,Group,5,FALSE)=\"\",0,ROUND(AJ155-0.04999,1)-AJ155+AM155)","v":0},{"$f":"IF(VLOOKUP(AF155,Group,5,FALSE)=\"\",\"\",VLOOKUP(AF155,Group,5,FALSE))","v":""},null,"X"]
["PP","Progress Profiles - All",null,"PPPRSL5",null,"5 mm - 3/16\"",null,"PRSL5","Linear Levelers",null,null,null,"- 100 Count",null,"Progress",null,"Stock",null,{"$f":"IF(Suggested=\"Yes\",'Price List'!AA156,'Price List'!AG156)","v":42.25},"EA",{"$f":"+Instructions!$B$3","v":"N"},null,{"$f":"+Instructions!$D$22","v":0},42.25,null,"YES",42.25,0,42.25,0,null,{"$f":"+A156","v":"PP"},42.25,null,null,42.25,{"$f":"IF(VLOOKUP(AF156,Group,3,FALSE)=\"YES\",VLOOKUP(ROUND(ROUND(AJ156,1)-AJ156,2),Round,2,FALSE)+VLOOKUP(AF156,Group,4,FALSE),0)","v":0},{"$f":"IF(VLOOKUP(AF156,Group,5,FALSE)=\"\",0,ROUND(AJ156-0.04999,1)-AJ156+AM156)","v":0},{"$f":"IF(VLOOKUP(AF156,Group,5,FALSE)=\"\",\"\",VLOOKUP(AF156,Group,5,FALSE))","v":""},null,"X"]
[null,null,null,null,null,null,null,null,null,null,null,null,null,null,null,null,null,null,null,null,null,null,null,null,null,null,null,null,null,null,null,null,null,null,null,null,null,null,null,null,"X"]
["PP","Progress Profiles - All",null,"PPPRST1",null,"1 mm - 1/16\"",null,"PRST1","T-Shaped Levelers",null,null,null,"- 100 Count",null,"Progress",null,"Stock",null,{"$f":"IF(Suggested=\"Yes\",'Price List'!AA158,'Price List'!AG158)","v":42.25},"EA",{"$f":"+Instructions!$B$3","v":"N"},null,{"$f":"+Instructions!$D$22","v":0},42.25,null,"YES",42.25,0,42.25,0,null,{"$f":"+A158","v":"PP"},42.25,null,null,42.25,{"$f":"IF(VLOOKUP(AF158,Group,3,FALSE)=\"YES\",VLOOKUP(ROUND(ROUND(AJ158,1)-AJ158,2),Round,2,FALSE)+VLOOKUP(AF158,Group,4,FALSE),0)","v":0},{"$f":"IF(VLOOKUP(AF158,Group,5,FALSE)=\"\",0,ROUND(AJ158-0.04999,1)-AJ158+AM158)","v":0},{"$f":"IF(VLOOKUP(AF158,Group,5,FALSE)=\"\",\"\",VLOOKUP(AF158,Group,5,FALSE))","v":""},null,"X"]
["PP","Progress Profiles - All",null,"PPPRST2",null,"2 mm - 3/32\"",null,"PRST2","T-Shaped Levelers",null,null,null,"- 100 Count",null,"Progress",null,"Stock",null,{"$f":"IF(Suggested=\"Yes\",'Price List'!AA159,'Price List'!AG159)","v":42.25},"EA",{"$f":"+Instructions!$B$3","v":"N"},null,{"$f":"+Instructions!$D$22","v":0},42.25,null,"YES",42.25,0,42.25,0,null,{"$f":"+A159","v":"PP"},42.25,null,null,42.25,{"$f":"IF(VLOOKUP(AF159,Group,3,FALSE)=\"YES\",VLOOKUP(ROUND(ROUND(AJ159,1)-AJ159,2),Round,2,FALSE)+VLOOKUP(AF159,Group,4,FALSE),0)","v":0},{"$f":"IF(VLOOKUP(AF159,Group,5,FALSE)=\"\",0,ROUND(AJ159-0.04999,1)-AJ159+AM159)","v":0},{"$f":"IF(VLOOKUP(AF159,Group,5,FALSE)=\"\",\"\",VLOOKUP(AF159,Group,5,FALSE))","v":""},null,"X"]
["PP","Progress Profiles - All",null,"PPPRST3",null,"3 mm - 1/8\"",null,"PRST3","T-Shaped Levelers",null,null,null,"- 100 Count",null,"Progress",null,"Stock",null,{"$f":"IF(Suggested=\"Yes\",'Price List'!AA160,'Price List'!AG160)","v":42.25},"EA",{"$f":"+Instructions!$B$3","v":"N"},null,{"$f":"+Instructions!$D$22","v":0},42.25,null,"YES",42.25,0,42.25,0,null,{"$f":"+A160","v":"PP"},42.25,null,null,42.25,{"$f":"IF(VLOOKUP(AF160,Group,3,FALSE)=\"YES\",VLOOKUP(ROUND(ROUND(AJ160,1)-AJ160,2),Round,2,FALSE)+VLOOKUP(AF160,Group,4,FALSE),0)","v":0},{"$f":"IF(VLOOKUP(AF160,Group,5,FALSE)=\"\",0,ROUND(AJ160-0.04999,1)-AJ160+AM160)","v":0},{"$f":"IF(VLOOKUP(AF160,Group,5,FALSE)=\"\",\"\",VLOOKUP(AF160,Group,5,FALSE))","v":""},null,"X"]
["PP","Progress Profiles - All",null,"PPPRST5",null,"5 mm - 3/16\"",null,"PRST5","T-Shaped Levelers",null,null,null,"- 100 Count",null,"Progress",null,"Stock",null,{"$f":"IF(Suggested=\"Yes\",'Price List'!AA161,'Price List'!AG161)","v":42.25},"EA",{"$f":"+Instructions!$B$3","v":"N"},null,{"$f":"+Instructions!$D$22","v":0},42.25,null,"YES",42.25,0,42.25,0,null,{"$f":"+A161","v":"PP"},42.25,null,null,42.25,{"$f":"IF(VLOOKUP(AF161,Group,3,FALSE)=\"YES\",VLOOKUP(ROUND(ROUND(AJ161,1)-AJ161,2),Round,2,FALSE)+VLOOKUP(AF161,Group,4,FALSE),0)","v":0},{"$f":"IF(VLOOKUP(AF161,Group,5,FALSE)=\"\",0,ROUND(AJ161-0.04999,1)-AJ161+AM161)","v":0},{"$f":"IF(VLOOKUP(AF161,Group,5,FALSE)=\"\",\"\",VLOOKUP(AF161,Group,5,FALSE))","v":""},null,"X"]
[null,null,null,null,null,null,null,null,null,null,null,null,null,null,null,null,null,null,null,null,null,null,null,null,null,null,null,null,null,null,null,null,null,null,null,null,null,null,null,null,"X"]
["PP","Progress Profiles - All",null,"PPPRSC1",null,"1 mm - 1/16\"",null,"PRSC1","Cross-Shaped Levelers",null,null,null,"- 100 Count",null,"Progress",null,"Stock",null,{"$f":"IF(Suggested=\"Yes\",'Price List'!AA163,'Price List'!AG163)","v":42.25},"EA",{"$f":"+Instructions!$B$3","v":"N"},null,{"$f":"+Instructions!$D$22","v":0},42.25,null,"YES",42.25,0,42.25,0,null,{"$f":"+A163","v":"PP"},42.25,null,null,42.25,{"$f":"IF(VLOOKUP(AF163,Group,3,FALSE)=\"YES\",VLOOKUP(ROUND(ROUND(AJ163,1)-AJ163,2),Round,2,FALSE)+VLOOKUP(AF163,Group,4,FALSE),0)","v":0},{"$f":"IF(VLOOKUP(AF163,Group,5,FALSE)=\"\",0,ROUND(AJ163-0.04999,1)-AJ163+AM163)","v":0},{"$f":"IF(VLOOKUP(AF163,Group,5,FALSE)=\"\",\"\",VLOOKUP(AF163,Group,5,FALSE))","v":""},null,"X"]
["PP","Progress Profiles - All",null,"PPPRSC2",null,"2 mm - 3/32\"",null,"PRSC2","Cross-Shaped Levelers",null,null,null,"- 100 Count",null,"Progress",null,"Stock",null,{"$f":"IF(Suggested=\"Yes\",'Price List'!AA164,'Price List'!AG164)","v":42.25},"EA",{"$f":"+Instructions!$B$3","v":"N"},null,{"$f":"+Instructions!$D$22","v":0},42.25,null,"YES",42.25,0,42.25,0,null,{"$f":"+A164","v":"PP"},42.25,null,null,42.25,{"$f":"IF(VLOOKUP(AF164,Group,3,FALSE)=\"YES\",VLOOKUP(ROUND(ROUND(AJ164,1)-AJ164,2),Round,2,FALSE)+VLOOKUP(AF164,Group,4,FALSE),0)","v":0},{"$f":"IF(VLOOKUP(AF164,Group,5,FALSE)=\"\",0,ROUND(AJ164-0.04999,1)-AJ164+AM164)","v":0},{"$f":"IF(VLOOKUP(AF164,Group,5,FALSE)=\"\",\"\",VLOOKUP(AF164,Group,5,FALSE))","v":""},null,"X"]
["PP","Progress Profiles - All",null,"PPPRSC3",null,"3 mm - 1/8\"",null,"PRSC3","Cross-Shaped Levelers",null,null,null,"- 100 Count",null,"Progress",null,"Stock",null,{"$f":"IF(Suggested=\"Yes\",'Price List'!AA165,'Price List'!AG165)","v":42.25},"EA",{"$f":"+Instructions!$B$3","v":"N"},null,{"$f":"+Instructions!$D$22","v":0},42.25,null,"YES",42.25,0,42.25,0,null,{"$f":"+A165","v":"PP"},42.25,null,null,42.25,{"$f":"IF(VLOOKUP(AF165,Group,3,FALSE)=\"YES\",VLOOKUP(ROUND(ROUND(AJ165,1)-AJ165,2),Round,2,FALSE)+VLOOKUP(AF165,Group,4,FALSE),0)","v":0},{"$f":"IF(VLOOKUP(AF165,Group,5,FALSE)=\"\",0,ROUND(AJ165-0.04999,1)-AJ165+AM165)","v":0},{"$f":"IF(VLOOKUP(AF165,Group,5,FALSE)=\"\",\"\",VLOOKUP(AF165,Group,5,FALSE))","v":""},null,"X"]
["PP","Progress Profiles - All",null,"PPPRSC5",null,"5 mm - 3/16\"",null,"PRSC5","Cross-Shaped Levelers",null,null,null,"- 100 Count",null,"Progress",null,"Stock",null,{"$f":"IF(Suggested=\"Yes\",'Price List'!AA166,'Price List'!AG166)","v":42.25},"EA",{"$f":"+Instructions!$B$3","v":"N"},null,{"$f":"+Instructions!$D$22","v":0},42.25,null,"YES",42.25,0,42.25,0,null,{"$f":"+A166","v":"PP"},42.25,null,null,42.25,{"$f":"IF(VLOOKUP(AF166,Group,3,FALSE)=\"YES\",VLOOKUP(ROUND(ROUND(AJ166,1)-AJ166,2),Round,2,FALSE)+VLOOKUP(AF166,Group,4,FALSE),0)","v":0},{"$f":"IF(VLOOKUP(AF166,Group,5,FALSE)=\"\",0,ROUND(AJ166-0.04999,1)-AJ166+AM166)","v":0},{"$f":"IF(VLOOKUP(AF166,Group,5,FALSE)=\"\",\"\",VLOOKUP(AF166,Group,5,FALSE))","v":""},null,"X"]
[null,null,null,null,null,null,null,null,null,null,null,null,null,null,null,null,null,null,null,null,null,null,null,null,null,null,null,null,null,null,null,null,null,null,null,null,null,null,null,null,"X"]
["PP","Progress Profiles - All",null,"PPPRST",null,"PRST","Universal Rotating Pommel Cap (re-usable)",null,null,null,null,null,"- 50 Count",null,"Progress",null,"Stock",null,{"$f":"IF(Suggested=\"Yes\",'Price List'!AA168,'Price List'!AG168)","v":80.45},"EA",{"$f":"+Instructions!$B$3","v":"N"},null,{"$f":"+Instructions!$D$22","v":0},80.45,null,"YES",80.45,0,80.45,0,null,{"$f":"+A168","v":"PP"},80.45,null,null,80.45,{"$f":"IF(VLOOKUP(AF168,Group,3,FALSE)=\"YES\",VLOOKUP(ROUND(ROUND(AJ168,1)-AJ168,2),Round,2,FALSE)+VLOOKUP(AF168,Group,4,FALSE),0)","v":0},{"$f":"IF(VLOOKUP(AF168,Group,5,FALSE)=\"\",0,ROUND(AJ168-0.04999,1)-AJ168+AM168)","v":0},{"$f":"IF(VLOOKUP(AF168,Group,5,FALSE)=\"\",\"\",VLOOKUP(AF168,Group,5,FALSE))","v":""},null,"X"]
["PP","Progress Profiles - All",null,"PPPRSTT",null,"PRSTT","Transparent Rotating Pommel Cap (re-usable)",null,null,null,null,null,"- 50 Count",null,"Progress",null,"Stock",null,{"$f":"IF(Suggested=\"Yes\",'Price List'!AA169,'Price List'!AG169)","v":95.5},"EA",{"$f":"+Instructions!$B$3","v":"N"},null,{"$f":"+Instructions!$D$22","v":0},{"$f":"ROUND($AA169*(1-W169)+0.004999,2)","v":95.5},null,"YES",95.5,{"$f":"+W169","v":0},{"$f":"+X169","v":95.5},{"$f":"(AG169-AC169)/AG169","v":0},null,{"$f":"+A169","v":"PP"},{"$f":"SUM(AJ169:AL169)+AE169","v":95.5},null,null,{"$f":"ROUND(AC169/(1-VLOOKUP(AF169,Group,2,FALSE)),2)","v":95.5},{"$f":"IF(VLOOKUP(AF169,Group,3,FALSE)=\"YES\",VLOOKUP(ROUND(ROUND(AJ169,1)-AJ169,2),Round,2,FALSE)+VLOOKUP(AF169,Group,4,FALSE),0)","v":0},{"$f":"IF(VLOOKUP(AF169,Group,5,FALSE)=\"\",0,ROUND(AJ169-0.04999,1)-AJ169+AM169)","v":0},{"$f":"IF(VLOOKUP(AF169,Group,5,FALSE)=\"\",\"\",VLOOKUP(AF169,Group,5,FALSE))","v":""},null,"X"]
["PP","Progress Profiles - All",null,"PPPRSPC",null,"PRSPC","System Protection Cap (re-usable)",null,null,null,null,null,"- 50 Count",null,"Progress",null,"Stock",null,{"$f":"IF(Suggested=\"Yes\",'Price List'!AA170,'Price List'!AG170)","v":80.349999999999994},"EA",{"$f":"+Instructions!$B$3","v":"N"},null,{"$f":"+Instructions!$D$22","v":0},80.349999999999994,null,"YES",80.349999999999994,0,80.349999999999994,0,null,{"$f":"+A170","v":"PP"},80.349999999999994,null,null,80.349999999999994,{"$f":"IF(VLOOKUP(AF170,Group,3,FALSE)=\"YES\",VLOOKUP(ROUND(ROUND(AJ170,1)-AJ170,2),Round,2,FALSE)+VLOOKUP(AF170,Group,4,FALSE),0)","v":0},{"$f":"IF(VLOOKUP(AF170,Group,5,FALSE)=\"\",0,ROUND(AJ170-0.04999,1)-AJ170+AM170)","v":0},{"$f":"IF(VLOOKUP(AF170,Group,5,FALSE)=\"\",\"\",VLOOKUP(AF170,Group,5,FALSE))","v":""},null,"X"]
["PP","Progress Profiles - All",null,"PPPRSSV",null,"PRSSV","Pommel Remover",null,null,null,null,null,null,null,"Progress",null,"Stock",null,{"$f":"IF(Suggested=\"Yes\",'Price List'!AA171,'Price List'!AG171)","v":1.6},"EA",{"$f":"+Instructions!$B$3","v":"N"},null,{"$f":"+Instructions!$D$22","v":0},1.6,null,"YES",1.6,0,1.6,0,null,{"$f":"+A171","v":"PP"},1.6,null,null,1.6,{"$f":"IF(VLOOKUP(AF171,Group,3,FALSE)=\"YES\",VLOOKUP(ROUND(ROUND(AJ171,1)-AJ171,2),Round,2,FALSE)+VLOOKUP(AF171,Group,4,FALSE),0)","v":0},{"$f":"IF(VLOOKUP(AF171,Group,5,FALSE)=\"\",0,ROUND(AJ171-0.04999,1)-AJ171+AM171)","v":0},{"$f":"IF(VLOOKUP(AF171,Group,5,FALSE)=\"\",\"\",VLOOKUP(AF171,Group,5,FALSE))","v":""},null,"X"]
[null,null,null,null,null,null,null,null,null,null,null,null,null,null,null,null,null,null,null,null,null,null,null,null,null,null,null,null,null,null,null,null,null,null,null,null,null,null,null,null,"X"]
[null,null,"continued on the next page",null,null,null,null,null,null,null,null,null,null,null,null,null,null,null,null,null,null,null,null,null,null,null,null,null,null,null,null,null,null,null,null,null,null,null,null,null,"X"]
[null,null,"Lippage Reduction Systems (continued)",null,null,null,null,null,null,null," "]
[]
[null,null,null,"Delta Leveling System",null,null,null,null,null,null,null,null,null,null,null,null,null,null,null,null,null,null,null,null,null,null,null,null,null,null,null,null,null,null,null,null,null,null,null,null,"X"]
[]
["RU","Rubi - All Other",null,"RU03938",null,"1/16\" Clip",null,"02842 Delta Leveling System",null,null,null,null,"- 400 Count",null,"Rubi",null,"Stock",null,{"$f":"IF(Suggested=\"Yes\",'Price List'!AA178,'Price List'!AG178)","v":44.4},"EA",{"$f":"+Instructions!$B$3","v":"N"},null,{"$f":"+Instructions!$D$22","v":0},{"$f":"ROUND($AA178*(1-W178)+0.004999,2)","v":44.4},null,"YES",44.4,{"$f":"+W178","v":0},44.4,{"$f":"(AG178-AC178)/AG178","v":0},null,{"$f":"+A178","v":"RU"},{"$f":"SUM(AJ178:AL178)+AE178","v":44.4},null,null,{"$f":"ROUND(AC178/(1-VLOOKUP(AF178,Group,2,FALSE)),2)","v":44.4},{"$f":"IF(VLOOKUP(AF178,Group,3,FALSE)=\"YES\",VLOOKUP(ROUND(ROUND(AJ178,1)-AJ178,2),Round,2,FALSE)+VLOOKUP(AF178,Group,4,FALSE),0)","v":0},{"$f":"IF(VLOOKUP(AF178,Group,5,FALSE)=\"\",0,ROUND(AJ178-0.04999,1)-AJ178+AM178)","v":0},{"$f":"IF(VLOOKUP(AF178,Group,5,FALSE)=\"\",\"\",VLOOKUP(AF178,Group,5,FALSE))","v":""},null,"X"]
["RU","Rubi - All Other",null,"RU02868",null,"1/8\" Clip",null,"02868 Delta Leveling System",null,null,null,null,"- 400 Count",null,"Rubi",null,null,"New",{"$f":"IF(Suggested=\"Yes\",'Price List'!AA179,'Price List'!AG179)","v":41.15},"EA",{"$f":"+Instructions!$B$3","v":"N"},null,{"$f":"+Instructions!$D$22","v":0},{"$f":"ROUND($AA179*(1-W179)+0.004999,2)","v":41.15},null,"YES",41.15,{"$f":"+W179","v":0},{"$f":"+X179","v":41.15},{"$f":"(AG179-AC179)/AG179","v":0},null,{"$f":"+A179","v":"RU"},{"$f":"SUM(AJ179:AL179)+AE179","v":41.15},null,null,{"$f":"ROUND(AC179/(1-VLOOKUP(AF179,Group,2,FALSE)),2)","v":41.15},{"$f":"IF(VLOOKUP(AF179,Group,3,FALSE)=\"YES\",VLOOKUP(ROUND(ROUND(AJ179,1)-AJ179,2),Round,2,FALSE)+VLOOKUP(AF179,Group,4,FALSE),0)","v":0},{"$f":"IF(VLOOKUP(AF179,Group,5,FALSE)=\"\",0,ROUND(AJ179-0.04999,1)-AJ179+AM179)","v":0},{"$f":"IF(VLOOKUP(AF179,Group,5,FALSE)=\"\",\"\",VLOOKUP(AF179,Group,5,FALSE))","v":""},null,"X"]
["RU","Rubi - All Other",null,"RU02845",null,"Wedge",null,"02845 Delta Leveling System",null,null,null,null,"- 400 Count",null,"Rubi",null,"Stock",null,{"$f":"IF(Suggested=\"Yes\",'Price List'!AA180,'Price List'!AG180)","v":56.75},"EA",{"$f":"+Instructions!$B$3","v":"N"},null,{"$f":"+Instructions!$D$22","v":0},{"$f":"ROUND($AA180*(1-W180)+0.004999,2)","v":56.75},null,"YES",56.75,0,56.75,{"$f":"(AG180-AC180)/AG180","v":0},null,{"$f":"+A180","v":"RU"},{"$f":"SUM(AJ180:AL180)+AE180","v":56.75},null,null,{"$f":"ROUND(AC180/(1-VLOOKUP(AF180,Group,2,FALSE)),2)","v":56.75},{"$f":"IF(VLOOKUP(AF180,Group,3,FALSE)=\"YES\",VLOOKUP(ROUND(ROUND(AJ180,1)-AJ180,2),Round,2,FALSE)+VLOOKUP(AF180,Group,4,FALSE),0)","v":0},{"$f":"IF(VLOOKUP(AF180,Group,5,FALSE)=\"\",0,ROUND(AJ180-0.04999,1)-AJ180+AM180)","v":0},{"$f":"IF(VLOOKUP(AF180,Group,5,FALSE)=\"\",\"\",VLOOKUP(AF180,Group,5,FALSE))","v":""},null,"X"]
["RU","Rubi - All Other",null,"RU03901",null,"Pliers",null,"03901 Tile Level Pliers Fast-Fix",null,null,null,null,null,null,"Rubi",null,"Stock",null,{"$f":"IF(Suggested=\"Yes\",'Price List'!AA181,'Price List'!AG181)","v":54.15},"EA",{"$f":"+Instructions!$B$3","v":"N"},null,{"$f":"+Instructions!$D$22","v":0},{"$f":"ROUND($AA181*(1-W181)+0.004999,2)","v":54.15},null,"YES",54.15,0,54.15,{"$f":"(AG181-AC181)/AG181","v":0},null,{"$f":"+A181","v":"RU"},{"$f":"SUM(AJ181:AL181)+AE181","v":54.15},null,null,{"$f":"ROUND(AC181/(1-VLOOKUP(AF181,Group,2,FALSE)),2)","v":54.15},{"$f":"IF(VLOOKUP(AF181,Group,3,FALSE)=\"YES\",VLOOKUP(ROUND(ROUND(AJ181,1)-AJ181,2),Round,2,FALSE)+VLOOKUP(AF181,Group,4,FALSE),0)","v":0},{"$f":"IF(VLOOKUP(AF181,Group,5,FALSE)=\"\",0,ROUND(AJ181-0.04999,1)-AJ181+AM181)","v":0},{"$f":"IF(VLOOKUP(AF181,Group,5,FALSE)=\"\",\"\",VLOOKUP(AF181,Group,5,FALSE))","v":""},null,"X"]
[]
[null,null,"Knee Pads",null,null,null,null,null,null,null,null,null,null,null,null,null,null,null,null,null,null,null,null,null,null,null,null,null,null,null,null,null,null,null,null,null,null,null,null,null,"X"]
[null,null,null,null,null,null,null,null,null,null,null,null,null,null,null,null,null,null,null,null,null,null,null,null,null,null,null,null,null,null,null,null,null,null,null,null,null,null,null,null,"X"]
["PR","Barwalt - All Other",null,"PRKN1",null,"20010 KN-1 UltraLight",null,null,null,null,null,null,null,null,"Barwalt",null,"Stock",null,{"$f":"IF(Suggested=\"Yes\",'Price List'!AA185,'Price List'!AG185)","v":21.95},"EA",{"$f":"+Instructions!$B$3","v":"N"},null,{"$f":"+Instructions!$D$22","v":0},{"$f":"ROUND($AA185*(1-W185)+0.004999,2)","v":21.95},null,"YES",21.95,{"$f":"+W185","v":0},{"$f":"+X185","v":21.95},{"$f":"(AG185-AC185)/AG185","v":0},null,{"$f":"+A185","v":"PR"},{"$f":"SUM(AJ185:AL185)+AE185","v":21.95},null,null,{"$f":"ROUND(AC185/(1-VLOOKUP(AF185,Group,2,FALSE)),2)","v":21.95},{"$f":"IF(VLOOKUP(AF185,Group,3,FALSE)=\"YES\",VLOOKUP(ROUND(ROUND(AJ185,1)-AJ185,2),Round,2,FALSE)+VLOOKUP(AF185,Group,4,FALSE),0)","v":0},{"$f":"IF(VLOOKUP(AF185,Group,5,FALSE)=\"\",0,ROUND(AJ185-0.04999,1)-AJ185+AM185)","v":0},{"$f":"IF(VLOOKUP(AF185,Group,5,FALSE)=\"\",\"\",VLOOKUP(AF185,Group,5,FALSE))","v":""},null,"X"]
["PR","Barwalt - All Other",null,"PRKN1BUTTON",null,null,"20993 Replacement Buttons for KN-1",null,null,null,null,null,null,null,"Barwalt",null,null,null,{"$f":"IF(Suggested=\"Yes\",'Price List'!AA186,'Price List'!AG186)","v":2.9},"EA",{"$f":"+Instructions!$B$3","v":"N"},null,{"$f":"+Instructions!$D$22","v":0},2.9,null,"",2.9,0,2.9,0,null,{"$f":"+A186","v":"PR"},2.9,null,null,2.9,0,0,"",null,"X"]
["PR","Barwalt - All Other",null,"PRKN1LINER",null,null,"20992 Replacement Liner for KN-1",null,null,null,null,null,null,null,"Barwalt",null,null,null,{"$f":"IF(Suggested=\"Yes\",'Price List'!AA187,'Price List'!AG187)","v":7.95},"EA",{"$f":"+Instructions!$B$3","v":"N"},null,{"$f":"+Instructions!$D$22","v":0},7.95,null,"",7.95,0,7.95,0,null,{"$f":"+A187","v":"PR"},7.95,null,null,7.95,0,0,"",null,"X"]
["PR","Barwalt - All Other",null,"PRKN1STRAPS",null,null,"20991 Replacement Straps for KN-1",null,null,null,null,null,null,null,"Barwalt",null,null,null,{"$f":"IF(Suggested=\"Yes\",'Price List'!AA188,'Price List'!AG188)","v":4.5999999999999996},"EA",{"$f":"+Instructions!$B$3","v":"N"},null,{"$f":"+Instructions!$D$22","v":0},4.5999999999999996,null,"",4.5999999999999996,0,4.5999999999999996,0,null,{"$f":"+A188","v":"PR"},4.5999999999999996,null,null,4.5999999999999996,0,0,"",null,"X"]
["TR","Troxell - All Other",null,"TX17209",null,"17-209","Super Soft Knee Pads",null,null,null,null,null,null,null,"Troxell",null,"Stock",null,{"$f":"IF(Suggested=\"Yes\",'Price List'!AA189,'Price List'!AG189)","v":31.95},"EA",{"$f":"+Instructions!$B$3","v":"N"},null,{"$f":"+Instructions!$D$22","v":0},31.95,null,"YES",31.95,0,31.95,0,null,{"$f":"+A189","v":"TR"},31.95,null,null,31.95,0,0,"",null,"X"]
["TR","Troxell - All Other",null,"TX17209L",null,"17-209L Super Soft Knee Pads - Large",null,null,null,null,null,null,null,null,"Troxell",null,"Stock",null,{"$f":"IF(Suggested=\"Yes\",'Price List'!AA190,'Price List'!AG190)","v":41.95},"EA",{"$f":"+Instructions!$B$3","v":"N"},null,{"$f":"+Instructions!$D$22","v":0},41.95,null,"YES",41.95,0,41.95,0,null,{"$f":"+A190","v":"TR"},41.95,null,null,41.95,0,0,"",null,"X"]
[null,null,null,null,null,null,null,null,null,null,null,null,null,null,null,null,null,null,null,null,null,null,null,null,null,null,null,null,null,null,null,null,null,null,null,null,null,null,null,null,"X"]
[null,null,"Wet Saws",null,null,null,null,null,null,null,null,null,null,null,null,null,null,null,null,null,null,null,null,null,null,null,null,null,null,null,null,null,null,null,null,null,null,null,null,null,"X"]
[null,null,null,null,null,null,null,null,null,null,null,null,null,null,null,null,null,null,null,null,null,null,null,null,null,null,null,null,null,null,null,null,null,null,null,null,null,null,null,null,"X"]
[null,null,null,"Saws - Cutting Length 48\" and greater",null,null,null,null,null,null,null,null,null,null,null,null,null,null,null,null,null,null,null,null,null,null,null,null,null,null,null,null,null,null,null,null,null,null,null,null,"X"]
["RU1","Rubi - Saws/Cutters",null,"RUDS2501500",null,"DS250N 1500 Bridge Saw w/ Folding Legs - ZERO DUST",null,null,null,null,null,null,null,null,"Rubi",null,"n/s",null,{"$f":"IF(Suggested=\"Yes\",'Price List'!AA195,'Price List'!AG195)","v":3395},"EA",{"$f":"+Instructions!$B$3","v":"N"},null,{"$f":"+Instructions!$D$22","v":0},{"$f":"ROUND($AA195*(1-W195)+0.004999,2)","v":3395},null,"YES",3395,{"$f":"+W195","v":0},{"$f":"+X195","v":3395},{"$f":"(AG195-AC195)/AG195","v":0},null,{"$f":"+A195","v":"RU1"},{"$f":"SUM(AJ195:AL195)+AE195","v":3395},null,null,{"$f":"ROUND(AC195/(1-VLOOKUP(AF195,Group,2,FALSE)),2)","v":3395},{"$f":"IF(VLOOKUP(AF195,Group,3,FALSE)=\"YES\",VLOOKUP(ROUND(ROUND(AJ195,1)-AJ195,2),Round,2,FALSE)+VLOOKUP(AF195,Group,4,FALSE),0)","v":0},{"$f":"IF(VLOOKUP(AF195,Group,5,FALSE)=\"\",0,ROUND(AJ195-0.04999,1)-AJ195+AM195)","v":0},{"$f":"IF(VLOOKUP(AF195,Group,5,FALSE)=\"\",\"\",VLOOKUP(AF195,Group,5,FALSE))","v":""},null,"X"]
[null,null,null,null,"- 61\" cutting length / 42\" diagonal",null,null,null,null,"- Dimensions: 87\" x 29\" x 51\" "]
[null,null,null,null,"- Weight = 242 lbs",null,null,null,null,"- Precise Miter Cuts",null,null,null,null,null,null,null,null,null,null,null,null,null,null,null,null,null,null,null,null,null,null,null,null,null,null,null,null,null,null,"X"]
[null,null,null,null,"- 10\" Saw Blade Capacity - 1\" Arbor",null,null,null,null,"- Plunge Cuts",null,null,null,null,null,null,null,null,null,null,null,null,null,null,null,null,null,null,null,null,null,null,null,null,null,null,null,null,null,null,"X"]
[null,null,null,null,"- Horsepower = 3 hp",null,null,null,null,"- Folding Legs w/ Wheels for easy transportation",null,null,null,null,null,null,null,null,null,null,null,null,null,null,null,null,null,null,null,null,null,null,null,null,null,null,null,null,null,null,"X"]
[null,null,null,null,null,null,null,null,null,null,null,null,null,null,null,null,null,null,null,null,null,null,null,null,null,null,null,null,null,null,null,null,null,null,null,null,null,null,null,null,"X"]
["RU1","Rubi - Saws/Cutters",null,"RUDS2501300",null,"DS250N 1300 Bridge Saw w/ Folding Legs - ZERO DUST",null,null,null,null,null,null,null,null,"Rubi",null,"n/s",null,{"$f":"IF(Suggested=\"Yes\",'Price List'!AA201,'Price List'!AG201)","v":3095},"EA",{"$f":"+Instructions!$B$3","v":"N"},null,{"$f":"+Instructions!$D$22","v":0},{"$f":"ROUND($AA201*(1-W201)+0.004999,2)","v":3095},null,"YES",3095,{"$f":"+W201","v":0},{"$f":"+X201","v":3095},{"$f":"(AG201-AC201)/AG201","v":0},null,{"$f":"+A201","v":"RU1"},{"$f":"SUM(AJ201:AL201)+AE201","v":3095},null,null,{"$f":"ROUND(AC201/(1-VLOOKUP(AF201,Group,2,FALSE)),2)","v":3095},{"$f":"IF(VLOOKUP(AF201,Group,3,FALSE)=\"YES\",VLOOKUP(ROUND(ROUND(AJ201,1)-AJ201,2),Round,2,FALSE)+VLOOKUP(AF201,Group,4,FALSE),0)","v":0},{"$f":"IF(VLOOKUP(AF201,Group,5,FALSE)=\"\",0,ROUND(AJ201-0.04999,1)-AJ201+AM201)","v":0},{"$f":"IF(VLOOKUP(AF201,Group,5,FALSE)=\"\",\"\",VLOOKUP(AF201,Group,5,FALSE))","v":""},null,"X"]
[null,null,null,null,"- 51\" cutting length / 37\" diag cut",null,null,null,null,"- Dimensions: 79\" x 29\" x 51\" "]
[null,null,null,null,"- Weight = 275 lbs",null,null,null,null,"- Precise Miter Cuts",null,null,null,null,null,null,null,null,null,null,null,null,null,null,null,null,null,null,null,null,null,null,null,null,null,null,null,null,null,null,"X"]
[null,null,null,null,"- 10\" Saw Blade Capacity - 1\" Arbor",null,null,null,null,"- Plunge Cuts",null,null,null,null,null,null,null,null,null,null,null,null,null,null,null,null,null,null,null,null,null,null,null,null,null,null,null,null,null,null,"X"]
[null,null,null,null,"- Horsepower = 3 hp",null,null,null,null,"- Folding Legs w/ Wheels for easy transportation",null,null,null,null,null,null,null,null,null,null,null,null,null,null,null,null,null,null,null,null,null,null,null,null,null,null,null,null,null,null,"X"]
[null,null,null,null,null,null,null,null,null,null,null,null,null,null,null,null,null,null,null,null,null,null,null,null,null,null,null,null,null,null,null,null,null,null,null,null,null,null,null,null,"X"]
["RU1","Rubi - Saws/Cutters",null,"RUDC2501200",null,"DC250 1200 Python Bridge Saw w/ Folding Legs",null,null,null,null,null,null,null,null,"Rubi",null,"Stock",null,{"$f":"IF(Suggested=\"Yes\",'Price List'!AA207,'Price List'!AG207)","v":1679},"EA",{"$f":"+Instructions!$B$3","v":"N"},null,{"$f":"+Instructions!$D$22","v":0},{"$f":"ROUND($AA207*(1-W207)+0.004999,2)","v":1679},null,"YES",1679,{"$f":"+W207","v":0},{"$f":"+X207","v":1679},{"$f":"(AG207-AC207)/AG207","v":0},null,{"$f":"+A207","v":"RU1"},{"$f":"SUM(AJ207:AL207)+AE207","v":1679},null,null,{"$f":"ROUND(AC207/(1-VLOOKUP(AF207,Group,2,FALSE)),2)","v":1679},{"$f":"IF(VLOOKUP(AF207,Group,3,FALSE)=\"YES\",VLOOKUP(ROUND(ROUND(AJ207,1)-AJ207,2),Round,2,FALSE)+VLOOKUP(AF207,Group,4,FALSE),0)","v":0},{"$f":"IF(VLOOKUP(AF207,Group,5,FALSE)=\"\",0,ROUND(AJ207-0.04999,1)-AJ207+AM207)","v":0},{"$f":"IF(VLOOKUP(AF207,Group,5,FALSE)=\"\",\"\",VLOOKUP(AF207,Group,5,FALSE))","v":""},null,"X"]
[null,null,null,null,"- 48\" cutting length / 33\" diag cut",null,null,null,null,"- Dimensions: 67\" x 31\" x 51\" "]
[null,null,null,null,"- Weight = 132 lbs",null,null,null,null,"- Precise Miter Cuts",null,null,null,null,null,null,null,null,null,null,null,null,null,null,null,null,null,null,null,null,null,null,null,null,null,null,null,null,null,null,"X"]
[null,null,null,null,"- 10\" Saw Blade Capacity - 5/8\" Arbor",null,null,null,null,"- Plunge Cuts",null,null,null,null,null,null,null,null,null,null,null,null,null,null,null,null,null,null,null,null,null,null,null,null,null,null,null,null,null,null,"X"]
[null,null,null,null,"- Horsepower = 1.5 hp",null,null,null,null,"- Folding Legs w/ Wheels for easy transportation",null,null,null,null,null,null,null,null,null,null,null,null,null,null,null,null,null,null,null,null,null,null,null,null,null,null,null,null,null,null,"X"]
[null,null,null,null,"- Removable Table for easy cleaning",null,null,null,null,null,null,null,null,null,null,null,null,null,null,null,null,null,null,null,null,null,null,null,null,null,null,null,null,null,null,null,null,null,null,null,"X"]
[null,null,null,null,null,null,null,null,null,null,null,null,null,null,null,null,null,null,null,null,null,null,null,null,null,null,null,null,null,null,null,null,null,null,null,null,null,null,null,null,"X"]
[null,null,null,"Saws - Cutting Length 36\" to 48\"",null,null,null,null,null,null,null,null,null,null,null,null,null,null,null,null,null,null,null,null,null,null,null,null,null,null,null,null,null,null,null,null,null,null,null,null,"X"]
["RU1","Rubi - Saws/Cutters",null,"RUDC250/850",null,"DC250 850 Bridge Saw w/ Folding Legs",null,null,null,null,null,null,null,null,"Rubi",null,"n/s",null,{"$f":"IF(Suggested=\"Yes\",'Price List'!AA215,'Price List'!AG215)","v":1398},"EA",{"$f":"+Instructions!$B$3","v":"N"},null,{"$f":"+Instructions!$D$22","v":0},{"$f":"ROUND($AA215*(1-W215)+0.004999,2)","v":1398},null,"YES",1398,{"$f":"+W215","v":0},{"$f":"+X215","v":1398},{"$f":"(AG215-AC215)/AG215","v":0},null,{"$f":"+A215","v":"RU1"},{"$f":"SUM(AJ215:AL215)+AE215","v":1398},null,null,{"$f":"ROUND(AC215/(1-VLOOKUP(AF215,Group,2,FALSE)),2)","v":1398},{"$f":"IF(VLOOKUP(AF215,Group,3,FALSE)=\"YES\",VLOOKUP(ROUND(ROUND(AJ215,1)-AJ215,2),Round,2,FALSE)+VLOOKUP(AF215,Group,4,FALSE),0)","v":0},{"$f":"IF(VLOOKUP(AF215,Group,5,FALSE)=\"\",0,ROUND(AJ215-0.04999,1)-AJ215+AM215)","v":0},{"$f":"IF(VLOOKUP(AF215,Group,5,FALSE)=\"\",\"\",VLOOKUP(AF215,Group,5,FALSE))","v":""},null,"X"]
[null,null,null,null,"- 38\" cutting length / 27\" diag cut",null,null,null,null,"- Dimensions: 58\" x 31\" x 51\" "]
[null,null,null,null,"- Weight = 121 lbs",null,null,null,null,"- Precise Miter Cuts",null,null,null,null,null,null,null,null,null,null,null,null,null,null,null,null,null,null,null,null,null,null,null,null,null,null,null,null,null,null,"X"]
[null,null,null,null,"- 10\" Saw Blade Capacity - 5/8\" Arbor",null,null,null,null,"- Plunge Cuts",null,null,null,null,null,null,null,null,null,null,null,null,null,null,null,null,null,null,null,null,null,null,null,null,null,null,null,null,null,null,"X"]
[null,null,null,null,"- Horsepower = 1.5 hp",null,null,null,null,"- Folding Legs w/ Wheels for easy transportation",null,null,null,null,null,null,null,null,null,null,null,null,null,null,null,null,null,null,null,null,null,null,null,null,null,null,null,null,null,null,"X"]
[null,null,null,null,"- Removable Table for easy cleaning",null,null,null,null,null,null,null,null,null,null,null,null,null,null,null,null,null,null,null,null,null,null,null,null,null,null,null,null,null,null,null,null,null,null,null,"X"]
[null,null,null,null,null,null,null,null,null,null,null,null,null,null,null,null,null,null,null,null,null,null,null,null,null,null,null,null,null,null,null,null,null,null,null,null,null,null,null,null,"X"]
[null,null,null,"Saws - Cutting Length between 20\" to 36\"",null,null,null,null,null,null,null,null,null,null,null,null,null,null,null,null,null,null,null,null,null,null,null,null,null,null,null,null,null,null,null,null,null,null,null,null,"X"]
["RU1","Rubi - Saws/Cutters",null,"RUDT10MAX",null,"DT-10 MAX Wet Saw w/ Folding Legs",null,null,null,null,null,null,null,null,"Rubi",null,"Stock","new",{"$f":"IF(Suggested=\"Yes\",'Price List'!AA223,'Price List'!AG223)","v":1099},"EA",{"$f":"+Instructions!$B$3","v":"N"},null,{"$f":"+Instructions!$D$22","v":0},{"$f":"ROUND($AA223*(1-W223)+0.004999,2)","v":1099},null,"YES",1099,{"$f":"+W223","v":0},{"$f":"+X223","v":1099},{"$f":"(AG223-AC223)/AG223","v":0},null,{"$f":"+A223","v":"RU1"},{"$f":"SUM(AJ223:AL223)+AE223","v":1099},null,null,{"$f":"ROUND(AC223/(1-VLOOKUP(AF223,Group,2,FALSE)),2)","v":1099},{"$f":"IF(VLOOKUP(AF223,Group,3,FALSE)=\"YES\",VLOOKUP(ROUND(ROUND(AJ223,1)-AJ223,2),Round,2,FALSE)+VLOOKUP(AF223,Group,4,FALSE),0)","v":0},{"$f":"IF(VLOOKUP(AF223,Group,5,FALSE)=\"\",0,ROUND(AJ223-0.04999,1)-AJ223+AM223)","v":0},{"$f":"IF(VLOOKUP(AF223,Group,5,FALSE)=\"\",\"\",VLOOKUP(AF223,Group,5,FALSE))","v":""},null,"X"]
[null,null,null,null,"- 36\" cutting length / 24\" diag cut",null,null,null,null,"- Dimensions: 63\" x 37\" x 48\" "]
[null,null,null,null,"- Weight = 105 lbs",null,null,null,null,"- Precise Miter Cuts",null,null,null,null,null,null,null,null,null,null,null,null,null,null,null,null,null,null,null,null,null,null,null,null,null,null,null,null,null,null,"X"]
[null,null,null,null,"- 10\" Saw Blade Capacity - 5/8\" Arbor",null,null,null,null,"- Plunge Cuts",null,null,null,null,null,null,null,null,null,null,null,null,null,null,null,null,null,null,null,null,null,null,null,null,null,null,null,null,null,null,"X"]
[null,null,null,null,"- Horsepower = 2.0 hp",null,null,null,null,"- Folding Legs w/ Wheels for easy transportation",null,null,null,null,null,null,null,null,null,null,null,null,null,null,null,null,null,null,null,null,null,null,null,null,null,null,null,null,null,null,"X"]
[null,null,null,null,"- Removable Table for easy cleaning",null,null,null,null,"- cuts up to 1.1\" thick",null,null,null,null,null,null,null,null,null,null,null,null,null,null,null,null,null,null,null,null,null,null,null,null,null,null,null,null,null,null,"X"]
[null,null,null,null,null,null,null,null,null,null,null,null,null,null,null,null,null,null,null,null,null,null,null,null,null,null,null,null,null,null,null,null,null,null,null,null,null,null,null,null,"X"]
["IQ1","IQ Tools - Saws/Cutters",null,"IQIQTS244",null,"IQTS244 Dry Cut Tile Saw w/ Integrated Dust Containment",null,null,null,null,null,null,null,null,"IQ Tools",null,"Stock",null,{"$f":"+#REF!+#REF!","v":{"$error":"#REF!"}},"EA",{"$f":"+Instructions!$B$3","v":"N"},null,{"$f":"+Instructions!$D$22","v":0},{"$f":"ROUND($AA230*(1-W230)+0.004999,2)","v":1814},null,"YES",1814,{"$f":"+W230","v":0},1814,{"$f":"(AG230-AC230)/AG230","v":0},null,{"$f":"+A230","v":"IQ1"},{"$f":"SUM(AJ230:AL230)+AE230","v":1814},null,null,{"$f":"ROUND(AC230/(1-VLOOKUP(AF230,Group,2,FALSE)),2)","v":1814},{"$f":"IF(VLOOKUP(AF230,Group,3,FALSE)=\"YES\",VLOOKUP(ROUND(ROUND(AJ230,1)-AJ230,2),Round,2,FALSE)+VLOOKUP(AF230,Group,4,FALSE),0)","v":0},{"$f":"IF(VLOOKUP(AF230,Group,5,FALSE)=\"\",0,ROUND(AJ230-0.04999,1)-AJ230+AM230)","v":0},{"$f":"IF(VLOOKUP(AF230,Group,5,FALSE)=\"\",\"\",VLOOKUP(AF230,Group,5,FALSE))","v":""},null,"X"]
["IQ","IQ Tools - All Other",null,"IQIQTS244STAND",null,null,"IQTS244 Stand",null,"(Saw & Stand are only sold as a set)",null,null,null,null,null,"IQ Tools",null,"Stock",null,null,"EA",{"$f":"+Instructions!$B$3","v":"N"},null,{"$f":"+Instructions!$D$22","v":0},{"$f":"ROUND($AA231*(1-W231)+0.004999,2)","v":185},null,"",185,0,185,{"$f":"(AG231-AC231)/AG231","v":0},null,{"$f":"+A231","v":"IQ"},{"$f":"SUM(AJ231:AL231)+AE231","v":185},null,null,{"$f":"ROUND(AC231/(1-VLOOKUP(AF231,Group,2,FALSE)),2)","v":185},{"$f":"IF(VLOOKUP(AF231,Group,3,FALSE)=\"YES\",VLOOKUP(ROUND(ROUND(AJ231,1)-AJ231,2),Round,2,FALSE)+VLOOKUP(AF231,Group,4,FALSE),0)","v":0},{"$f":"IF(VLOOKUP(AF231,Group,5,FALSE)=\"\",0,ROUND(AJ231-0.04999,1)-AJ231+AM231)","v":0},{"$f":"IF(VLOOKUP(AF231,Group,5,FALSE)=\"\",\"\",VLOOKUP(AF231,Group,5,FALSE))","v":""},null,"X"]
[null,null,null,null,"- 24\" cutting length / 18\" diag cut",null,null,null,null,"- Dimensions: 34\" x 27\" x 28\" "]
[null,null,null,null,"- Dust Containment System",null,null,null,null,"- Meets OSHA 2017 Silica Standard"]
[null,null,null,null,"- Horsepower = 1.5 hp",null,null,null,null,"- Adjustable Cutting Head - Cuts up to 1\""]
[null,null,null,null,"- Weight = 92 lbs",null,null,null,null,"- Includes Stand & Blade"]
[null,null,null,null,"- 10\" Saw Blade Capacity (must use their blade - Q-Drive Blade with Cool Cut Technology)"]
[null,null,null,null,null,null,null,null,null,null,null,null,null,null,null,null,null,null,null,null,null,null,null,null,null,null,null,null,null,null,null,null,null,null,null,null,null,null,null,null,"X"]
["IQ","IQ Tools - All Other",null,"     IQIQTS244TABLEEXT",null,null,"iQTS244 Extension Table Accessory",null,null,null,null,null,null,null,"IQ Tools",null,"Stock",null,{"$f":"IF(Suggested=\"Yes\",'Price List'!AA238,'Price List'!AG238)","v":279},"EA",{"$f":"+Instructions!$B$3","v":"N"},null,{"$f":"+Instructions!$D$22","v":0},{"$f":"ROUND($AA238*(1-W238)+0.004999,2)","v":279},null,"YES",279,{"$f":"+W238","v":0},279,{"$f":"(AG238-AC238)/AG238","v":0},null,{"$f":"+A238","v":"IQ"},{"$f":"SUM(AJ238:AL238)+AE238","v":279},null,null,{"$f":"ROUND(AC238/(1-VLOOKUP(AF238,Group,2,FALSE)),2)","v":279},{"$f":"IF(VLOOKUP(AF238,Group,3,FALSE)=\"YES\",VLOOKUP(ROUND(ROUND(AJ238,1)-AJ238,2),Round,2,FALSE)+VLOOKUP(AF238,Group,4,FALSE),0)","v":0},{"$f":"IF(VLOOKUP(AF238,Group,5,FALSE)=\"\",0,ROUND(AJ238-0.04999,1)-AJ238+AM238)","v":0},{"$f":"IF(VLOOKUP(AF238,Group,5,FALSE)=\"\",\"\",VLOOKUP(AF238,Group,5,FALSE))","v":""},null,"X"]
[null,null,null,null,null,null,"- Extension table allows you to rip cut any length plank tile"]
["IQ","IQ Tools - All Other",null,"     IQIQTS244MITER",null,null,"iQTS244 Miter Attachment Accessory",null,null,null,null,null,null,null,"IQ Tools",null,null,null,{"$f":"IF(Suggested=\"Yes\",'Price List'!AA240,'Price List'!AG240)","v":199},"EA",{"$f":"+Instructions!$B$3","v":"N"},null,{"$f":"+Instructions!$D$22","v":0},{"$f":"ROUND($AA240*(1-W240)+0.004999,2)","v":199},null,"YES",199,0,199,{"$f":"(AG240-AC240)/AG240","v":0},null,{"$f":"+A240","v":"IQ"},{"$f":"SUM(AJ240:AL240)+AE240","v":199},null,null,{"$f":"ROUND(AC240/(1-VLOOKUP(AF240,Group,2,FALSE)),2)","v":199},{"$f":"IF(VLOOKUP(AF240,Group,3,FALSE)=\"YES\",VLOOKUP(ROUND(ROUND(AJ240,1)-AJ240,2),Round,2,FALSE)+VLOOKUP(AF240,Group,4,FALSE),0)","v":0},{"$f":"IF(VLOOKUP(AF240,Group,5,FALSE)=\"\",0,ROUND(AJ240-0.04999,1)-AJ240+AM240)","v":0},{"$f":"IF(VLOOKUP(AF240,Group,5,FALSE)=\"\",\"\",VLOOKUP(AF240,Group,5,FALSE))","v":""},null,"X"]
["IQ","IQ Tools - All Other",null,"     IQIQTS244FILTER",null,null,"iQTS244 Replacement Vacuum Filter Kit",null,null,null,null,null,null,null,"IQ Tools",null,null,null,{"$f":"IF(Suggested=\"Yes\",'Price List'!AA241,'Price List'!AG241)","v":119},"EA",{"$f":"+Instructions!$B$3","v":"N"},null,{"$f":"+Instructions!$D$22","v":0},{"$f":"ROUND($AA241*(1-W241)+0.004999,2)","v":119},null,"YES",119,{"$f":"+W241","v":0},{"$f":"+X241","v":119},{"$f":"(AG241-AC241)/AG241","v":0},null,{"$f":"+A241","v":"IQ"},{"$f":"SUM(AJ241:AL241)+AE241","v":119},null,null,{"$f":"ROUND(AC241/(1-VLOOKUP(AF241,Group,2,FALSE)),2)","v":119},{"$f":"IF(VLOOKUP(AF241,Group,3,FALSE)=\"YES\",VLOOKUP(ROUND(ROUND(AJ241,1)-AJ241,2),Round,2,FALSE)+VLOOKUP(AF241,Group,4,FALSE),0)","v":0},{"$f":"IF(VLOOKUP(AF241,Group,5,FALSE)=\"\",0,ROUND(AJ241-0.04999,1)-AJ241+AM241)","v":0},{"$f":"IF(VLOOKUP(AF241,Group,5,FALSE)=\"\",\"\",VLOOKUP(AF241,Group,5,FALSE))","v":""},null,"X"]
["IQ","IQ Tools - All Other",null,"     IQIQTS24HOSE",null,null,"iQTS244 Vacuum Port Hose Kit",null,null,null,null,null,null,null,"IQ Tools",null,null,null,{"$f":"IF(Suggested=\"Yes\",'Price List'!AA242,'Price List'!AG242)","v":119},"EA",{"$f":"+Instructions!$B$3","v":"N"},null,{"$f":"+Instructions!$D$22","v":0},{"$f":"ROUND($AA242*(1-W242)+0.004999,2)","v":119},null,"YES",119,0,119,{"$f":"(AG242-AC242)/AG242","v":0},null,{"$f":"+A242","v":"IQ"},{"$f":"SUM(AJ242:AL242)+AE242","v":119},null,null,{"$f":"ROUND(AC242/(1-VLOOKUP(AF242,Group,2,FALSE)),2)","v":119},{"$f":"IF(VLOOKUP(AF242,Group,3,FALSE)=\"YES\",VLOOKUP(ROUND(ROUND(AJ242,1)-AJ242,2),Round,2,FALSE)+VLOOKUP(AF242,Group,4,FALSE),0)","v":0},{"$f":"IF(VLOOKUP(AF242,Group,5,FALSE)=\"\",0,ROUND(AJ242-0.04999,1)-AJ242+AM242)","v":0},{"$f":"IF(VLOOKUP(AF242,Group,5,FALSE)=\"\",\"\",VLOOKUP(AF242,Group,5,FALSE))","v":""},null,"X"]
["IQ","IQ Tools - All Other",null,"     IQIQPDS00100",null,null,"iQPDS00100-TS 8\" Professional Dressing Stone",null,null,null,null,null,null,null,"IQ Tools",null,"Stock",null,{"$f":"IF(Suggested=\"Yes\",'Price List'!AA243,'Price List'!AG243)","v":15.15},"EA",{"$f":"+Instructions!$B$3","v":"N"},null,{"$f":"+Instructions!$D$22","v":0},{"$f":"ROUND($AA243*(1-W243)+0.004999,2)","v":15.15},null,"YES",15.15,{"$f":"+W243","v":0},{"$f":"+X243","v":15.15},{"$f":"(AG243-AC243)/AG243","v":0},null,{"$f":"+A243","v":"IQ"},{"$f":"SUM(AJ243:AL243)+AE243","v":15.15},null,null,{"$f":"ROUND(AC243/(1-VLOOKUP(AF243,Group,2,FALSE)),2)","v":15.15},{"$f":"IF(VLOOKUP(AF243,Group,3,FALSE)=\"YES\",VLOOKUP(ROUND(ROUND(AJ243,1)-AJ243,2),Round,2,FALSE)+VLOOKUP(AF243,Group,4,FALSE),0)","v":0},{"$f":"IF(VLOOKUP(AF243,Group,5,FALSE)=\"\",0,ROUND(AJ243-0.04999,1)-AJ243+AM243)","v":0},{"$f":"IF(VLOOKUP(AF243,Group,5,FALSE)=\"\",\"\",VLOOKUP(AF243,Group,5,FALSE))","v":""},null,"X"]
[null,null,null,null,null,null,null,null,null,null,null,null,null,null,null,null,null,null,null,null,null,null,null,null,null,null,null,null,null,null,null,null,null,null,null,null,null,null,null,null,"X"]
[null,null,"continued on the next page",null,null,null,null,null,null,null,null,null,null,null,null,null,null,null,null,null,null,null,null,null,null,null,null,null,null,null,null,null,null,null,null,null,null,null,null,null,"X"]
[null,null,"Wet Saws (continued)"]
[null,null,null,null,null,null,null,null,null,null,null,null,null,null,null,null,null,null,null,null,null,null,null,null,null,null,null,null,null,null,null,null,null,null,null,null,null,null,null,null,"X"]
["RU1","Rubi - Saws/Cutters",null,"RUDT07MAX",null,"DT-7 MAX Wet Saw w/ Folding Legs",null,null,null,null,null,null,null,null,"Rubi",null,"Stock","new",{"$f":"IF(Suggested=\"Yes\",'Price List'!AA248,'Price List'!AG248)","v":519},"EA",{"$f":"+Instructions!$B$3","v":"N"},null,{"$f":"+Instructions!$D$22","v":0},{"$f":"ROUND($AA248*(1-W248)+0.004999,2)","v":519},null,"YES",519,{"$f":"+W248","v":0},{"$f":"+X248","v":519},{"$f":"(AG248-AC248)/AG248","v":0},null,{"$f":"+A248","v":"RU1"},{"$f":"SUM(AJ248:AL248)+AE248","v":519},null,null,{"$f":"ROUND(AC248/(1-VLOOKUP(AF248,Group,2,FALSE)),2)","v":519},{"$f":"IF(VLOOKUP(AF248,Group,3,FALSE)=\"YES\",VLOOKUP(ROUND(ROUND(AJ248,1)-AJ248,2),Round,2,FALSE)+VLOOKUP(AF248,Group,4,FALSE),0)","v":0},{"$f":"IF(VLOOKUP(AF248,Group,5,FALSE)=\"\",0,ROUND(AJ248-0.04999,1)-AJ248+AM248)","v":0},{"$f":"IF(VLOOKUP(AF248,Group,5,FALSE)=\"\",\"\",VLOOKUP(AF248,Group,5,FALSE))","v":""},null,"X"]
[null,null,null,null,"- 24\" cutting length / 18\" diag cut",null,null,null,null,"- Dimensions: 48\" x 23\" x 45\" "]
[null,null,null,null,"- Weight = 56 lbs",null,null,null,null,"- Precise Miter Cuts",null,null,null,null,null,null,null,null,null,null,null,null,null,null,null,null,null,null,null,null,null,null,null,null,null,null,null,null,null,null,"X"]
[null,null,null,null,"- 7\" Saw Blade Capacity - 5/8\" Arbor",null,null,null,null,"- Plunge Cuts",null,null,null,null,null,null,null,null,null,null,null,null,null,null,null,null,null,null,null,null,null,null,null,null,null,null,null,null,null,null,"X"]
[null,null,null,null,"- Horsepower = 1.5 hp",null,null,null,null,"- Folding Legs for easy transportation",null,null,null,null,null,null,null,null,null,null,null,null,null,null,null,null,null,null,null,null,null,null,null,null,null,null,null,null,null,null,"X"]
[null,null,null,null,"- Removable Table for easy cleaning",null,null,null,null,"- cuts up to 1.1\" thick",null,null,null,null,null,null,null,null,null,null,null,null,null,null,null,null,null,null,null,null,null,null,null,null,null,null,null,null,null,null,"X"]
[]
["IQ1","IQ Tools - Saws/Cutters",null,"IQIQ228CYCLONE",null,"IQ228Cyclone Dry Cut Tabletop Tile Saw ",null,null,null,null,null,null,null,null,"IQ Tools",null,"Stock",null,{"$f":"IF(Suggested=\"Yes\",'Price List'!AA255,'Price List'!AG255)","v":649},"EA",{"$f":"+Instructions!$B$3","v":"N"},null,{"$f":"+Instructions!$D$22","v":0},{"$f":"ROUND($AA255*(1-W255)+0.004999,2)","v":649},null,"YES",649,{"$f":"+W255","v":0},{"$f":"+X255","v":649},{"$f":"(AG255-AC255)/AG255","v":0},null,{"$f":"+A255","v":"IQ1"},{"$f":"SUM(AJ255:AL255)+AE255","v":649},null,null,{"$f":"ROUND(AC255/(1-VLOOKUP(AF255,Group,2,FALSE)),2)","v":649},{"$f":"IF(VLOOKUP(AF255,Group,3,FALSE)=\"YES\",VLOOKUP(ROUND(ROUND(AJ255,1)-AJ255,2),Round,2,FALSE)+VLOOKUP(AF255,Group,4,FALSE),0)","v":0},{"$f":"IF(VLOOKUP(AF255,Group,5,FALSE)=\"\",0,ROUND(AJ255-0.04999,1)-AJ255+AM255)","v":0},{"$f":"IF(VLOOKUP(AF255,Group,5,FALSE)=\"\",\"\",VLOOKUP(AF255,Group,5,FALSE))","v":""},null,"X"]
[null,null,null,null,null,"w/ Integrated Dust Containment"]
[null,null,null,null,"- 18\" w/ Rolling Table / Lock the table in place to cut 24\"+ planks with IQ Micro Fence"]
[null,null,null,null,"- Dust Containment System",null,null,null,null,"- Dimensions: 17\" x 25\" x 10\""]
[null,null,null,null,"- Horsepower = ",null,null,null,null,"- Meets OSHA 2017 Silica Standard"]
[null,null,null,null,"- Weight = 36 lbs",null,null,null,null,"- 99.5% Dust- Free"]
[null,null,null,null,"- Adjustable Cutting Head - Cuts up to 1.25\"",null,null,null,null,"- Includes Blade & Dressing Stone"]
[null,null,null,null,"- Unique Rail System allows for easy 22.5 and 45 degree cuts"]
[null,null,null,null,"- 7\" Saw Blade Capacity (must use their blade - Q-Drive Blade with Cool Cut Technology)"]
[null,null,null,null,null,null,null,null,null,null,null,null,null,null,null,null,null,null,null,null,null,null,null,null,null,null,null,null,null,null,null,null,null,null,null,null,null,null,null,null,"X"]
[null,null,"Wet Saws - Diamond Blades",null,null,null,null,null,null,null,null,null,null,null,null,null,null,null,null,null,null,null,null,null,null,null,null,null,null,null,null,null,null,null,null,null,null,null,null,null,"X"]
[null,null,null,null,null,null,null,null,null,null,null,null,null,null,null,null,null,null,null,null,null,null,null,null,null,null,null,null,null,null,null,null,null,null,null,null,null,null,null,null,"X"]
[null,null,null,"Diamond Blades",null,null,null,null,null,null,null,null,null,null,null,null,null,null,null,null,null,null,null,null,null,null,null,null,null,null,null,null,null,null,null,null,null,null,null,null,"X"]
["PR","Barwalt - All Other",null,"PR70411",null,"4\" Blade",null,"70411 Dry/Wet Continuous Rim Blade for Porcelain Tiles",null,null,null,null,null,null,"Barwalt",null,"Stock",null,{"$f":"IF(Suggested=\"Yes\",'Price List'!AA268,'Price List'!AG268)","v":15.3},"EA",{"$f":"+Instructions!$B$3","v":"N"},null,{"$f":"+Instructions!$D$22","v":0},{"$f":"ROUND($AA268*(1-W268)+0.004999,2)","v":15.3},null,"new",15.3,{"$f":"+W268","v":0},{"$f":"+X268","v":15.3},{"$f":"(AG268-AC268)/AG268","v":0},null,{"$f":"+A268","v":"PR"},{"$f":"SUM(AJ268:AL268)+AE268","v":15.3},null,null,{"$f":"ROUND(AC268/(1-VLOOKUP(AF268,Group,2,FALSE)),2)","v":15.3},{"$f":"IF(VLOOKUP(AF268,Group,3,FALSE)=\"YES\",VLOOKUP(ROUND(ROUND(AJ268,1)-AJ268,2),Round,2,FALSE)+VLOOKUP(AF268,Group,4,FALSE),0)","v":0},{"$f":"IF(VLOOKUP(AF268,Group,5,FALSE)=\"\",0,ROUND(AJ268-0.04999,1)-AJ268+AM268)","v":0},{"$f":"IF(VLOOKUP(AF268,Group,5,FALSE)=\"\",\"\",VLOOKUP(AF268,Group,5,FALSE))","v":""},null,"X"]
["RU","Rubi - All Other",null,"RU31914",null,"4-1/2\" Blade",null,"31914 Dry/Wet Continuous Rim Blade for Porcelain Tiles",null,null,null,null,null,null,"Rubi",null,"Stock","new",{"$f":"IF(Suggested=\"Yes\",'Price List'!AA269,'Price List'!AG269)","v":12.95},"EA",{"$f":"+Instructions!$B$3","v":"N"},null,{"$f":"+Instructions!$D$22","v":0},{"$f":"ROUND($AA269*(1-W269)+0.004999,2)","v":12.95},null,"YES",12.95,{"$f":"+W269","v":0},{"$f":"+X269","v":12.95},{"$f":"(AG269-AC269)/AG269","v":0},null,{"$f":"+A269","v":"RU"},{"$f":"SUM(AJ269:AL269)+AE269","v":12.95},null,null,{"$f":"ROUND(AC269/(1-VLOOKUP(AF269,Group,2,FALSE)),2)","v":12.95},{"$f":"IF(VLOOKUP(AF269,Group,3,FALSE)=\"YES\",VLOOKUP(ROUND(ROUND(AJ269,1)-AJ269,2),Round,2,FALSE)+VLOOKUP(AF269,Group,4,FALSE),0)","v":0},{"$f":"IF(VLOOKUP(AF269,Group,5,FALSE)=\"\",0,ROUND(AJ269-0.04999,1)-AJ269+AM269)","v":0},{"$f":"IF(VLOOKUP(AF269,Group,5,FALSE)=\"\",\"\",VLOOKUP(AF269,Group,5,FALSE))","v":""},null,"X"]
["RU","Rubi - All Other",null,"RU31907",null,"10\" Blade",null,"31907 Porcelain Diamond Blade",null,null,null,null,null,null,"Rubi",null,"Stock",null,{"$f":"IF(Suggested=\"Yes\",'Price List'!AA270,'Price List'!AG270)","v":42.95},"EA",{"$f":"+Instructions!$B$3","v":"N"},null,{"$f":"+Instructions!$D$22","v":0},{"$f":"ROUND($AA270*(1-W270)+0.004999,2)","v":42.95},null,"YES",42.95,{"$f":"+W270","v":0},{"$f":"+X270","v":42.95},{"$f":"(AG270-AC270)/AG270","v":0},null,{"$f":"+A270","v":"RU"},{"$f":"SUM(AJ270:AL270)+AE270","v":42.95},null,null,{"$f":"ROUND(AC270/(1-VLOOKUP(AF270,Group,2,FALSE)),2)","v":42.95},{"$f":"IF(VLOOKUP(AF270,Group,3,FALSE)=\"YES\",VLOOKUP(ROUND(ROUND(AJ270,1)-AJ270,2),Round,2,FALSE)+VLOOKUP(AF270,Group,4,FALSE),0)","v":0},{"$f":"IF(VLOOKUP(AF270,Group,5,FALSE)=\"\",0,ROUND(AJ270-0.04999,1)-AJ270+AM270)","v":0},{"$f":"IF(VLOOKUP(AF270,Group,5,FALSE)=\"\",\"\",VLOOKUP(AF270,Group,5,FALSE))","v":""},null,"X"]
[null,null,null,null,"- good performance, smooth continuous rim blades",null,null,null,null,null,null,null,null,null,null,null,null,null,null,null,null,null,null,null,null,null,null,null,null,null,null,null,null,null,null,null,null,null,null,null,"X"]
[null,null,null,null,null,null,null,null,null,null,null,null,null,null,null,null,null,null,null,null,null,null,null,null,null,null,null,null,null,null,null,null,null,null,null,null,null,null,null,null,"X"]
[null,null,null,"High-Performance - Diamond Blades - reinforced core",null,null,null,null,null,null,null,null,null,null,null,null,null,null,null,null,null,null,null,null,null,null,null,null,null,null,null,null,null,null,null,null,null,null,null,null,"X"]
["RU","Rubi - All Other",null,"RU31926",null,"4\" Blade",null,"31926 VIP Dry/Wet Blade",null,null,null,null,null,null,"Rubi",null,null,null,{"$f":"IF(Suggested=\"Yes\",'Price List'!AA274,'Price List'!AG274)","v":28.95},"EA",{"$f":"+Instructions!$B$3","v":"N"},null,{"$f":"+Instructions!$D$22","v":0},{"$f":"ROUND($AA274*(1-W274)+0.004999,2)","v":28.95},null,"YES",28.95,{"$f":"+W274","v":0},28.95,{"$f":"(AG274-AC274)/AG274","v":0},null,{"$f":"+A274","v":"RU"},{"$f":"SUM(AJ274:AL274)+AE274","v":28.95},null,null,{"$f":"ROUND(AC274/(1-VLOOKUP(AF274,Group,2,FALSE)),2)","v":28.95},{"$f":"IF(VLOOKUP(AF274,Group,3,FALSE)=\"YES\",VLOOKUP(ROUND(ROUND(AJ274,1)-AJ274,2),Round,2,FALSE)+VLOOKUP(AF274,Group,4,FALSE),0)","v":0},{"$f":"IF(VLOOKUP(AF274,Group,5,FALSE)=\"\",0,ROUND(AJ274-0.04999,1)-AJ274+AM274)","v":0},{"$f":"IF(VLOOKUP(AF274,Group,5,FALSE)=\"\",\"\",VLOOKUP(AF274,Group,5,FALSE))","v":""},null,"X"]
["RU","Rubi - All Other",null,"RU31929",null,"7\" Blade",null,"31929 VIP Blade",null,null,null,null,null,null,"Rubi",null,"Stock",null,{"$f":"IF(Suggested=\"Yes\",'Price List'!AA275,'Price List'!AG275)","v":57.95},"EA",{"$f":"+Instructions!$B$3","v":"N"},null,{"$f":"+Instructions!$D$22","v":0},{"$f":"ROUND($AA275*(1-W275)+0.004999,2)","v":57.95},null,"YES",57.95,0,57.95,{"$f":"(AG275-AC275)/AG275","v":0},null,{"$f":"+A275","v":"RU"},{"$f":"SUM(AJ275:AL275)+AE275","v":57.95},null,null,{"$f":"ROUND(AC275/(1-VLOOKUP(AF275,Group,2,FALSE)),2)","v":57.95},{"$f":"IF(VLOOKUP(AF275,Group,3,FALSE)=\"YES\",VLOOKUP(ROUND(ROUND(AJ275,1)-AJ275,2),Round,2,FALSE)+VLOOKUP(AF275,Group,4,FALSE),0)","v":0},{"$f":"IF(VLOOKUP(AF275,Group,5,FALSE)=\"\",0,ROUND(AJ275-0.04999,1)-AJ275+AM275)","v":0},{"$f":"IF(VLOOKUP(AF275,Group,5,FALSE)=\"\",\"\",VLOOKUP(AF275,Group,5,FALSE))","v":""},null,"X"]
["RU","Rubi - All Other",null,"RU31940",null,"8\" Blade",null,"31940 VIP Blade",null,null,null,null,null,null,"Rubi",null,null,null,{"$f":"IF(Suggested=\"Yes\",'Price List'!AA276,'Price List'!AG276)","v":68.95},"EA",{"$f":"+Instructions!$B$3","v":"N"},null,{"$f":"+Instructions!$D$22","v":0},{"$f":"ROUND($AA276*(1-W276)+0.004999,2)","v":68.95},null,"YES",68.95,0,68.95,{"$f":"(AG276-AC276)/AG276","v":0},null,{"$f":"+A276","v":"RU"},{"$f":"SUM(AJ276:AL276)+AE276","v":68.95},null,null,{"$f":"ROUND(AC276/(1-VLOOKUP(AF276,Group,2,FALSE)),2)","v":68.95},{"$f":"IF(VLOOKUP(AF276,Group,3,FALSE)=\"YES\",VLOOKUP(ROUND(ROUND(AJ276,1)-AJ276,2),Round,2,FALSE)+VLOOKUP(AF276,Group,4,FALSE),0)","v":0},{"$f":"IF(VLOOKUP(AF276,Group,5,FALSE)=\"\",0,ROUND(AJ276-0.04999,1)-AJ276+AM276)","v":0},{"$f":"IF(VLOOKUP(AF276,Group,5,FALSE)=\"\",\"\",VLOOKUP(AF276,Group,5,FALSE))","v":""},null,"X"]
["RU","Rubi - All Other",null,"RU31941",null,"10\" Blade",null,"31941 VIP Blade",null,null,null,null,null,null,"Rubi",null,"Stock",null,{"$f":"IF(Suggested=\"Yes\",'Price List'!AA277,'Price List'!AG277)","v":76.95},"EA",{"$f":"+Instructions!$B$3","v":"N"},null,{"$f":"+Instructions!$D$22","v":0},{"$f":"ROUND($AA277*(1-W277)+0.004999,2)","v":76.95},null,"YES",76.95,0,76.95,{"$f":"(AG277-AC277)/AG277","v":0},null,{"$f":"+A277","v":"RU"},{"$f":"SUM(AJ277:AL277)+AE277","v":76.95},null,null,{"$f":"ROUND(AC277/(1-VLOOKUP(AF277,Group,2,FALSE)),2)","v":76.95},{"$f":"IF(VLOOKUP(AF277,Group,3,FALSE)=\"YES\",VLOOKUP(ROUND(ROUND(AJ277,1)-AJ277,2),Round,2,FALSE)+VLOOKUP(AF277,Group,4,FALSE),0)","v":0},{"$f":"IF(VLOOKUP(AF277,Group,5,FALSE)=\"\",0,ROUND(AJ277-0.04999,1)-AJ277+AM277)","v":0},{"$f":"IF(VLOOKUP(AF277,Group,5,FALSE)=\"\",\"\",VLOOKUP(AF277,Group,5,FALSE))","v":""},null,"X"]
[null,null,null,null,"- Thicker center to avoid vibrations and wobbling",null,null,null,null,null,null,null,null,null,null,null,null,null,null,null,null,null,null,null,null,null,null,null,null,null,null,null,null,null,null,null,null,null,null,null,"X"]
[null,null,null,null,"- Specifically designed to provide greater speed without sacrificing finish quality",null,null,null,null,null,null,null,null,null,null,null,null,null,null,null,null,null,null,null,null,null,null,null,null,null,null,null,null,null,null,null,null,null,null,null,"X"]
[null,null,null,null,"- for ceramic tile, porcelain tile, extra hard tiles and hard natural stones",null,null,null,null,null,null,null,null,null,null,null,null,null,null,null,null,null,null,null,null,null,null,null,null,null,null,null,null,null,null,null,null,null,null,null,"X"]
[null,null,null,null,null,null,null,null,null,null,null,null,null,null,null,null,null,null,null,null,null,null,null,null,null,null,null,null,null,null,null,null,null,null,null,null,null,null,null,null,"X"]
[null,null,null,"Diamond Blades for cutting 2-cm Tiles",null,null,null,null,null,null,null,null,null,null,null,null,null,null,null,null,null,null,null,null,null,null,null,null,null,null,null,null,null,null,null,null,null,null,null,null,"X"]
["RU","Rubi - All Other",null,"RU32962",null,"10\" Blade",null,"32962 Thicker Segmented Blade",null,null,null,null,null,null,"Rubi",null,null,"new",{"$f":"IF(Suggested=\"Yes\",'Price List'!AA283,'Price List'!AG283)","v":279},"EA",{"$f":"+Instructions!$B$3","v":"N"},null,{"$f":"+Instructions!$D$22","v":0},{"$f":"ROUND($AA283*(1-W283)+0.004999,2)","v":279},null,"new",279,{"$f":"+W283","v":0},{"$f":"+X283","v":279},{"$f":"(AG283-AC283)/AG283","v":0},null,{"$f":"+A283","v":"RU"},{"$f":"SUM(AJ283:AL283)+AE283","v":279},null,null,{"$f":"ROUND(AC283/(1-VLOOKUP(AF283,Group,2,FALSE)),2)","v":279},{"$f":"IF(VLOOKUP(AF283,Group,3,FALSE)=\"YES\",VLOOKUP(ROUND(ROUND(AJ283,1)-AJ283,2),Round,2,FALSE)+VLOOKUP(AF283,Group,4,FALSE),0)","v":0},{"$f":"IF(VLOOKUP(AF283,Group,5,FALSE)=\"\",0,ROUND(AJ283-0.04999,1)-AJ283+AM283)","v":0},{"$f":"IF(VLOOKUP(AF283,Group,5,FALSE)=\"\",\"\",VLOOKUP(AF283,Group,5,FALSE))","v":""},null,"X"]
[]
[null,null,null,"Q-Drive Blade with Cool Cut Technology for IQTS244 Dry Cut Tile Saw",null,null,null,null,null,null,null,null,null,null,null,null,null,null,null,null,null,null,null,null,null,null,null,null,null,null,null,null,null,null,null,null,null,null,null,null,"X"]
["IQ","IQ Tools - All Other",null,"IQBLADE07",null,"7\" Blade",null,"Q-Drive Blade for IQ228Cyclone Saw",null,null,null,null,null,null,"IQ Tools",null,"Stock",null,{"$f":"IF(Suggested=\"Yes\",'Price List'!AA286,'Price List'!AG286)","v":59},"EA",{"$f":"+Instructions!$B$3","v":"N"},null,{"$f":"+Instructions!$D$22","v":0},{"$f":"ROUND($AA286*(1-W286)+0.004999,2)","v":59},null,"YES",59,{"$f":"+W286","v":0},{"$f":"+X286","v":59},{"$f":"(AG286-AC286)/AG286","v":0},null,{"$f":"+A286","v":"IQ"},{"$f":"SUM(AJ286:AL286)+AE286","v":59},null,null,{"$f":"ROUND(AC286/(1-VLOOKUP(AF286,Group,2,FALSE)),2)","v":59},{"$f":"IF(VLOOKUP(AF286,Group,3,FALSE)=\"YES\",VLOOKUP(ROUND(ROUND(AJ286,1)-AJ286,2),Round,2,FALSE)+VLOOKUP(AF286,Group,4,FALSE),0)","v":0},{"$f":"IF(VLOOKUP(AF286,Group,5,FALSE)=\"\",0,ROUND(AJ286-0.04999,1)-AJ286+AM286)","v":0},{"$f":"IF(VLOOKUP(AF286,Group,5,FALSE)=\"\",\"\",VLOOKUP(AF286,Group,5,FALSE))","v":""},null,"X"]
["IQ","IQ Tools - All Other",null,"IQBLADE10",null,"10\" Blade",null,"Q-Drive Blade for IQTS244 Saw",null,null,null,null,null,null,"IQ Tools",null,"Stock",null,{"$f":"IF(Suggested=\"Yes\",'Price List'!AA287,'Price List'!AG287)","v":99},"EA",{"$f":"+Instructions!$B$3","v":"N"},null,{"$f":"+Instructions!$D$22","v":0},{"$f":"ROUND($AA287*(1-W287)+0.004999,2)","v":99},null,"YES",99,{"$f":"+W287","v":0},{"$f":"+X287","v":99},{"$f":"(AG287-AC287)/AG287","v":0},null,{"$f":"+A287","v":"IQ"},{"$f":"SUM(AJ287:AL287)+AE287","v":99},null,null,{"$f":"ROUND(AC287/(1-VLOOKUP(AF287,Group,2,FALSE)),2)","v":99},{"$f":"IF(VLOOKUP(AF287,Group,3,FALSE)=\"YES\",VLOOKUP(ROUND(ROUND(AJ287,1)-AJ287,2),Round,2,FALSE)+VLOOKUP(AF287,Group,4,FALSE),0)","v":0},{"$f":"IF(VLOOKUP(AF287,Group,5,FALSE)=\"\",0,ROUND(AJ287-0.04999,1)-AJ287+AM287)","v":0},{"$f":"IF(VLOOKUP(AF287,Group,5,FALSE)=\"\",\"\",VLOOKUP(AF287,Group,5,FALSE))","v":""},null,"X"]
[]
["IQ","IQ Tools - All Other",null,"IQBLADE07HARD",null,"7\" Blade",null,"Q-Drive Blade for 2-cm Thick",null,null,null,null,null,null,"IQ Tools",null,null,null,{"$f":"IF(Suggested=\"Yes\",'Price List'!AA289,'Price List'!AG289)","v":59},"EA",{"$f":"+Instructions!$B$3","v":"N"},null,{"$f":"+Instructions!$D$22","v":0},{"$f":"ROUND($AA289*(1-W289)+0.004999,2)","v":59},null,"YES",59,{"$f":"+W289","v":0},{"$f":"+X289","v":59},{"$f":"(AG289-AC289)/AG289","v":0},null,{"$f":"+A289","v":"IQ"},{"$f":"SUM(AJ289:AL289)+AE289","v":59},null,null,{"$f":"ROUND(AC289/(1-VLOOKUP(AF289,Group,2,FALSE)),2)","v":59},{"$f":"IF(VLOOKUP(AF289,Group,3,FALSE)=\"YES\",VLOOKUP(ROUND(ROUND(AJ289,1)-AJ289,2),Round,2,FALSE)+VLOOKUP(AF289,Group,4,FALSE),0)","v":0},{"$f":"IF(VLOOKUP(AF289,Group,5,FALSE)=\"\",0,ROUND(AJ289-0.04999,1)-AJ289+AM289)","v":0},{"$f":"IF(VLOOKUP(AF289,Group,5,FALSE)=\"\",\"\",VLOOKUP(AF289,Group,5,FALSE))","v":""},null,"X"]
["IQ","IQ Tools - All Other",null,"IQBLADE10HARD",null,"10\" Blade",null,"Q-Drive Blade for 2-cm Thick",null,null,null,null,null,null,"IQ Tools",null,null,null,{"$f":"IF(Suggested=\"Yes\",'Price List'!AA290,'Price List'!AG290)","v":99},"EA",{"$f":"+Instructions!$B$3","v":"N"},null,{"$f":"+Instructions!$D$22","v":0},99,null,"YES",99,0,99,0,null,{"$f":"+A290","v":"IQ"},99,null,null,{"$f":"ROUND(AC290/(1-VLOOKUP(AF290,Group,2,FALSE)),2)","v":99},{"$f":"IF(VLOOKUP(AF290,Group,3,FALSE)=\"YES\",VLOOKUP(ROUND(ROUND(AJ290,1)-AJ290,2),Round,2,FALSE)+VLOOKUP(AF290,Group,4,FALSE),0)","v":0},{"$f":"IF(VLOOKUP(AF290,Group,5,FALSE)=\"\",0,ROUND(AJ290-0.04999,1)-AJ290+AM290)","v":0},{"$f":"IF(VLOOKUP(AF290,Group,5,FALSE)=\"\",\"\",VLOOKUP(AF290,Group,5,FALSE))","v":""},null,"X"]
[]
[null,null,null,"Glass Diamond Blade",null,null,null,null,null,null,null,null,null,null,null,null,null,null,null,null,null,null,null,null,null,null,null,null,null,null,null,null,null,null,null,null,null,null,null,null,"X"]
["RU","Rubi - All Other",null,"RU31920",null,"7\" Blade",null,"31920 Glass Blade",null,null,null,null,null,null,"Rubi",null,null,null,{"$f":"IF(Suggested=\"Yes\",'Price List'!AA293,'Price List'!AG293)","v":48.95},"EA",{"$f":"+Instructions!$B$3","v":"N"},null,{"$f":"+Instructions!$D$22","v":0},{"$f":"ROUND($AA293*(1-W293)+0.004999,2)","v":48.95},null,"YES",48.95,{"$f":"+W293","v":0},{"$f":"+X293","v":48.95},{"$f":"(AG293-AC293)/AG293","v":0},null,{"$f":"+A293","v":"RU"},{"$f":"SUM(AJ293:AL293)+AE293","v":48.95},null,null,{"$f":"ROUND(AC293/(1-VLOOKUP(AF293,Group,2,FALSE)),2)","v":48.95},{"$f":"IF(VLOOKUP(AF293,Group,3,FALSE)=\"YES\",VLOOKUP(ROUND(ROUND(AJ293,1)-AJ293,2),Round,2,FALSE)+VLOOKUP(AF293,Group,4,FALSE),0)","v":0},{"$f":"IF(VLOOKUP(AF293,Group,5,FALSE)=\"\",0,ROUND(AJ293-0.04999,1)-AJ293+AM293)","v":0},{"$f":"IF(VLOOKUP(AF293,Group,5,FALSE)=\"\",\"\",VLOOKUP(AF293,Group,5,FALSE))","v":""},null,"X"]
["RU","Rubi - All Other",null,"RU31919",null,"10\" Blade",null,"31919 Glass Blade",null,null,null,null,null,null,"Rubi",null,"Stock",null,{"$f":"IF(Suggested=\"Yes\",'Price List'!AA294,'Price List'!AG294)","v":84.95},"EA",{"$f":"+Instructions!$B$3","v":"N"},null,{"$f":"+Instructions!$D$22","v":0},{"$f":"ROUND($AA294*(1-W294)+0.004999,2)","v":84.95},null,"YES",84.95,{"$f":"+W294","v":0},{"$f":"+X294","v":84.95},{"$f":"(AG294-AC294)/AG294","v":0},null,{"$f":"+A294","v":"RU"},{"$f":"SUM(AJ294:AL294)+AE294","v":84.95},null,null,{"$f":"ROUND(AC294/(1-VLOOKUP(AF294,Group,2,FALSE)),2)","v":84.95},{"$f":"IF(VLOOKUP(AF294,Group,3,FALSE)=\"YES\",VLOOKUP(ROUND(ROUND(AJ294,1)-AJ294,2),Round,2,FALSE)+VLOOKUP(AF294,Group,4,FALSE),0)","v":0},{"$f":"IF(VLOOKUP(AF294,Group,5,FALSE)=\"\",0,ROUND(AJ294-0.04999,1)-AJ294+AM294)","v":0},{"$f":"IF(VLOOKUP(AF294,Group,5,FALSE)=\"\",\"\",VLOOKUP(AF294,Group,5,FALSE))","v":""},null,"X"]
[null,null,null,null,"- Specialized wheel for cutting glass tiles to reduce chipping of glass edge",null,null,null,null,null,null,null,null,null,null,null,null,null,null,null,null,null,null,null,null,null,null,null,null,null,null,null,null,null,null,null,null,null,null,null,"X"]
[null,null,null,null,"- for glass tile, ceramic tile, porcelain tile and soft natural stones",null,null,null,null,null,null,null,null,null,null,null,null,null,null,null,null,null,null,null,null,null,null,null,null,null,null,null,null,null,null,null,null,null,null,null,"X"]
[null,null,null,null,null,null,null,null,null,null,null,null,null,null,null,null,null,null,null,null,null,null,null,null,null,null,null,null,null,null,null,null,null,null,null,null,null,null,null,null,"X"]
[null,null,"Tile Cutters"]
[null,null,null,null,null,null,null,null,null,null,null,null,null,null,null,null,null,null,null,null,null,null,null,null,null,null,null,null,null,null,null,null,null,null,null,null,null,null,null,null,"X"]
["PR1","Barwalt - Saws/Cutters",null,"PR70623",null,"70623 JP-680 Ishii Tile Cutter",null,null,null,null,"- 27\" Straight - 18\" Diagonal",null,null,null,"Barwalt",null,"Stock",null,{"$f":"IF(Suggested=\"Yes\",'Price List'!AA300,'Price List'!AG300)","v":469},"EA",{"$f":"+Instructions!$B$3","v":"N"},null,{"$f":"+Instructions!$D$22","v":0},{"$f":"ROUND($AA300*(1-W300)+0.004999,2)","v":469},null,"YES",469,{"$f":"+W300","v":0},{"$f":"+X300","v":469},{"$f":"(AG300-AC300)/AG300","v":0},null,{"$f":"+A300","v":"PR1"},{"$f":"SUM(AJ300:AL300)+AE300","v":469},null,null,{"$f":"ROUND(AC300/(1-VLOOKUP(AF300,Group,2,FALSE)),2)","v":469},{"$f":"IF(VLOOKUP(AF300,Group,3,FALSE)=\"YES\",VLOOKUP(ROUND(ROUND(AJ300,1)-AJ300,2),Round,2,FALSE)+VLOOKUP(AF300,Group,4,FALSE),0)","v":0},{"$f":"IF(VLOOKUP(AF300,Group,5,FALSE)=\"\",0,ROUND(AJ300-0.04999,1)-AJ300+AM300)","v":0},{"$f":"IF(VLOOKUP(AF300,Group,5,FALSE)=\"\",\"\",VLOOKUP(AF300,Group,5,FALSE))","v":""},null,"X"]
["PR","Barwalt - All Other",null,"PR70660",null,null,"70660 Ishii Replacement Scoring Wheels",null,null,null,null,null,null,null,"Barwalt",null,"Stock",null,{"$f":"IF(Suggested=\"Yes\",'Price List'!AA301,'Price List'!AG301)","v":39.75},"EA",{"$f":"+Instructions!$B$3","v":"N"},null,{"$f":"+Instructions!$D$22","v":0},{"$f":"ROUND($AA301*(1-W301)+0.004999,2)","v":39.75},null,"",39.75,{"$f":"+W301","v":0},{"$f":"+X301","v":39.75},{"$f":"(AG301-AC301)/AG301","v":0},null,{"$f":"+A301","v":"PR"},{"$f":"SUM(AJ301:AL301)+AE301","v":39.75},null,null,{"$f":"ROUND(AC301/(1-VLOOKUP(AF301,Group,2,FALSE)),2)","v":39.75},{"$f":"IF(VLOOKUP(AF301,Group,3,FALSE)=\"YES\",VLOOKUP(ROUND(ROUND(AJ301,1)-AJ301,2),Round,2,FALSE)+VLOOKUP(AF301,Group,4,FALSE),0)","v":0},{"$f":"IF(VLOOKUP(AF301,Group,5,FALSE)=\"\",0,ROUND(AJ301-0.04999,1)-AJ301+AM301)","v":0},{"$f":"IF(VLOOKUP(AF301,Group,5,FALSE)=\"\",\"\",VLOOKUP(AF301,Group,5,FALSE))","v":""},null,"X"]
[null,null,null,null,null,null,null,null,null,null,null,null,null,null,null,null,null,null,null,null,null,null,null,null,null,null,null,null,null,null,null,null,null,null,null,null,null,null,null,null,"X"]
["RU1","Rubi - Saws/Cutters",null,"RUTZ0850",null,"18974 TS-66 MAX Rubi Tile Cutter",null,null,null,null,"- 26\" Straight - 18\" Diagonal",null,null,null,"Rubi",null,null,null,{"$f":"IF(Suggested=\"Yes\",'Price List'!AA303,'Price List'!AG303)","v":479},"EA",{"$f":"+Instructions!$B$3","v":"N"},null,{"$f":"+Instructions!$D$22","v":0},{"$f":"ROUND($AA303*(1-W303)+0.004999,2)","v":479},null,"YES",479,{"$f":"+W303","v":0},479,{"$f":"(AG303-AC303)/AG303","v":0},null,{"$f":"+A303","v":"RU1"},{"$f":"SUM(AJ303:AL303)+AE303","v":479},null,null,{"$f":"ROUND(AC303/(1-VLOOKUP(AF303,Group,2,FALSE)),2)","v":479},{"$f":"IF(VLOOKUP(AF303,Group,3,FALSE)=\"YES\",VLOOKUP(ROUND(ROUND(AJ303,1)-AJ303,2),Round,2,FALSE)+VLOOKUP(AF303,Group,4,FALSE),0)","v":0},{"$f":"IF(VLOOKUP(AF303,Group,5,FALSE)=\"\",0,ROUND(AJ303-0.04999,1)-AJ303+AM303)","v":0},{"$f":"IF(VLOOKUP(AF303,Group,5,FALSE)=\"\",\"\",VLOOKUP(AF303,Group,5,FALSE))","v":""},null,"X"]
["RU1","Rubi - Saws/Cutters",null,"RUSPEED62N",null,"14985 SPEED-62 N Rubi Tile Cutter",null,null,null,null,"- 24\" Straight - 17\" Diagonal",null,null,null,"Rubi",null,"Stock",null,{"$f":"IF(Suggested=\"Yes\",'Price List'!AA304,'Price List'!AG304)","v":279},"EA",{"$f":"+Instructions!$B$3","v":"N"},null,{"$f":"+Instructions!$D$22","v":0},{"$f":"ROUND($AA304*(1-W304)+0.004999,2)","v":279},null,"",279,0,279,{"$f":"(AG304-AC304)/AG304","v":0},null,{"$f":"+A304","v":"RU1"},{"$f":"SUM(AJ304:AL304)+AE304","v":279},null,null,{"$f":"ROUND(AC304/(1-VLOOKUP(AF304,Group,2,FALSE)),2)","v":279},{"$f":"IF(VLOOKUP(AF304,Group,3,FALSE)=\"YES\",VLOOKUP(ROUND(ROUND(AJ304,1)-AJ304,2),Round,2,FALSE)+VLOOKUP(AF304,Group,4,FALSE),0)","v":0},{"$f":"IF(VLOOKUP(AF304,Group,5,FALSE)=\"\",0,ROUND(AJ304-0.04999,1)-AJ304+AM304)","v":0},{"$f":"IF(VLOOKUP(AF304,Group,5,FALSE)=\"\",\"\",VLOOKUP(AF304,Group,5,FALSE))","v":""},null,"X"]
["RU","Rubi - All Other",null,"RU01945",null,null,"01945 1/4\" (6mm) Carbide Scoring Wheel",null,null,null,null,null,null,null,"Rubi",null,null,null,{"$f":"IF(Suggested=\"Yes\",'Price List'!AA305,'Price List'!AG305)","v":15.05},"EA",{"$f":"+Instructions!$B$3","v":"N"},null,{"$f":"+Instructions!$D$22","v":0},{"$f":"ROUND($AA305*(1-W305)+0.004999,2)","v":15.05},null,"YES",15.05,0,15.05,{"$f":"(AG305-AC305)/AG305","v":0},null,{"$f":"+A305","v":"RU"},{"$f":"SUM(AJ305:AL305)+AE305","v":15.05},null,null,{"$f":"ROUND(AC305/(1-VLOOKUP(AF305,Group,2,FALSE)),2)","v":15.05},{"$f":"IF(VLOOKUP(AF305,Group,3,FALSE)=\"YES\",VLOOKUP(ROUND(ROUND(AJ305,1)-AJ305,2),Round,2,FALSE)+VLOOKUP(AF305,Group,4,FALSE),0)","v":0},{"$f":"IF(VLOOKUP(AF305,Group,5,FALSE)=\"\",0,ROUND(AJ305-0.04999,1)-AJ305+AM305)","v":0},{"$f":"IF(VLOOKUP(AF305,Group,5,FALSE)=\"\",\"\",VLOOKUP(AF305,Group,5,FALSE))","v":""},null,"X"]
["RU","Rubi - All Other",null,"RU01946",null,null,"01946 3/8\" (10mm) Carbide Scoring Wheel",null,null,null,null,null,null,null,"Rubi",null,"Stock",null,{"$f":"IF(Suggested=\"Yes\",'Price List'!AA306,'Price List'!AG306)","v":19.5},"EA",{"$f":"+Instructions!$B$3","v":"N"},null,{"$f":"+Instructions!$D$22","v":0},{"$f":"ROUND($AA306*(1-W306)+0.004999,2)","v":19.5},null,"YES",19.5,0,19.5,{"$f":"(AG306-AC306)/AG306","v":0},null,{"$f":"+A306","v":"RU"},{"$f":"SUM(AJ306:AL306)+AE306","v":19.5},null,null,{"$f":"ROUND(AC306/(1-VLOOKUP(AF306,Group,2,FALSE)),2)","v":19.5},{"$f":"IF(VLOOKUP(AF306,Group,3,FALSE)=\"YES\",VLOOKUP(ROUND(ROUND(AJ306,1)-AJ306,2),Round,2,FALSE)+VLOOKUP(AF306,Group,4,FALSE),0)","v":0},{"$f":"IF(VLOOKUP(AF306,Group,5,FALSE)=\"\",0,ROUND(AJ306-0.04999,1)-AJ306+AM306)","v":0},{"$f":"IF(VLOOKUP(AF306,Group,5,FALSE)=\"\",\"\",VLOOKUP(AF306,Group,5,FALSE))","v":""},null,"X"]
[null,null,null,null,null,null,null,null,null,null,null,null,null,null,null,null,null,null,null,null,null,null,null,null,null,null,null,null,null,null,null,null,null,null,null,null,null,null,null,null,"X"]
["RU1","Rubi - Saws/Cutters",null,"RUTX0710",null,"17910 - TX-710 MAX Rubi Tile Cutter",null,null,null,null,"- 28\" Straight - 20\" Diagonal",null,null,null,"Rubi",null,null,null,{"$f":"IF(Suggested=\"Yes\",'Price List'!AA308,'Price List'!AG308)","v":739.4},"EA",{"$f":"+Instructions!$B$3","v":"N"},null,{"$f":"+Instructions!$D$22","v":0},{"$f":"ROUND($AA308*(1-W308)+0.004999,2)","v":739.4},null,"YES",739.4,{"$f":"+W308","v":0},739.4,{"$f":"(AG308-AC308)/AG308","v":0},null,{"$f":"+A308","v":"RU1"},{"$f":"SUM(AJ308:AL308)+AE308","v":739.4},null,null,{"$f":"ROUND(AC308/(1-VLOOKUP(AF308,Group,2,FALSE)),2)","v":739.4},{"$f":"IF(VLOOKUP(AF308,Group,3,FALSE)=\"YES\",VLOOKUP(ROUND(ROUND(AJ308,1)-AJ308,2),Round,2,FALSE)+VLOOKUP(AF308,Group,4,FALSE),0)","v":0},{"$f":"IF(VLOOKUP(AF308,Group,5,FALSE)=\"\",0,ROUND(AJ308-0.04999,1)-AJ308+AM308)","v":0},{"$f":"IF(VLOOKUP(AF308,Group,5,FALSE)=\"\",\"\",VLOOKUP(AF308,Group,5,FALSE))","v":""},null,"X"]
["RU1","Rubi - Saws/Cutters",null,"RUTX1020",null,"17916 - TX-1020 MAX Rubi Tile Cutter",null,null,null,null,"- 40\" Straight - 28\" Diagonal",null,null,null,"Rubi",null,"Stock",null,{"$f":"IF(Suggested=\"Yes\",'Price List'!AA309,'Price List'!AG309)","v":769},"EA",{"$f":"+Instructions!$B$3","v":"N"},null,{"$f":"+Instructions!$D$22","v":0},{"$f":"ROUND($AA309*(1-W309)+0.004999,2)","v":769},null,"YES",769,0,769,{"$f":"(AG309-AC309)/AG309","v":0},null,{"$f":"+A309","v":"RU1"},{"$f":"SUM(AJ309:AL309)+AE309","v":769},null,null,{"$f":"ROUND(AC309/(1-VLOOKUP(AF309,Group,2,FALSE)),2)","v":769},{"$f":"IF(VLOOKUP(AF309,Group,3,FALSE)=\"YES\",VLOOKUP(ROUND(ROUND(AJ309,1)-AJ309,2),Round,2,FALSE)+VLOOKUP(AF309,Group,4,FALSE),0)","v":0},{"$f":"IF(VLOOKUP(AF309,Group,5,FALSE)=\"\",0,ROUND(AJ309-0.04999,1)-AJ309+AM309)","v":0},{"$f":"IF(VLOOKUP(AF309,Group,5,FALSE)=\"\",\"\",VLOOKUP(AF309,Group,5,FALSE))","v":""},null,"X"]
["RU1","Rubi - Saws/Cutters",null,"RUTX1250",null,"17922 - TX-1250 MAX Rubi Tile Cutter",null,null,null,null,"- 49\" Straight - 33\" Diagonal",null,null,null,"Rubi",null,null,null,{"$f":"IF(Suggested=\"Yes\",'Price List'!AA310,'Price List'!AG310)","v":1325.1},"EA",{"$f":"+Instructions!$B$3","v":"N"},null,{"$f":"+Instructions!$D$22","v":0},{"$f":"ROUND($AA310*(1-W310)+0.004999,2)","v":1325.1},null,"YES",1325.1,0,1325.1,{"$f":"(AG310-AC310)/AG310","v":0},null,{"$f":"+A310","v":"RU1"},{"$f":"SUM(AJ310:AL310)+AE310","v":1325.1},null,null,{"$f":"ROUND(AC310/(1-VLOOKUP(AF310,Group,2,FALSE)),2)","v":1325.1},{"$f":"IF(VLOOKUP(AF310,Group,3,FALSE)=\"YES\",VLOOKUP(ROUND(ROUND(AJ310,1)-AJ310,2),Round,2,FALSE)+VLOOKUP(AF310,Group,4,FALSE),0)","v":0},{"$f":"IF(VLOOKUP(AF310,Group,5,FALSE)=\"\",0,ROUND(AJ310-0.04999,1)-AJ310+AM310)","v":0},{"$f":"IF(VLOOKUP(AF310,Group,5,FALSE)=\"\",\"\",VLOOKUP(AF310,Group,5,FALSE))","v":""},null,"X"]
[null,null,null,null,null,null,null,null,null,null,null,null,null,null,null,null,null,null,null,null,null,null,null,null,null,null,null,null,null,null,null,null,null,null,null,null,null,null,null,null,"X"]
["RU1","Rubi - Saws/Cutters",null,"RUTZ0850",null,"17956 - TZ-850 Rubi Tile Cutter",null,null,null,null,"- 33\" Straight - 24\" Diagonal",null,null,null,"Rubi",null,null,null,{"$f":"IF(Suggested=\"Yes\",'Price List'!AA312,'Price List'!AG312)","v":915},"EA",{"$f":"+Instructions!$B$3","v":"N"},null,{"$f":"+Instructions!$D$22","v":0},{"$f":"ROUND($AA312*(1-W312)+0.004999,2)","v":915},null,"YES",915,{"$f":"+W312","v":0},915,{"$f":"(AG312-AC312)/AG312","v":0},null,{"$f":"+A312","v":"RU1"},{"$f":"SUM(AJ312:AL312)+AE312","v":915},null,null,{"$f":"ROUND(AC312/(1-VLOOKUP(AF312,Group,2,FALSE)),2)","v":915},0,0,"",null,"X"]
["RU1","Rubi - Saws/Cutters",null,"RUTZ1020",null,"17955 - TZ-1020 Rubi Tile Cutter",null,null,null,null,"- 40\" Straight - 28\" Diagonal",null,null,null,"Rubi",null,null,null,{"$f":"IF(Suggested=\"Yes\",'Price List'!AA313,'Price List'!AG313)","v":958},"EA",{"$f":"+Instructions!$B$3","v":"N"},null,{"$f":"+Instructions!$D$22","v":0},958,null,"YES",958,0,958,0,null,{"$f":"+A313","v":"RU1"},958,null,null,958,0,0,"",null,"X"]
["RU1","Rubi - Saws/Cutters",null,"RUTZ1300",null,"17957 - TZ-1300 Rubi Tile Cutter",null,null,null,null,"- 51\" Straight - 36\" Diagonal",null,null,null,"Rubi",null,null,null,{"$f":"IF(Suggested=\"Yes\",'Price List'!AA314,'Price List'!AG314)","v":1331},"EA",{"$f":"+Instructions!$B$3","v":"N"},null,{"$f":"+Instructions!$D$22","v":0},1331,null,"YES",1331,0,1331,0,null,{"$f":"+A314","v":"RU1"},1331,null,null,1331,0,0,"",null,"X"]
["RU1","Rubi - Saws/Cutters",null,"RUTZ1550",null,"17958 - TZ-1550 Rubi Tile Cutter",null,null,null,null,"- 61\" Straight - 44\" Diagonal",null,null,null,"Rubi",null,null,null,{"$f":"IF(Suggested=\"Yes\",'Price List'!AA315,'Price List'!AG315)","v":1485.5},"EA",{"$f":"+Instructions!$B$3","v":"N"},null,{"$f":"+Instructions!$D$22","v":0},1485.5,null,"YES",1485.5,0,1485.5,0,null,{"$f":"+A315","v":"RU1"},1485.5,null,null,1485.5,0,0,"",null,"X"]
["RU","Rubi - All Other",null,"RU01959",null,null,"01959 5/16\" (8mm) Plus Carbide Scoring Wheel",null,null,null,null,null,null,null,"Rubi",null,"Stock",null,{"$f":"IF(Suggested=\"Yes\",'Price List'!AA316,'Price List'!AG316)","v":23.45},"EA",{"$f":"+Instructions!$B$3","v":"N"},null,{"$f":"+Instructions!$D$22","v":0},23.45,null,"YES",23.45,{"$f":"+W316","v":0},23.45,0,null,{"$f":"+A316","v":"RU"},23.45,null,null,23.45,0,0,"",null,"X"]
["RU","Rubi - All Other",null,"RU01905",null,null,"01905 3/4\" (18mm) Plus Carbide Scoring Wheel",null,null,null,null,null,null,null,"Rubi",null,null,null,{"$f":"IF(Suggested=\"Yes\",'Price List'!AA317,'Price List'!AG317)","v":34.4},"EA",{"$f":"+Instructions!$B$3","v":"N"},null,{"$f":"+Instructions!$D$22","v":0},34.4,null,"YES",34.4,0,34.4,0,null,{"$f":"+A317","v":"RU"},34.4,null,null,34.4,0,0,"",null,"X"]
["RU","Rubi - All Other",null,"RU01900",null,null,"01900 7/8\" (22mm) Extreme Tungsten Carbide Scoring Wheel",null,null,null,null,null,null,null,"Rubi",null,null,null,{"$f":"IF(Suggested=\"Yes\",'Price List'!AA318,'Price List'!AG318)","v":75.75},"EA",{"$f":"+Instructions!$B$3","v":"N"},null,{"$f":"+Instructions!$D$22","v":0},75.75,null,"YES",75.75,0,75.75,{"$f":"(AG318-AC318)/AG318","v":0},null,{"$f":"+A318","v":"RU"},{"$f":"SUM(AJ318:AL318)+AE318","v":75.75},null,null,{"$f":"ROUND(AC318/(1-VLOOKUP(AF318,Group,2,FALSE)),2)","v":75.75},{"$f":"IF(VLOOKUP(AF318,Group,3,FALSE)=\"YES\",VLOOKUP(ROUND(ROUND(AJ318,1)-AJ318,2),Round,2,FALSE)+VLOOKUP(AF318,Group,4,FALSE),0)","v":0},{"$f":"IF(VLOOKUP(AF318,Group,5,FALSE)=\"\",0,ROUND(AJ318-0.04999,1)-AJ318+AM318)","v":0},{"$f":"IF(VLOOKUP(AF318,Group,5,FALSE)=\"\",\"\",VLOOKUP(AF318,Group,5,FALSE))","v":""},null,"X"]
[null,null,null,null,null,null,null,null,null,null,null,null,null,null,null,null,null,null,null,null,null,null,null,null,null,null,null,null,null,null,null,null,null,null,null,null,null,null,null,null,"X"]
[null,null,"continued on the next page",null,null,null,null,null,null,null,null,null,null,null,null,null,null,null,null,null,null,null,null,null,null,null,null,null,null,null,null,null,null,null,null,null,null,null,null,null,"X"]
[null,null,"Tile Cutters (continued)"]
[null,null,null,null,null,null,null,null,null,null,null,null,null,null,null,null,null,null,null,null,null,null,null,null,null,null,null,null,null,null,null,null,null,null,null,null,null,null,null,null,"X"]
["RS1","Sigma - Saws/Cutters",null,"RSTC2G",null,"2G - Sigma 14\" Pull Handle Tile Cutter",null,null,null,null,"- 14\" Straight - 10\" Diagonal",null,null,null,"Sigma",null,null,null,{"$f":"IF(Suggested=\"Yes\",'Price List'!AA323,'Price List'!AG323)","v":275.2},"EA",{"$f":"+Instructions!$B$3","v":"N"},null,{"$f":"+Instructions!$D$22","v":0},{"$f":"ROUND($AA323*(1-W323)+0.004999,2)","v":275.2},null,"YES",275.2,{"$f":"+W323","v":0},{"$f":"+X323","v":275.2},{"$f":"(AG323-AC323)/AG323","v":{"$error":"#N/A"}},null,{"$f":"+A323","v":"RS1"},{"$f":"SUM(AJ323:AL323)+AE323","v":{"$error":"#N/A"}},null,null,{"$f":"ROUND(AC323/(1-VLOOKUP(AF323,Group,2,FALSE)),2)","v":{"$error":"#N/A"}},{"$f":"IF(VLOOKUP(AF323,Group,3,FALSE)=\"YES\",VLOOKUP(ROUND(ROUND(AJ323,1)-AJ323,2),Round,2,FALSE)+VLOOKUP(AF323,Group,4,FALSE),0)","v":{"$error":"#N/A"}},{"$f":"IF(VLOOKUP(AF323,Group,5,FALSE)=\"\",0,ROUND(AJ323-0.04999,1)-AJ323+AM323)","v":{"$error":"#N/A"}},{"$f":"IF(VLOOKUP(AF323,Group,5,FALSE)=\"\",\"\",VLOOKUP(AF323,Group,5,FALSE))","v":{"$error":"#N/A"}},null,"X"]
["RS1","Sigma - Saws/Cutters",null,"RSTC3B4",null,"3B4 - Sigma 26\" Pull Handle Tile Cutter",null,null,null,null,"- 26\" Straight - 18\" Diagonal",null,null,null,"Sigma",null,null,null,{"$f":"IF(Suggested=\"Yes\",'Price List'!AA324,'Price List'!AG324)","v":595},"EA",{"$f":"+Instructions!$B$3","v":"N"},null,{"$f":"+Instructions!$D$22","v":0},{"$f":"ROUND($AA324*(1-W324)+0.004999,2)","v":595},null,"YES",595,{"$f":"+W324","v":0},{"$f":"+X324","v":595},{"$f":"(AG324-AC324)/AG324","v":{"$error":"#N/A"}},null,{"$f":"+A324","v":"RS1"},{"$f":"SUM(AJ324:AL324)+AE324","v":{"$error":"#N/A"}},null,null,{"$f":"ROUND(AC324/(1-VLOOKUP(AF324,Group,2,FALSE)),2)","v":{"$error":"#N/A"}},{"$f":"IF(VLOOKUP(AF324,Group,3,FALSE)=\"YES\",VLOOKUP(ROUND(ROUND(AJ324,1)-AJ324,2),Round,2,FALSE)+VLOOKUP(AF324,Group,4,FALSE),0)","v":{"$error":"#N/A"}},{"$f":"IF(VLOOKUP(AF324,Group,5,FALSE)=\"\",0,ROUND(AJ324-0.04999,1)-AJ324+AM324)","v":{"$error":"#N/A"}},{"$f":"IF(VLOOKUP(AF324,Group,5,FALSE)=\"\",\"\",VLOOKUP(AF324,Group,5,FALSE))","v":{"$error":"#N/A"}},null,"X"]
["RS1","Sigma - Saws/Cutters",null,"RSTC3D4",null,"3D4 - Sigma 36\" Pull Handle Tile Cutter",null,null,null,null,"- 36\" Straight - 26\" Diagonal",null,null,null,"Sigma",null,"Stock",null,{"$f":"IF(Suggested=\"Yes\",'Price List'!AA325,'Price List'!AG325)","v":695},"EA",{"$f":"+Instructions!$B$3","v":"N"},null,{"$f":"+Instructions!$D$22","v":0},695,null,"YES",695,0,695,{"$error":"#N/A"},null,{"$f":"+A325","v":"RS1"},{"$error":"#N/A"},null,null,{"$error":"#N/A"},{"$error":"#N/A"},{"$error":"#N/A"},{"$error":"#N/A"},null,"X"]
["RS","Sigma - All Other",null,"RSTC14A",null,null,"14A (12mm) Tile Cutter Wheel for 3B4 & 3D4",null,null,null,null,null,null,null,"Sigma",null,"Stock",null,{"$f":"IF(Suggested=\"Yes\",'Price List'!AA326,'Price List'!AG326)","v":24.8},"EA",{"$f":"+Instructions!$B$3","v":"N"},null,{"$f":"+Instructions!$D$22","v":0},{"$f":"ROUND($AA326*(1-W326)+0.004999,2)","v":24.8},null,"",24.8,{"$f":"+W326","v":0},{"$f":"+X326","v":24.8},{"$f":"(AG326-AC326)/AG326","v":{"$error":"#N/A"}},null,{"$f":"+A326","v":"RS"},{"$f":"SUM(AJ326:AL326)+AE326","v":{"$error":"#N/A"}},null,null,{"$error":"#N/A"},{"$error":"#N/A"},{"$error":"#N/A"},{"$error":"#N/A"},null,"X"]
["RS1","Sigma - Saws/Cutters",null,"RSTC3D4M",null,"3D4M - Sigma 36\" Push Handle Tile Cutter",null,null,null,null,"- 36\" Straight - 26\" Diagonal",null,null,null,"Sigma",null,null,null,{"$f":"IF(Suggested=\"Yes\",'Price List'!AA327,'Price List'!AG327)","v":811.1},"EA",{"$f":"+Instructions!$B$3","v":"N"},null,{"$f":"+Instructions!$D$22","v":0},811.1,null,"YES",811.1,0,811.1,{"$error":"#N/A"},null,{"$f":"+A327","v":"RS1"},{"$error":"#N/A"},null,null,{"$error":"#N/A"},{"$error":"#N/A"},{"$error":"#N/A"},{"$error":"#N/A"},null,"X"]
["RS1","Sigma - Saws/Cutters",null,"RSTC3E4M",null,"3E4M - Sigma 51\" Push Handle Tile Cutter",null,null,null,null,"- 51\" Straight - 35\" Diagonal",null,null,null,"Sigma",null,null,null,{"$f":"IF(Suggested=\"Yes\",'Price List'!AA328,'Price List'!AG328)","v":1216.8},"EA",{"$f":"+Instructions!$B$3","v":"N"},null,{"$f":"+Instructions!$D$22","v":0},1216.8,null,"YES",1216.8,{"$f":"+W328","v":0},{"$f":"+X328","v":1216.8},{"$f":"(AG328-AC328)/AG328","v":{"$error":"#N/A"}},null,{"$f":"+A328","v":"RS1"},{"$f":"SUM(AJ328:AL328)+AE328","v":{"$error":"#N/A"}},null,null,{"$error":"#N/A"},{"$error":"#N/A"},{"$error":"#N/A"},{"$error":"#N/A"},null,"X"]
["RS","Sigma - All Other",null,"RSTC14MX",null,null,"14MX (19mm) Tile Cutter Wheel for 3D4M and 3E4M",null,null,null,null,null,null,null,"Sigma",null,null,null,{"$f":"IF(Suggested=\"Yes\",'Price List'!AA329,'Price List'!AG329)","v":52.95},"EA",{"$f":"+Instructions!$B$3","v":"N"},null,{"$f":"+Instructions!$D$22","v":0},52.95,null,"",52.95,0,52.95,{"$error":"#N/A"},null,{"$f":"+A329","v":"RS"},{"$error":"#N/A"},null,null,{"$error":"#N/A"},{"$error":"#N/A"},{"$error":"#N/A"},{"$error":"#N/A"},null,"X"]
[]
[null,null,"Marble Polishing Tools",null,null,null,null,null,null,null,null,null,null,null,null,null,null,null,null,null,null,null,null,null,null,null,null,null,null,null,null,null,null,null,null,null,null,null,null,null,"X"]
[null,null,null,null,null,null,null,null,null,null,null,null,null,null,null,null,null,null,null,null,null,null,null,null,null,null,null,null,null,null,null,null,null,null,null,null,null,null,null,null,"X"]
["PR","Barwalt - All Other",null,"PR72563",null,"72563 Alpha 4\" Quick Change Adapter (PVA-58P)",null,null,null,null,null,null,null,null,"Barwalt",null,null,null,{"$f":"IF(Suggested=\"Yes\",'Price List'!AA333,'Price List'!AG333)","v":79.55},"EA",{"$f":"+Instructions!$B$3","v":"N"},null,{"$f":"+Instructions!$D$22","v":0},{"$f":"ROUND($AA333*(1-W333)+0.004999,2)","v":79.55},null,"",79.55,{"$f":"+W333","v":0},{"$f":"+X333","v":79.55},{"$f":"(AG333-AC333)/AG333","v":0},null,{"$f":"+A333","v":"PR"},{"$f":"SUM(AJ333:AL333)+AE333","v":79.55},null,null,{"$f":"ROUND(AC333/(1-VLOOKUP(AF333,Group,2,FALSE)),2)","v":79.55},{"$f":"IF(VLOOKUP(AF333,Group,3,FALSE)=\"YES\",VLOOKUP(ROUND(ROUND(AJ333,1)-AJ333,2),Round,2,FALSE)+VLOOKUP(AF333,Group,4,FALSE),0)","v":0},{"$f":"IF(VLOOKUP(AF333,Group,5,FALSE)=\"\",0,ROUND(AJ333-0.04999,1)-AJ333+AM333)","v":0},{"$f":"IF(VLOOKUP(AF333,Group,5,FALSE)=\"\",\"\",VLOOKUP(AF333,Group,5,FALSE))","v":""},null,"X"]
["PR","Barwalt - All Other",null,"PR72562",null,null,"72562 Alpha 4\" Quick Change Pads - Kit consists of all 5 polishers",null,null,null,null,null,null,null,"Barwalt",null,null,null,{"$f":"IF(Suggested=\"Yes\",'Price List'!AA334,'Price List'!AG334)","v":64.3},"EA",{"$f":"+Instructions!$B$3","v":"N"},null,{"$f":"+Instructions!$D$22","v":0},{"$f":"ROUND($AA334*(1-W334)+0.004999,2)","v":64.3},null,"",64.3,{"$f":"+W334","v":0},{"$f":"+X334","v":64.3},{"$f":"(AG334-AC334)/AG334","v":0},null,{"$f":"+A334","v":"PR"},{"$f":"SUM(AJ334:AL334)+AE334","v":64.3},null,null,{"$f":"ROUND(AC334/(1-VLOOKUP(AF334,Group,2,FALSE)),2)","v":64.3},{"$f":"IF(VLOOKUP(AF334,Group,3,FALSE)=\"YES\",VLOOKUP(ROUND(ROUND(AJ334,1)-AJ334,2),Round,2,FALSE)+VLOOKUP(AF334,Group,4,FALSE),0)","v":0},{"$f":"IF(VLOOKUP(AF334,Group,5,FALSE)=\"\",0,ROUND(AJ334-0.04999,1)-AJ334+AM334)","v":0},{"$f":"IF(VLOOKUP(AF334,Group,5,FALSE)=\"\",\"\",VLOOKUP(AF334,Group,5,FALSE))","v":""},null,"X"]
[null,null,null,null,null,null,null,null,null,null,null,null,null,null,null,null,null,null,null,null,null,null,null,null,null,null,null,null,null,null,null,null,null,null,null,null,null,null,null,null,"X"]
[null,null,"Other Cutting Tools & Markers"]
[null,null,null,null,null,null,null,null,null,null,null,null,null,null,null,null,null,null,null,null,null,null,null,null,null,null,null,null,null,null,null,null,null,null,null,null,null,null,null,null,"X"]
[null,null,null,"Hole Saws & Diamond Drill Bits",null,null,null,null,null,null,null,null,null,null,null,null,null,null,null,null,null,null,null,null,null,null,null,null,null,null,null,null,null,null,null,null,null,null,null,null,"X"]
["PR","Barwalt - All Other",null,"PR70470",null,70470,"1/8\"","Diamond Sure Bit for Porcelain Tile",null,null,null,null,null,null,"Barwalt",null,null,null,{"$f":"IF(Suggested=\"Yes\",'Price List'!AA339,'Price List'!AG339)","v":10.55},"EA",{"$f":"+Instructions!$B$3","v":"N"},null,{"$f":"+Instructions!$D$22","v":0},{"$f":"ROUND($AA339*(1-W339)+0.004999,2)","v":10.55},null,"",10.55,{"$f":"+W339","v":0},10.55,{"$f":"(AG339-AC339)/AG339","v":0},null,{"$f":"+A339","v":"PR"},{"$f":"SUM(AJ339:AL339)+AE339","v":10.55},null,null,{"$f":"ROUND(AC339/(1-VLOOKUP(AF339,Group,2,FALSE)),2)","v":10.55},{"$f":"IF(VLOOKUP(AF339,Group,3,FALSE)=\"YES\",VLOOKUP(ROUND(ROUND(AJ339,1)-AJ339,2),Round,2,FALSE)+VLOOKUP(AF339,Group,4,FALSE),0)","v":0},{"$f":"IF(VLOOKUP(AF339,Group,5,FALSE)=\"\",0,ROUND(AJ339-0.04999,1)-AJ339+AM339)","v":0},{"$f":"IF(VLOOKUP(AF339,Group,5,FALSE)=\"\",\"\",VLOOKUP(AF339,Group,5,FALSE))","v":""},null,"X"]
["PR","Barwalt - All Other",null,"PR70471",null,70471,"3/16\"","Diamond Sure Bit for Porcelain Tile",null,null,null,null,null,null,"Barwalt",null,null,null,{"$f":"IF(Suggested=\"Yes\",'Price List'!AA340,'Price List'!AG340)","v":11.35},"EA",{"$f":"+Instructions!$B$3","v":"N"},null,{"$f":"+Instructions!$D$22","v":0},11.35,null,"YES",11.35,0,11.35,0,null,{"$f":"+A340","v":"PR"},11.35,null,null,11.35,0,0,"",null,"X"]
["PR","Barwalt - All Other",null,"PR70472",null,70472,"1/4\"","Diamond Sure Bit for Porcelain Tile",null,null,null,null,null,null,"Barwalt",null,"Stock",null,{"$f":"IF(Suggested=\"Yes\",'Price List'!AA341,'Price List'!AG341)","v":12.55},"EA",{"$f":"+Instructions!$B$3","v":"N"},null,{"$f":"+Instructions!$D$22","v":0},12.55,null,"",12.55,0,12.55,0,null,{"$f":"+A341","v":"PR"},12.55,null,null,12.55,0,0,"",null,"X"]
["PR","Barwalt - All Other",null,"PR70473",null,70473,"5/16\"","Diamond Sure Bit for Porcelain Tile",null,null,null,null,null,null,"Barwalt",null,null,null,{"$f":"IF(Suggested=\"Yes\",'Price List'!AA342,'Price List'!AG342)","v":15.45},"EA",{"$f":"+Instructions!$B$3","v":"N"},null,{"$f":"+Instructions!$D$22","v":0},15.45,null,"",15.45,0,15.45,0,null,{"$f":"+A342","v":"PR"},15.45,null,null,15.45,0,0,"",null,"X"]
[null,null,null,null,null,null,null,null,null,null,null,null,null,null,null,null,null,null,null,null,null,null,null,null,null,null,null,null,null,null,null,null,null,null,null,null,null,null,null,null,"X"]
["PR","Barwalt - All Other",null,"PR70474",null,70474,"3/8\"","Diamond Sure Bit for Porcelain Tile",null,null,null,null,null,null,"Barwalt",null,null,null,{"$f":"IF(Suggested=\"Yes\",'Price List'!AA344,'Price List'!AG344)","v":18.05},"EA",{"$f":"+Instructions!$B$3","v":"N"},null,{"$f":"+Instructions!$D$22","v":0},18.05,null,"",18.05,0,18.05,0,null,{"$f":"+A344","v":"PR"},18.05,null,null,18.05,0,0,"",null,"X"]
["PR","Barwalt - All Other",null,"PR70475",null,70475,"1/2\"","Diamond Sure Bit for Porcelain Tile",null,null,null,null,null,null,"Barwalt",null,"Stock",null,{"$f":"IF(Suggested=\"Yes\",'Price List'!AA345,'Price List'!AG345)","v":22.95},"EA",{"$f":"+Instructions!$B$3","v":"N"},null,{"$f":"+Instructions!$D$22","v":0},22.95,null,"",22.95,0,22.95,0,null,{"$f":"+A345","v":"PR"},22.95,null,null,22.95,0,0,"",null,"X"]
["PR","Barwalt - All Other",null,"PR70476",null,70476,"5/8\"","Diamond Sure Bit for Porcelain Tile",null,null,null,null,null,null,"Barwalt",null,null,null,{"$f":"IF(Suggested=\"Yes\",'Price List'!AA346,'Price List'!AG346)","v":25.7},"EA",{"$f":"+Instructions!$B$3","v":"N"},null,{"$f":"+Instructions!$D$22","v":0},25.7,null,"",25.7,0,25.7,0,null,{"$f":"+A346","v":"PR"},25.7,null,null,25.7,0,0,"",null,"X"]
["PR","Barwalt - All Other",null,"PR70477",null,70477,"3/4\"","Diamond Sure Bit for Porcelain Tile",null,null,null,null,null,null,"Barwalt",null,null,null,{"$f":"IF(Suggested=\"Yes\",'Price List'!AA347,'Price List'!AG347)","v":28.95},"EA",{"$f":"+Instructions!$B$3","v":"N"},null,{"$f":"+Instructions!$D$22","v":0},{"$f":"ROUND($AA347*(1-W347)+0.004999,2)","v":28.95},null,"",28.95,{"$f":"+W347","v":0},{"$f":"+X347","v":28.95},{"$f":"(AG347-AC347)/AG347","v":0},null,{"$f":"+A347","v":"PR"},{"$f":"SUM(AJ347:AL347)+AE347","v":28.95},null,null,{"$f":"ROUND(AC347/(1-VLOOKUP(AF347,Group,2,FALSE)),2)","v":28.95},0,0,"",null,"X"]
["PR","Barwalt - All Other",null,"PR70478",null,70478,"7/8\"","Diamond Sure Bit for Porcelain Tile",null,null,null,null,null,null,"Barwalt",null,null,null,{"$f":"IF(Suggested=\"Yes\",'Price List'!AA348,'Price List'!AG348)","v":31.85},"EA",{"$f":"+Instructions!$B$3","v":"N"},null,{"$f":"+Instructions!$D$22","v":0},31.85,null,"",31.85,0,31.85,0,null,{"$f":"+A348","v":"PR"},31.85,null,null,31.85,0,0,"",null,"X"]
[null,null,null,null,null,null,null,null,null,null,null,null,null,null,null,null,null,null,null,null,null,null,null,null,null,null,null,null,null,null,null,null,null,null,null,null,null,null,null,null,"X"]
["PR","Barwalt - All Other",null,"PR70479",null,70479,"1\"","Diamond Sure Bit for Porcelain Tile",null,null,null,null,null,null,"Barwalt",null,"Stock",null,{"$f":"IF(Suggested=\"Yes\",'Price List'!AA350,'Price List'!AG350)","v":33.549999999999997},"EA",{"$f":"+Instructions!$B$3","v":"N"},null,{"$f":"+Instructions!$D$22","v":0},33.549999999999997,null,"",33.549999999999997,0,33.549999999999997,0,null,{"$f":"+A350","v":"PR"},33.549999999999997,null,null,33.549999999999997,{"$f":"IF(VLOOKUP(AF350,Group,3,FALSE)=\"YES\",VLOOKUP(ROUND(ROUND(AJ350,1)-AJ350,2),Round,2,FALSE)+VLOOKUP(AF350,Group,4,FALSE),0)","v":0},{"$f":"IF(VLOOKUP(AF350,Group,5,FALSE)=\"\",0,ROUND(AJ350-0.04999,1)-AJ350+AM350)","v":0},{"$f":"IF(VLOOKUP(AF350,Group,5,FALSE)=\"\",\"\",VLOOKUP(AF350,Group,5,FALSE))","v":""},null,"X"]
["PR","Barwalt - All Other",null,"PR70480",null,70480,"1-1/8\"","Diamond Sure Bit for Porcelain Tile",null,null,null,null,null,null,"Barwalt",null,null,null,{"$f":"IF(Suggested=\"Yes\",'Price List'!AA351,'Price List'!AG351)","v":36.15},"EA",{"$f":"+Instructions!$B$3","v":"N"},null,{"$f":"+Instructions!$D$22","v":0},36.15,null,"",36.15,0,36.15,0,null,{"$f":"+A351","v":"PR"},36.15,null,null,36.15,0,0,"",null,"X"]
["PR","Barwalt - All Other",null,"PR70481",null,70481,"1-1/4\"","Diamond Sure Bit for Porcelain Tile",null,null,null,null,null,null,"Barwalt",null,null,null,{"$f":"IF(Suggested=\"Yes\",'Price List'!AA352,'Price List'!AG352)","v":37.85},"EA",{"$f":"+Instructions!$B$3","v":"N"},null,{"$f":"+Instructions!$D$22","v":0},37.85,null,"YES",37.85,0,37.85,0,null,{"$f":"+A352","v":"PR"},37.85,null,null,37.85,0,0,"",null,"X"]
["PR","Barwalt - All Other",null,"PR70482",null,70482,"1-3/8\"","Diamond Sure Bit for Porcelain Tile",null,null,null,null,null,null,"Barwalt",null,"Stock",null,{"$f":"IF(Suggested=\"Yes\",'Price List'!AA353,'Price List'!AG353)","v":41.65},"EA",{"$f":"+Instructions!$B$3","v":"N"},null,{"$f":"+Instructions!$D$22","v":0},41.65,null,"",41.65,0,41.65,0,null,{"$f":"+A353","v":"PR"},41.65,null,null,41.65,0,0,"",null,"X"]
["PR","Barwalt - All Other",null,"PR70483",null,70483,"1-1/2\"","Diamond Sure Bit for Porcelain Tile",null,null,null,null,null,null,"Barwalt",null,null,null,{"$f":"IF(Suggested=\"Yes\",'Price List'!AA354,'Price List'!AG354)","v":45.05},"EA",{"$f":"+Instructions!$B$3","v":"N"},null,{"$f":"+Instructions!$D$22","v":0},45.05,null,"YES",45.05,0,45.05,0,null,{"$f":"+A354","v":"PR"},45.05,null,null,45.05,0,0,"",null,"X"]
["PR","Barwalt - All Other",null,"PR70484",null,70484,"1-3/4\"","Diamond Sure Bit for Porcelain Tile",null,null,null,null,null,null,"Barwalt",null,null,null,{"$f":"IF(Suggested=\"Yes\",'Price List'!AA355,'Price List'!AG355)","v":48.1},"EA",{"$f":"+Instructions!$B$3","v":"N"},null,{"$f":"+Instructions!$D$22","v":0},48.1,null,"",48.1,0,48.1,0,null,{"$f":"+A355","v":"PR"},48.1,null,null,48.1,0,0,"",null,"X"]
[null,null,null,null,null,null,null,null,null,null,null,null,null,null,null,null,null,null,null,null,null,null,null,null,null,null,null,null,null,null,null,null,null,null,null,null,null,null,null,null,"X"]
["PR","Barwalt - All Other",null,"PR70485",null,70485,"2\"","Diamond Sure Bit for Porcelain Tile",null,null,null,null,null,null,"Barwalt",null,"Stock",null,{"$f":"IF(Suggested=\"Yes\",'Price List'!AA357,'Price List'!AG357)","v":52.7},"EA",{"$f":"+Instructions!$B$3","v":"N"},null,{"$f":"+Instructions!$D$22","v":0},52.7,null,"",52.7,0,52.7,0,null,{"$f":"+A357","v":"PR"},52.7,null,null,52.7,{"$f":"IF(VLOOKUP(AF357,Group,3,FALSE)=\"YES\",VLOOKUP(ROUND(ROUND(AJ357,1)-AJ357,2),Round,2,FALSE)+VLOOKUP(AF357,Group,4,FALSE),0)","v":0},{"$f":"IF(VLOOKUP(AF357,Group,5,FALSE)=\"\",0,ROUND(AJ357-0.04999,1)-AJ357+AM357)","v":0},{"$f":"IF(VLOOKUP(AF357,Group,5,FALSE)=\"\",\"\",VLOOKUP(AF357,Group,5,FALSE))","v":""},null,"X"]
["PR","Barwalt - All Other",null,"PR70486",null,70486,"2-1/4\"","Diamond Sure Bit for Porcelain Tile",null,null,null,null,null,null,"Barwalt",null,null,null,{"$f":"IF(Suggested=\"Yes\",'Price List'!AA358,'Price List'!AG358)","v":60.8},"EA",{"$f":"+Instructions!$B$3","v":"N"},null,{"$f":"+Instructions!$D$22","v":0},60.8,null,"",60.8,0,60.8,0,null,{"$f":"+A358","v":"PR"},60.8,null,null,60.8,{"$f":"IF(VLOOKUP(AF358,Group,3,FALSE)=\"YES\",VLOOKUP(ROUND(ROUND(AJ358,1)-AJ358,2),Round,2,FALSE)+VLOOKUP(AF358,Group,4,FALSE),0)","v":0},{"$f":"IF(VLOOKUP(AF358,Group,5,FALSE)=\"\",0,ROUND(AJ358-0.04999,1)-AJ358+AM358)","v":0},{"$f":"IF(VLOOKUP(AF358,Group,5,FALSE)=\"\",\"\",VLOOKUP(AF358,Group,5,FALSE))","v":""},null,"X"]
["PR","Barwalt - All Other",null,"PR70487",null,70487,"2-1/2\"","Diamond Sure Bit for Porcelain Tile",null,null,null,null,null,null,"Barwalt",null,null,null,{"$f":"IF(Suggested=\"Yes\",'Price List'!AA359,'Price List'!AG359)","v":66.650000000000006},"EA",{"$f":"+Instructions!$B$3","v":"N"},null,{"$f":"+Instructions!$D$22","v":0},66.650000000000006,null,"",66.650000000000006,0,66.650000000000006,0,null,{"$f":"+A359","v":"PR"},66.650000000000006,null,null,66.650000000000006,{"$f":"IF(VLOOKUP(AF359,Group,3,FALSE)=\"YES\",VLOOKUP(ROUND(ROUND(AJ359,1)-AJ359,2),Round,2,FALSE)+VLOOKUP(AF359,Group,4,FALSE),0)","v":0},{"$f":"IF(VLOOKUP(AF359,Group,5,FALSE)=\"\",0,ROUND(AJ359-0.04999,1)-AJ359+AM359)","v":0},{"$f":"IF(VLOOKUP(AF359,Group,5,FALSE)=\"\",\"\",VLOOKUP(AF359,Group,5,FALSE))","v":""},null,"X"]
["PR","Barwalt - All Other",null,"PR70488",null,70488,"2-3/4\"","Diamond Sure Bit for Porcelain Tile",null,null,null,null,null,null,"Barwalt",null,null,null,{"$f":"IF(Suggested=\"Yes\",'Price List'!AA360,'Price List'!AG360)","v":75.05},"EA",{"$f":"+Instructions!$B$3","v":"N"},null,{"$f":"+Instructions!$D$22","v":0},75.05,null,"",75.05,0,75.05,0,null,{"$f":"+A360","v":"PR"},75.05,null,null,75.05,{"$f":"IF(VLOOKUP(AF360,Group,3,FALSE)=\"YES\",VLOOKUP(ROUND(ROUND(AJ360,1)-AJ360,2),Round,2,FALSE)+VLOOKUP(AF360,Group,4,FALSE),0)","v":0},{"$f":"IF(VLOOKUP(AF360,Group,5,FALSE)=\"\",0,ROUND(AJ360-0.04999,1)-AJ360+AM360)","v":0},{"$f":"IF(VLOOKUP(AF360,Group,5,FALSE)=\"\",\"\",VLOOKUP(AF360,Group,5,FALSE))","v":""},null,"X"]
["PR","Barwalt - All Other",null,"PR70489",null,70489,"3\"","Diamond Sure Bit for Porcelain Tile",null,null,null,null,null,null,"Barwalt",null,"Stock",null,{"$f":"IF(Suggested=\"Yes\",'Price List'!AA361,'Price List'!AG361)","v":84.9},"EA",{"$f":"+Instructions!$B$3","v":"N"},null,{"$f":"+Instructions!$D$22","v":0},84.9,null,"YES",84.9,0,84.9,0,null,{"$f":"+A361","v":"PR"},84.9,null,null,84.9,{"$f":"IF(VLOOKUP(AF361,Group,3,FALSE)=\"YES\",VLOOKUP(ROUND(ROUND(AJ361,1)-AJ361,2),Round,2,FALSE)+VLOOKUP(AF361,Group,4,FALSE),0)","v":0},{"$f":"IF(VLOOKUP(AF361,Group,5,FALSE)=\"\",0,ROUND(AJ361-0.04999,1)-AJ361+AM361)","v":0},{"$f":"IF(VLOOKUP(AF361,Group,5,FALSE)=\"\",\"\",VLOOKUP(AF361,Group,5,FALSE))","v":""},null,"X"]
[null,null,null,null,null,null,null,null,null,null,null,null,null,null,null,null,null,null,null,null,null,null,null,null,null,null,null,null,null,null,null,null,null,null,null,null,null,null,null,null,"X"]
[null,null,null,"Nippers",null,null,null,null,null,null,null,null,null,null,null,null,null,null,null,null,null,null,null,null,null,null,null,null,null,null,null,null,null,null,null,null,null,null,null,null,"X"]
["RU","Rubi - All Other",null,"RU83942",null,"83942 Nippers for Porcelain and Glass Tiles",null,null,null,null,null,null,null,null,"Rubi",null,null,null,{"$f":"IF(Suggested=\"Yes\",'Price List'!AA364,'Price List'!AG364)","v":61.5},"EA",{"$f":"+Instructions!$B$3","v":"N"},null,{"$f":"+Instructions!$D$22","v":0},{"$f":"ROUND($AA364*(1-W364)+0.004999,2)","v":61.5},null,"YES",61.5,{"$f":"+W364","v":0},{"$f":"+X364","v":61.5},{"$f":"(AG364-AC364)/AG364","v":0},null,{"$f":"+A364","v":"RU"},{"$f":"SUM(AJ364:AL364)+AE364","v":61.5},null,null,{"$f":"ROUND(AC364/(1-VLOOKUP(AF364,Group,2,FALSE)),2)","v":61.5},{"$f":"IF(VLOOKUP(AF364,Group,3,FALSE)=\"YES\",VLOOKUP(ROUND(ROUND(AJ364,1)-AJ364,2),Round,2,FALSE)+VLOOKUP(AF364,Group,4,FALSE),0)","v":0},{"$f":"IF(VLOOKUP(AF364,Group,5,FALSE)=\"\",0,ROUND(AJ364-0.04999,1)-AJ364+AM364)","v":0},{"$f":"IF(VLOOKUP(AF364,Group,5,FALSE)=\"\",\"\",VLOOKUP(AF364,Group,5,FALSE))","v":""},null,"X"]
[null,null,null,null,null,null,null,null,null,null,null,null,null,null,null,null,null,null,null,null,null,null,null,null,null,null,null,null,null,null,null,null,null,null,null,null,null,null,null,null,"X"]
[null,null,null,"Rub Stones / Dressing Sticks",null,null,null,null,null,null,null,null,null,null,null,null,null,null,null,null,null,null,null,null,null,null,null,null,null,null,null,null,null,null,null,null,null,null,null,null,"X"]
["IQ","IQ Tools - All Other",null,"IQIQPDS00100",null,null,"iQPDS00100 8\" Professional Dressing Stone",null,null,null,null,null,null,null,"IQ Tools",null,"Stock",null,{"$f":"IF(Suggested=\"Yes\",'Price List'!AA367,'Price List'!AG367)","v":15.15},"EA",{"$f":"+Instructions!$B$3","v":"N"},null,{"$f":"+Instructions!$D$22","v":0},{"$f":"ROUND($AA367*(1-W367)+0.004999,2)","v":15.15},null,"YES",15.15,{"$f":"+W367","v":0},{"$f":"+X367","v":15.15},{"$f":"(AG367-AC367)/AG367","v":0},null,{"$f":"+A367","v":"IQ"},{"$f":"SUM(AJ367:AL367)+AE367","v":15.15},null,null,{"$f":"ROUND(AC367/(1-VLOOKUP(AF367,Group,2,FALSE)),2)","v":15.15},{"$f":"IF(VLOOKUP(AF367,Group,3,FALSE)=\"YES\",VLOOKUP(ROUND(ROUND(AJ367,1)-AJ367,2),Round,2,FALSE)+VLOOKUP(AF367,Group,4,FALSE),0)","v":0},{"$f":"IF(VLOOKUP(AF367,Group,5,FALSE)=\"\",0,ROUND(AJ367-0.04999,1)-AJ367+AM367)","v":0},{"$f":"IF(VLOOKUP(AF367,Group,5,FALSE)=\"\",\"\",VLOOKUP(AF367,Group,5,FALSE))","v":""},null,"X"]
[null,null,null,null,null,null,null,null,null,null,null,null,null,null,null,null,null,null,null,null,null,null,null,null,null,null,null,null,null,null,null,null,null,null,null,null,null,null,null,null,"X"]
[null,null,"Mixers",null,null,null,null,null,null,null,null,null,null,null,null,null,null,null,null,null,null,null,null,null,null,null,null,null,null,null,null,null,null,null,null,null,null,null,null,null,"X"]
[null,null,null,null,null,null,null,null,null,null,null,null,null,null,null,null,null,null,null,null,null,null,null,null,null,null,null,null,null,null,null,null,null,null,null,null,null,null,null,null,"X"]
["PR","Barwalt - All Other",null,"PRMX1",null,"82000 MX-1 Kwik-Mixer Blade",null,null,null,null,"- Double Box - Round",null,null,null,"Barwalt",null,"Stock",null,{"$f":"IF(Suggested=\"Yes\",'Price List'!AA371,'Price List'!AG371)","v":15.9},"EA",{"$f":"+Instructions!$B$3","v":"N"},null,{"$f":"+Instructions!$D$22","v":0},15.9,null,"YES",15.9,0,15.9,0,null,{"$f":"+A371","v":"PR"},15.9,null,null,15.9,{"$f":"IF(VLOOKUP(AF371,Group,3,FALSE)=\"YES\",VLOOKUP(ROUND(ROUND(AJ371,1)-AJ371,2),Round,2,FALSE)+VLOOKUP(AF371,Group,4,FALSE),0)","v":0},{"$f":"IF(VLOOKUP(AF371,Group,5,FALSE)=\"\",0,ROUND(AJ371-0.04999,1)-AJ371+AM371)","v":0},{"$f":"IF(VLOOKUP(AF371,Group,5,FALSE)=\"\",\"\",VLOOKUP(AF371,Group,5,FALSE))","v":""},null,"X"]
["TR","Troxell - All Other",null,"TX07366",null,"07-366 28\" Cheater Beater",null,null,null,null,"- Double Box - Round",null,null,null,"Troxell",null,null,"New",{"$f":"IF(Suggested=\"Yes\",'Price List'!AA372,'Price List'!AG372)","v":12.2},"EA",{"$f":"+Instructions!$B$3","v":"N"},null,{"$f":"+Instructions!$D$22","v":0},{"$f":"ROUND($AA372*(1-W372)+0.004999,2)","v":12.2},null,"YES",12.2,{"$f":"+W372","v":0},{"$f":"+X372","v":12.2},{"$f":"(AG372-AC372)/AG372","v":0},null,{"$f":"+A372","v":"TR"},{"$f":"SUM(AJ372:AL372)+AE372","v":12.2},null,null,{"$f":"ROUND(AC372/(1-VLOOKUP(AF372,Group,2,FALSE)),2)","v":12.2},{"$f":"IF(VLOOKUP(AF372,Group,3,FALSE)=\"YES\",VLOOKUP(ROUND(ROUND(AJ372,1)-AJ372,2),Round,2,FALSE)+VLOOKUP(AF372,Group,4,FALSE),0)","v":0},{"$f":"IF(VLOOKUP(AF372,Group,5,FALSE)=\"\",0,ROUND(AJ372-0.04999,1)-AJ372+AM372)","v":0},{"$f":"IF(VLOOKUP(AF372,Group,5,FALSE)=\"\",\"\",VLOOKUP(AF372,Group,5,FALSE))","v":""},null,"X"]
[null,null,null,null,null,null,null,null,null,null,null,null,null,null,null,null,null,null,null,null,null,null,null,null,null,null,null,null,null,null,null,null,null,null,null,null,null,null,null,null,"X"]
[null,null,"Water Heaters",null,null,null,null,null,null,null,null,null,null,null,null,null,null,null,null,null,null,null,null,null,null,null,null,null,null,null,null,null,null,null,null,null,null,null,null,null,"X"]
[null,null,null,null,null,null,null,null,null,null,null,null,null,null,null,null,null,null,null,null,null,null,null,null,null,null,null,null,null,null,null,null,null,null,null,null,null,null,null,null,"X"]
["PR","Barwalt - All Other",null,"PR71340",null,"71340 Bucket Water Heater",null,null,null,null,null,null,null,null,"Barwalt",null,"Stock",null,{"$f":"IF(Suggested=\"Yes\",'Price List'!AA376,'Price List'!AG376)","v":86.6},"EA",{"$f":"+Instructions!$B$3","v":"N"},null,{"$f":"+Instructions!$D$22","v":0},86.6,null,"YES",86.6,0,86.6,0,null,{"$f":"+A376","v":"PR"},86.6,null,null,86.6,{"$f":"IF(VLOOKUP(AF376,Group,3,FALSE)=\"YES\",VLOOKUP(ROUND(ROUND(AJ376,1)-AJ376,2),Round,2,FALSE)+VLOOKUP(AF376,Group,4,FALSE),0)","v":0},{"$f":"IF(VLOOKUP(AF376,Group,5,FALSE)=\"\",0,ROUND(AJ376-0.04999,1)-AJ376+AM376)","v":0},{"$f":"IF(VLOOKUP(AF376,Group,5,FALSE)=\"\",\"\",VLOOKUP(AF376,Group,5,FALSE))","v":""},null,"X"]
[null,null,null,null,null,null,null,null,null,null,null,null,null,null,null,null,null,null,null,null,null,null,null,null,null,null,null,null,null,null,null,null,null,null,null,null,null,null,null,null,"X"]
[null,null,"Floor Protection",null,null,null,null,null,null,null,null,null,null,null,null,null,null,null,null,null,null,null,null,null,null,null,null,null,null,null,null,null,null,null,null,null,null,null,null,null,"X"]
[null,null,null,null,null,null,null,null,null,null,null,null,null,null,null,null,null,null,null,null,null,null,null,null,null,null,null,null,null,null,null,null,null,null,null,null,null,null,null,null,"X"]
["PA","Pamarva - All Other",null,"PAGUARDIA300SF",null,"36in x 100ft Guardia Surface Protection",null,null,null,null,null,null,null,null,"Pamarva",null,"Stock","new",{"$f":"IF(Suggested=\"Yes\",'Price List'!AA380,'Price List'!AG380)","v":62.85},"EA",{"$f":"+Instructions!$B$3","v":"N"},null,{"$f":"+Instructions!$D$22","v":0},{"$f":"ROUND($AA380*(1-W380)+0.004999,2)","v":62.85},null,"YES",62.85,{"$f":"+W380","v":0},{"$f":"+X380","v":62.85},{"$f":"(AG380-AC380)/AG380","v":{"$error":"#N/A"}},null,{"$f":"+A380","v":"PA"},{"$f":"SUM(AJ380:AL380)+AE380","v":{"$error":"#N/A"}},null,null,{"$f":"ROUND(AC380/(1-VLOOKUP(AF380,Group,2,FALSE)),2)","v":{"$error":"#N/A"}},{"$f":"IF(VLOOKUP(AF380,Group,3,FALSE)=\"YES\",VLOOKUP(ROUND(ROUND(AJ380,1)-AJ380,2),Round,2,FALSE)+VLOOKUP(AF380,Group,4,FALSE),0)","v":{"$error":"#N/A"}},{"$f":"IF(VLOOKUP(AF380,Group,5,FALSE)=\"\",0,ROUND(AJ380-0.04999,1)-AJ380+AM380)","v":{"$error":"#N/A"}},{"$f":"IF(VLOOKUP(AF380,Group,5,FALSE)=\"\",\"\",VLOOKUP(AF380,Group,5,FALSE))","v":{"$error":"#N/A"}},null,"X"]
[null,null,null,null,null,null,null,null,null,null,null,null,null,null,null,null,null,null,null,null,null,null,null,null,null,null,null,null,null,null,null,null,null,null,null,null,null,null,null,null,"X"]
[null,null,"Miscellaneous Tools",null,null,null,null,null,null,null,null,null,null,null,null,null,null,null,null,null,null,null,null,null,null,null,null,null,null,null,null,null,null,null,null,null,null,null,null,null,"X"]
[null,null,null,null,null,null,null,null,null,null,null,null,null,null,null,null,null,null,null,null,null,null,null,null,null,null,null,null,null,null,null,null,null,null,null,null,null,null,null,null,"X"]
["PR","Barwalt - All Other",null,"MIQPK101KIT",null,"Pitch",null,null,"71512 Quick-Pitch Kit (Mark E Industries)",null,null,null,null,null,"Barwalt",null,null,null,{"$f":"IF(Suggested=\"Yes\",'Price List'!AA384,'Price List'!AG384)","v":40.85},"EA",{"$f":"+Instructions!$B$3","v":"N"},null,{"$f":"+Instructions!$D$22","v":0},40.85,null,"",40.85,0,40.85,0,null,{"$f":"+A384","v":"PR"},40.85,null,null,40.85,{"$f":"IF(VLOOKUP(AF384,Group,3,FALSE)=\"YES\",VLOOKUP(ROUND(ROUND(AJ384,1)-AJ384,2),Round,2,FALSE)+VLOOKUP(AF384,Group,4,FALSE),0)","v":0},{"$f":"IF(VLOOKUP(AF384,Group,5,FALSE)=\"\",0,ROUND(AJ384-0.04999,1)-AJ384+AM384)","v":0},{"$f":"IF(VLOOKUP(AF384,Group,5,FALSE)=\"\",\"\",VLOOKUP(AF384,Group,5,FALSE))","v":""},null,"X"]
[null,null,null,null,null," - kit contains: 6-float sticks 1\" to 1-3/4\" x 36\" length and center ring",null,null,null,null,null,null,null,null,null,null,null,null,null,null,null,null,null,null,null,null,null,null,null,null,null,null,null,null,null,null,null,null,null,null,"X"]
["PR","Barwalt - All Other",null,"MIEFS103",null,"Pitch",null,null,"71514 Quick Pitch Extended Float Stick Kit",null,null,null,null,null,"Barwalt",null,null,null,{"$f":"IF(Suggested=\"Yes\",'Price List'!AA386,'Price List'!AG386)","v":29.45},"EA",{"$f":"+Instructions!$B$3","v":"N"},null,{"$f":"+Instructions!$D$22","v":0},{"$f":"ROUND($AA386*(1-W386)+0.004999,2)","v":29.45},null,"YES",29.45,{"$f":"+W386","v":0},29.45,{"$f":"(AG386-AC386)/AG386","v":0},null,{"$f":"+A386","v":"PR"},{"$f":"SUM(AJ386:AL386)+AE386","v":29.45},null,null,{"$f":"ROUND(AC386/(1-VLOOKUP(AF386,Group,2,FALSE)),2)","v":29.45},{"$f":"IF(VLOOKUP(AF386,Group,3,FALSE)=\"YES\",VLOOKUP(ROUND(ROUND(AJ386,1)-AJ386,2),Round,2,FALSE)+VLOOKUP(AF386,Group,4,FALSE),0)","v":0},{"$f":"IF(VLOOKUP(AF386,Group,5,FALSE)=\"\",0,ROUND(AJ386-0.04999,1)-AJ386+AM386)","v":0},{"$f":"IF(VLOOKUP(AF386,Group,5,FALSE)=\"\",\"\",VLOOKUP(AF386,Group,5,FALSE))","v":""},null,"X"]
["PR","Barwalt - All Other",null,"PR73302",null,"Suction Cup",null,null,"73302 - 2 Cup Aluminum Vacuum Lifter",null,null,null,null,null,"Barwalt",null,null,null,{"$f":"IF(Suggested=\"Yes\",'Price List'!AA387,'Price List'!AG387)","v":20.9},"EA",{"$f":"+Instructions!$B$3","v":"N"},null,{"$f":"+Instructions!$D$22","v":0},{"$f":"ROUND($AA387*(1-W387)+0.004999,2)","v":20.9},null,"YES",20.9,0,20.9,{"$f":"(AG387-AC387)/AG387","v":0},null,{"$f":"+A387","v":"PR"},{"$f":"SUM(AJ387:AL387)+AE387","v":20.9},null,null,{"$f":"ROUND(AC387/(1-VLOOKUP(AF387,Group,2,FALSE)),2)","v":20.9},{"$f":"IF(VLOOKUP(AF387,Group,3,FALSE)=\"YES\",VLOOKUP(ROUND(ROUND(AJ387,1)-AJ387,2),Round,2,FALSE)+VLOOKUP(AF387,Group,4,FALSE),0)","v":0},{"$f":"IF(VLOOKUP(AF387,Group,5,FALSE)=\"\",0,ROUND(AJ387-0.04999,1)-AJ387+AM387)","v":0},{"$f":"IF(VLOOKUP(AF387,Group,5,FALSE)=\"\",\"\",VLOOKUP(AF387,Group,5,FALSE))","v":""},null,"X"]
["PR","Barwalt - All Other",null,"PR70800",null,"Suction Cup",null,null,"70800 - Single Cup Aluminum Vacuum Lifter",null,null,null,null,null,"Barwalt",null,"Stock",null,{"$f":"IF(Suggested=\"Yes\",'Price List'!AA388,'Price List'!AG388)","v":10.5},"EA",{"$f":"+Instructions!$B$3","v":"N"},null,{"$f":"+Instructions!$D$22","v":0},{"$f":"ROUND($AA388*(1-W388)+0.004999,2)","v":10.5},null,"",10.5,0,10.5,{"$f":"(AG388-AC388)/AG388","v":0},null,{"$f":"+A388","v":"PR"},{"$f":"SUM(AJ388:AL388)+AE388","v":10.5},null,null,{"$f":"ROUND(AC388/(1-VLOOKUP(AF388,Group,2,FALSE)),2)","v":10.5},{"$f":"IF(VLOOKUP(AF388,Group,3,FALSE)=\"YES\",VLOOKUP(ROUND(ROUND(AJ388,1)-AJ388,2),Round,2,FALSE)+VLOOKUP(AF388,Group,4,FALSE),0)","v":0},{"$f":"IF(VLOOKUP(AF388,Group,5,FALSE)=\"\",0,ROUND(AJ388-0.04999,1)-AJ388+AM388)","v":0},{"$f":"IF(VLOOKUP(AF388,Group,5,FALSE)=\"\",\"\",VLOOKUP(AF388,Group,5,FALSE))","v":""},null,"X"]
[null,null,null,null,null,null,null,null,null,null,null,null,null,null,null,null,null,null,null,null,null,null,null,null,null,null,null,null,null,null,null,null,null,null,null,null,null,null,null,null,"X"]
[]
[]
[null,null,"SEE NEXT PAGE FOR GAUGED TILES/PANELS TOOLS",null,null,null,null,null,null,null,null,null,null,null,null,null,null,null,null,null,null,null,null,null,null,null,null,null,null,null,null,null,null,null,null,null,null,null,null,null,"X"]
[]
[null,null,null,null,null,null,null,null,null,null,"Large Gauged Tiles/Panels Tools",null,null,null,null,null,null,null,null,null,null,null,null,null,null,null,null,null,null,null,null,null,null,null,null,null,null,null,null,null,"X"]
[null,null,null,null,null,null,null,null,null,null,null,null,null,null,null,null,null,null,null,null,null,null,null,null,null,null,null,null,null,null,null,null,null,null,null,null,null,null,null,null,"X"]
[null,null,"Handling & Transport Equipment",null,null,null,null,null,null,null,null,null,null,null,null,null,null,null,null,null,null,null,null,null,null,null,null,null,null,null,null,null,null,null,null,null,null,null,null,null,"X"]
[null,null,null,null,null,null,null,null,null,null,null,null,null,null,null,null,null,null,null,null,null,null,null,null,null,null,null,null,null,null,null,null,null,null,null,null,null,null,null,null,"X"]
[null,null,null,"Handling",null,null,null,null,null,null,null,null,null,null,null,null,null,null,null,null,null,null,null,null,null,null,null,null,null,null,null,null,null,null,null,null,null,null,null,null,"X"]
["RU1","Rubi - Saws/Cutters",null,"RU18982",null,"18982","Slab Transfer Heavy Duty: 2' x 10' Adjustable Frame w/ 6 Suction Cups",null,null,null,null,null,null,null,"Rubi",null,null,"new",{"$f":"IF(Suggested=\"Yes\",'Price List'!AA399,'Price List'!AG399)","v":2295},"EA",{"$f":"+Instructions!$B$3","v":"N"},null,{"$f":"+Instructions!$D$22","v":0},{"$f":"ROUND($AA399*(1-W399)+0.004999,2)","v":2295},null,"new",2295,{"$f":"+W399","v":0},2295,{"$f":"(AG399-AC399)/AG399","v":0},null,{"$f":"+A399","v":"RU1"},{"$f":"SUM(AJ399:AL399)+AE399","v":2295},null,null,{"$f":"ROUND(AC399/(1-VLOOKUP(AF399,Group,2,FALSE)),2)","v":2295},{"$f":"IF(VLOOKUP(AF399,Group,3,FALSE)=\"YES\",VLOOKUP(ROUND(ROUND(AJ399,1)-AJ399,2),Round,2,FALSE)+VLOOKUP(AF399,Group,4,FALSE),0)","v":0},{"$f":"IF(VLOOKUP(AF399,Group,5,FALSE)=\"\",0,ROUND(AJ399-0.04999,1)-AJ399+AM399)","v":0},{"$f":"IF(VLOOKUP(AF399,Group,5,FALSE)=\"\",\"\",VLOOKUP(AF399,Group,5,FALSE))","v":""},null,"X"]
[null,null,null,null,null,null,"  - Maximum load capacity 375 lbs"]
["RU1","Rubi - Saws/Cutters",null,"RU18976",null,"18976","Slim Easy Transfer Plus: 2 - 10' Adjustable Frame w/ 6 Suction Cups",null,null,null,null,null,null,null,"Rubi",null,"Stock","new",{"$f":"IF(Suggested=\"Yes\",'Price List'!AA401,'Price List'!AG401)","v":1330},"EA",{"$f":"+Instructions!$B$3","v":"N"},null,{"$f":"+Instructions!$D$22","v":0},1330,null,"new",1330,0,1330,0,null,{"$f":"+A401","v":"RU1"},1330,null,null,1330,0,0,"",null,"X"]
[null,null,null,null,null,null,"  - Maximum load capacity 176 lbs"]
["RU1","Rubi - Saws/Cutters",null,"RU18819",null,"18819","Slim Easy Trans Cross Beams for the 18976 (Set of 2)",null,null,null,null,null,null,null,"Rubi",null,"Stock","new",{"$f":"IF(Suggested=\"Yes\",'Price List'!AA403,'Price List'!AG403)","v":365},"SET",{"$f":"+Instructions!$B$3","v":"N"},null,{"$f":"+Instructions!$D$22","v":0},{"$f":"ROUND($AA403*(1-W403)+0.004999,2)","v":365},null,"new",365,{"$f":"+W403","v":0},{"$f":"+X403","v":365},{"$f":"(AG403-AC403)/AG403","v":0},null,{"$f":"+A403","v":"RU1"},{"$f":"SUM(AJ403:AL403)+AE403","v":365},null,null,{"$f":"ROUND(AC403/(1-VLOOKUP(AF403,Group,2,FALSE)),2)","v":365},{"$f":"IF(VLOOKUP(AF403,Group,3,FALSE)=\"YES\",VLOOKUP(ROUND(ROUND(AJ403,1)-AJ403,2),Round,2,FALSE)+VLOOKUP(AF403,Group,4,FALSE),0)","v":0},{"$f":"IF(VLOOKUP(AF403,Group,5,FALSE)=\"\",0,ROUND(AJ403-0.04999,1)-AJ403+AM403)","v":0},{"$f":"IF(VLOOKUP(AF403,Group,5,FALSE)=\"\",\"\",VLOOKUP(AF403,Group,5,FALSE))","v":""},null,"X"]
[null,null,null,null,null,null,"  - Increase 18976 Slim Easy Maximum load capacity to 275 lbs"]
["RU1","Rubi - Saws/Cutters",null,"RU18983",null,"18983","Slab Transfer Mini: 6'' Adjustable Length Frame w/ 2 Suction Cups",null,null,null,null,null,null,null,"Rubi",null,null,"new",{"$f":"IF(Suggested=\"Yes\",'Price List'!AA405,'Price List'!AG405)","v":505},"EA",{"$f":"+Instructions!$B$3","v":"N"},null,{"$f":"+Instructions!$D$22","v":0},505,null,"new",505,0,505,0,null,{"$f":"+A405","v":"RU1"},505,null,null,505,0,0,"",null,"X"]
[null,null,null,null,null,null,"  - Great for 24x48 up to 60x60 Tiles"]
[null,null,null,null,null,null,null,null,null,null,null,null,null,null,null,null,null,null,null,null,null,null,null,null,null,null,null,null,null,null,null,null,null,null,null,null,null,null,null,null,"X"]
[null,null,null,"Transport",null,null,null,null,null,null,null,null,null,null,null,null,null,null,null,null,null,null,null,null,null,null,null,null,null,null,null,null,null,null,null,null,null,null,null,null,"X"]
["RU1","Rubi - Saws/Cutters",null,"RU17900",null,"17900","Slab A-Frame",null,null,null,null,null,null,null,"Rubi",null,null,"new",{"$f":"IF(Suggested=\"Yes\",'Price List'!AA409,'Price List'!AG409)","v":890},"EA",{"$f":"+Instructions!$B$3","v":"N"},null,{"$f":"+Instructions!$D$22","v":0},{"$f":"ROUND($AA409*(1-W409)+0.004999,2)","v":890},null,"new",890,{"$f":"+W409","v":0},890,{"$f":"(AG409-AC409)/AG409","v":0},null,{"$f":"+A409","v":"RU1"},{"$f":"SUM(AJ409:AL409)+AE409","v":890},null,null,{"$f":"ROUND(AC409/(1-VLOOKUP(AF409,Group,2,FALSE)),2)","v":890},{"$f":"IF(VLOOKUP(AF409,Group,3,FALSE)=\"YES\",VLOOKUP(ROUND(ROUND(AJ409,1)-AJ409,2),Round,2,FALSE)+VLOOKUP(AF409,Group,4,FALSE),0)","v":0},{"$f":"IF(VLOOKUP(AF409,Group,5,FALSE)=\"\",0,ROUND(AJ409-0.04999,1)-AJ409+AM409)","v":0},{"$f":"IF(VLOOKUP(AF409,Group,5,FALSE)=\"\",\"\",VLOOKUP(AF409,Group,5,FALSE))","v":""},null,"X"]
[null,null,null,null,null,null,null,null,null,null,null,null,null,null,null,null,null,null,null,null,null,null,null,null,null,null,null,null,null,null,null,null,null,null,null,null,null,null,null,null,"X"]
[null,null,null,"Cutting Table",null,null,null,null,null,null,null,null,null,null,null,null,null,null,null,null,null,null,null,null,null,null,null,null,null,null,null,null,null,null,null,null,null,null,null,null,"X"]
["RU1","Rubi - Saws/Cutters",null,"RU18935",null,"18935","Slab Table - 42\" x 72\"",null,null,null,null,null,null,null,"Rubi",null,null,"new",{"$f":"IF(Suggested=\"Yes\",'Price List'!AA412,'Price List'!AG412)","v":985},"EA",{"$f":"+Instructions!$B$3","v":"N"},null,{"$f":"+Instructions!$D$22","v":0},{"$f":"ROUND($AA412*(1-W412)+0.004999,2)","v":985},null,"new",985,{"$f":"+W412","v":0},{"$f":"+X412","v":985},{"$f":"(AG412-AC412)/AG412","v":0},null,{"$f":"+A412","v":"RU1"},{"$f":"SUM(AJ412:AL412)+AE412","v":985},null,null,{"$f":"ROUND(AC412/(1-VLOOKUP(AF412,Group,2,FALSE)),2)","v":985},{"$f":"IF(VLOOKUP(AF412,Group,3,FALSE)=\"YES\",VLOOKUP(ROUND(ROUND(AJ412,1)-AJ412,2),Round,2,FALSE)+VLOOKUP(AF412,Group,4,FALSE),0)","v":0},{"$f":"IF(VLOOKUP(AF412,Group,5,FALSE)=\"\",0,ROUND(AJ412-0.04999,1)-AJ412+AM412)","v":0},{"$f":"IF(VLOOKUP(AF412,Group,5,FALSE)=\"\",\"\",VLOOKUP(AF412,Group,5,FALSE))","v":""},null,"X"]
[null,null,null,null,null,null,null,null,null,null,null,null,null,null,null,null,null,null,null,null,null,null,null,null,null,null,null,null,null,null,null,null,null,null,null,null,null,null,null,null,"X"]
[null,null,"Tile Cutters & Accessories",null,null,null,null,null,null,null,null,null,null,null,null,null,null,null,null,null,null,null,null,null,null,null,null,null,null,null,null,null,null,null,null,null,null,null,null,null,"X"]
[null,null,null,null,null,null,null,null,null,null,null,null,null,null,null,null,null,null,null,null,null,null,null,null,null,null,null,null,null,null,null,null,null,null,null,null,null,null,null,null,"X"]
[null,null,null,"Rail Cutters",null,null,null,null,null,null,null,null,null,null,null,null,null,null,null,null,null,null,null,null,null,null,null,null,null,null,null,null,null,null,null,null,null,null,null,null,"X"]
["RU1","Rubi - Saws/Cutters",null,"RU16900",null,"16900","Slab Cutter G3 (kit allows cuts up to 10')",null,null,null,null,null,null,null,"Rubi",null,null,"new",{"$f":"IF(Suggested=\"Yes\",'Price List'!AA417,'Price List'!AG417)","v":819},"EA",{"$f":"+Instructions!$B$3","v":"N"},null,{"$f":"+Instructions!$D$22","v":0},{"$f":"ROUND($AA417*(1-W417)+0.004999,2)","v":819},null,"new",819,{"$f":"+W417","v":0},{"$f":"+X417","v":819},{"$f":"(AG417-AC417)/AG417","v":0},null,{"$f":"+A417","v":"RU1"},{"$f":"SUM(AJ417:AL417)+AE417","v":819},null,null,{"$f":"ROUND(AC417/(1-VLOOKUP(AF417,Group,2,FALSE)),2)","v":819},{"$f":"IF(VLOOKUP(AF417,Group,3,FALSE)=\"YES\",VLOOKUP(ROUND(ROUND(AJ417,1)-AJ417,2),Round,2,FALSE)+VLOOKUP(AF417,Group,4,FALSE),0)","v":0},{"$f":"IF(VLOOKUP(AF417,Group,5,FALSE)=\"\",0,ROUND(AJ417-0.04999,1)-AJ417+AM417)","v":0},{"$f":"IF(VLOOKUP(AF417,Group,5,FALSE)=\"\",\"\",VLOOKUP(AF417,Group,5,FALSE))","v":""},null,"X"]
[null,null,null,null,null,null,"  - Suction cups integrated into rails to allow for thinner cuts"]
[null,null,null,null,null,null,"  - Adjustable height scoring mechanism"]
[null,null,null,null,null,null,"  - Kit includes rail guides, scoring trolley with 7/8\" Extreme scoring"]
[null,null,null,null,null,null,"    wheel, separating pliers, 3 suction cups"]
[null,null,null,null,null,null,null,null,null,null,null,null,null,null,null,null,null,null,null,null,null,null,null,null,null,null,null,null,null,null,null,null,null,null,null,null,null,null,null,null,"X"]
["RU1","Rubi - Saws/Cutters",null,"RU18959",null,"18959","Slim Cutter Plus (kit allows cuts up to 10')",null,null,null,null,null,null,null,"Rubi",null,"Stock","new",{"$f":"IF(Suggested=\"Yes\",'Price List'!AA423,'Price List'!AG423)","v":525},"EA",{"$f":"+Instructions!$B$3","v":"N"},null,{"$f":"+Instructions!$D$22","v":0},{"$f":"ROUND($AA423*(1-W423)+0.004999,2)","v":525},null,"new",525,{"$f":"+W423","v":0},{"$f":"+X423","v":525},{"$f":"(AG423-AC423)/AG423","v":0},null,{"$f":"+A423","v":"RU1"},{"$f":"SUM(AJ423:AL423)+AE423","v":525},null,null,{"$f":"ROUND(AC423/(1-VLOOKUP(AF423,Group,2,FALSE)),2)","v":525},{"$f":"IF(VLOOKUP(AF423,Group,3,FALSE)=\"YES\",VLOOKUP(ROUND(ROUND(AJ423,1)-AJ423,2),Round,2,FALSE)+VLOOKUP(AF423,Group,4,FALSE),0)","v":0},{"$f":"IF(VLOOKUP(AF423,Group,5,FALSE)=\"\",0,ROUND(AJ423-0.04999,1)-AJ423+AM423)","v":0},{"$f":"IF(VLOOKUP(AF423,Group,5,FALSE)=\"\",\"\",VLOOKUP(AF423,Group,5,FALSE))","v":""},null,"X"]
[null,null,null,null,null,null,"  - Kit includes rail guides, scoring trolley with 7/8\" Extreme scoring"]
[null,null,null,null,null,null,"    wheel, separating pliers, 3 suction cups"]
[null,null,null,null,null,null,null,null,null,null,null,null,null,null,null,null,null,null,null,null,null,null,null,null,null,null,null,null,null,null,null,null,null,null,null,null,null,null,null,null,"X"]
["RU1","Rubi - Saws/Cutters",null,"RUTC125",null,"51957","TC125 Circular Saw (120V, 60Hz)",null,null,null,null,null,null,null,"Rubi",null,null,null,{"$f":"IF(Suggested=\"Yes\",'Price List'!AA427,'Price List'!AG427)","v":355},"EA",{"$f":"+Instructions!$B$3","v":"N"},null,{"$f":"+Instructions!$D$22","v":0},{"$f":"ROUND($AA427*(1-W427)+0.004999,2)","v":355},null,"YES",355,{"$f":"+W427","v":0},355,{"$f":"(AG427-AC427)/AG427","v":0},null,{"$f":"+A427","v":"RU1"},{"$f":"SUM(AJ427:AL427)+AE427","v":355},null,null,{"$f":"ROUND(AC427/(1-VLOOKUP(AF427,Group,2,FALSE)),2)","v":355},{"$f":"IF(VLOOKUP(AF427,Group,3,FALSE)=\"YES\",VLOOKUP(ROUND(ROUND(AJ427,1)-AJ427,2),Round,2,FALSE)+VLOOKUP(AF427,Group,4,FALSE),0)","v":0},{"$f":"IF(VLOOKUP(AF427,Group,5,FALSE)=\"\",0,ROUND(AJ427-0.04999,1)-AJ427+AM427)","v":0},{"$f":"IF(VLOOKUP(AF427,Group,5,FALSE)=\"\",\"\",VLOOKUP(AF427,Group,5,FALSE))","v":""},null,"X"]
["RU1","Rubi - Saws/Cutters",null,"RU51969",null,"51969","Guides & Accessories for TC125 Circular Saw",null,null,null,null,null,null,null,"Rubi",null,null,"new",{"$f":"IF(Suggested=\"Yes\",'Price List'!AA428,'Price List'!AG428)","v":375},"EA",{"$f":"+Instructions!$B$3","v":"N"},null,{"$f":"+Instructions!$D$22","v":0},{"$f":"ROUND($AA428*(1-W428)+0.004999,2)","v":375},null,"new",375,0,375,{"$f":"(AG428-AC428)/AG428","v":0},null,{"$f":"+A428","v":"RU1"},{"$f":"SUM(AJ428:AL428)+AE428","v":375},null,null,{"$f":"ROUND(AC428/(1-VLOOKUP(AF428,Group,2,FALSE)),2)","v":375},{"$f":"IF(VLOOKUP(AF428,Group,3,FALSE)=\"YES\",VLOOKUP(ROUND(ROUND(AJ428,1)-AJ428,2),Round,2,FALSE)+VLOOKUP(AF428,Group,4,FALSE),0)","v":0},{"$f":"IF(VLOOKUP(AF428,Group,5,FALSE)=\"\",0,ROUND(AJ428-0.04999,1)-AJ428+AM428)","v":0},{"$f":"IF(VLOOKUP(AF428,Group,5,FALSE)=\"\",\"\",VLOOKUP(AF428,Group,5,FALSE))","v":""},null,"X"]
[null,null,null,null,null,null,null,null,null,null,null,null,null,null,null,null,null,null,null,null,null,null,null,null,null,null,null,null,null,null,null,null,null,null,null,null,null,null,null,null,"X"]
[null,null,null,"Breakers",null,null,null,null,null,null,null,null,null,null,null,null,null,null,null,null,null,null,null,null,null,null,null,null,null,null,null,null,null,null,null,null,null,null,null,null,"X"]
["RU","Rubi - All Other",null,"RU54918",null,"54918","Slab Breaker Pliers (for breaking tile 3-10mm thick)",null,null,null,null,null,null,null,"Rubi",null,null,"new",{"$f":"IF(Suggested=\"Yes\",'Price List'!AA431,'Price List'!AG431)","v":129},"EA",{"$f":"+Instructions!$B$3","v":"N"},null,{"$f":"+Instructions!$D$22","v":0},{"$f":"ROUND($AA431*(1-W431)+0.004999,2)","v":129},null,"new",129,{"$f":"+W431","v":0},{"$f":"+X431","v":129},{"$f":"(AG431-AC431)/AG431","v":0},null,{"$f":"+A431","v":"RU"},{"$f":"SUM(AJ431:AL431)+AE431","v":129},null,null,{"$f":"ROUND(AC431/(1-VLOOKUP(AF431,Group,2,FALSE)),2)","v":129},{"$f":"IF(VLOOKUP(AF431,Group,3,FALSE)=\"YES\",VLOOKUP(ROUND(ROUND(AJ431,1)-AJ431,2),Round,2,FALSE)+VLOOKUP(AF431,Group,4,FALSE),0)","v":0},{"$f":"IF(VLOOKUP(AF431,Group,5,FALSE)=\"\",0,ROUND(AJ431-0.04999,1)-AJ431+AM431)","v":0},{"$f":"IF(VLOOKUP(AF431,Group,5,FALSE)=\"\",\"\",VLOOKUP(AF431,Group,5,FALSE))","v":""},null,"X"]
["RU","Rubi - All Other",null,"RU18917",null,"18917","Slim Breaker (for breaking tile 3-15mm thick)",null,null,null,null,null,null,null,"Rubi",null,null,"new",{"$f":"IF(Suggested=\"Yes\",'Price List'!AA432,'Price List'!AG432)","v":195},"EA",{"$f":"+Instructions!$B$3","v":"N"},null,{"$f":"+Instructions!$D$22","v":0},{"$f":"ROUND($AA432*(1-W432)+0.004999,2)","v":195},null,"new",195,{"$f":"+W432","v":0},{"$f":"+X432","v":195},{"$f":"(AG432-AC432)/AG432","v":0},null,{"$f":"+A432","v":"RU"},{"$f":"SUM(AJ432:AL432)+AE432","v":195},null,null,{"$f":"ROUND(AC432/(1-VLOOKUP(AF432,Group,2,FALSE)),2)","v":195},{"$f":"IF(VLOOKUP(AF432,Group,3,FALSE)=\"YES\",VLOOKUP(ROUND(ROUND(AJ432,1)-AJ432,2),Round,2,FALSE)+VLOOKUP(AF432,Group,4,FALSE),0)","v":0},{"$f":"IF(VLOOKUP(AF432,Group,5,FALSE)=\"\",0,ROUND(AJ432-0.04999,1)-AJ432+AM432)","v":0},{"$f":"IF(VLOOKUP(AF432,Group,5,FALSE)=\"\",\"\",VLOOKUP(AF432,Group,5,FALSE))","v":""},null,"X"]
[null,null,null,null,null,null,null,null,null,null,null,null,null,null,null,null,null,null,null,null,null,null,null,null,null,null,null,null,null,null,null,null,null,null,null,null,null,null,null,null,"X"]
[null,null,null,"Scoring Wheels",null,null,null,null,null,null,null,null,null,null,null,null,null,null,null,null,null,null,null,null,null,null,null,null,null,null,null,null,null,null,null,null,null,null,null,null,"X"]
["RU","Rubi - All Other",null,"RU1901",null,"01901","7/8\" (22 mm) Extreme Scoring Wheel",null,null,null,null,null,null,null,"Rubi",null,"Stock","new",{"$f":"IF(Suggested=\"Yes\",'Price List'!AA435,'Price List'!AG435)","v":40.65},"EA",{"$f":"+Instructions!$B$3","v":"N"},null,{"$f":"+Instructions!$D$22","v":0},{"$f":"ROUND($AA435*(1-W435)+0.004999,2)","v":40.65},null,"new",40.65,{"$f":"+W435","v":0},40.65,{"$f":"(AG435-AC435)/AG435","v":0},null,{"$f":"+A435","v":"RU"},{"$f":"SUM(AJ435:AL435)+AE435","v":40.65},null,null,{"$f":"ROUND(AC435/(1-VLOOKUP(AF435,Group,2,FALSE)),2)","v":40.65},{"$f":"IF(VLOOKUP(AF435,Group,3,FALSE)=\"YES\",VLOOKUP(ROUND(ROUND(AJ435,1)-AJ435,2),Round,2,FALSE)+VLOOKUP(AF435,Group,4,FALSE),0)","v":0},{"$f":"IF(VLOOKUP(AF435,Group,5,FALSE)=\"\",0,ROUND(AJ435-0.04999,1)-AJ435+AM435)","v":0},{"$f":"IF(VLOOKUP(AF435,Group,5,FALSE)=\"\",\"\",VLOOKUP(AF435,Group,5,FALSE))","v":""},null,"X"]
[null,null,null,null,null,null,null,null,null,null,null,null,null,null,null,null,null,null,null,null,null,null,null,null,null,null,null,null,null,null,null,null,null,null,null,null,null,null,null,null,"X"]
[null,null,null,"Suction Cups",null,null,null,null,null,null,null,null,null,null,null,null,null,null,null,null,null,null,null,null,null,null,null,null,null,null,null,null,null,null,null,null,null,null,null,null,"X"]
["RU","Rubi - All Other",null,"RU18919",null,"18919","8\" Vacuum Suction Cup",null,null,null,null,null,null,null,"Rubi",null,null,"new",{"$f":"IF(Suggested=\"Yes\",'Price List'!AA438,'Price List'!AG438)","v":96},"EA",{"$f":"+Instructions!$B$3","v":"N"},null,{"$f":"+Instructions!$D$22","v":0},{"$f":"ROUND($AA438*(1-W438)+0.004999,2)","v":96},null,"new",96,{"$f":"+W438","v":0},96,{"$f":"(AG438-AC438)/AG438","v":0},null,{"$f":"+A438","v":"RU"},{"$f":"SUM(AJ438:AL438)+AE438","v":96},null,null,{"$f":"ROUND(AC438/(1-VLOOKUP(AF438,Group,2,FALSE)),2)","v":96},{"$f":"IF(VLOOKUP(AF438,Group,3,FALSE)=\"YES\",VLOOKUP(ROUND(ROUND(AJ438,1)-AJ438,2),Round,2,FALSE)+VLOOKUP(AF438,Group,4,FALSE),0)","v":0},{"$f":"IF(VLOOKUP(AF438,Group,5,FALSE)=\"\",0,ROUND(AJ438-0.04999,1)-AJ438+AM438)","v":0},{"$f":"IF(VLOOKUP(AF438,Group,5,FALSE)=\"\",\"\",VLOOKUP(AF438,Group,5,FALSE))","v":""},null,"X"]
["RU","Rubi - All Other",null,"RU21951",null,"21951","GCS-200 Vacuum Suction Cup",null,null,null,"(Good for setting 24X48 tiles)",null,null,null,"Rubi",null,"Stock","new",{"$f":"IF(Suggested=\"Yes\",'Price List'!AA439,'Price List'!AG439)","v":115},"EA",{"$f":"+Instructions!$B$3","v":"N"},null,{"$f":"+Instructions!$D$22","v":0},{"$f":"ROUND($AA439*(1-W439)+0.004999,2)","v":115},null,"new",115,0,115,{"$f":"(AG439-AC439)/AG439","v":0},null,{"$f":"+A439","v":"RU"},{"$f":"SUM(AJ439:AL439)+AE439","v":115},null,null,{"$f":"ROUND(AC439/(1-VLOOKUP(AF439,Group,2,FALSE)),2)","v":115},{"$f":"IF(VLOOKUP(AF439,Group,3,FALSE)=\"YES\",VLOOKUP(ROUND(ROUND(AJ439,1)-AJ439,2),Round,2,FALSE)+VLOOKUP(AF439,Group,4,FALSE),0)","v":0},{"$f":"IF(VLOOKUP(AF439,Group,5,FALSE)=\"\",0,ROUND(AJ439-0.04999,1)-AJ439+AM439)","v":0},{"$f":"IF(VLOOKUP(AF439,Group,5,FALSE)=\"\",\"\",VLOOKUP(AF439,Group,5,FALSE))","v":""},null,"X"]
[null,null,null,null,null,null,"  - Special grey rubber suction cups for rough surfaces and"]
[null,null,null,null,null,null,"    won't leave marks of tile"]
["RU","Rubi - All Other",null,"RU60926",null,"60926","Tile Gap Closer w/ 2 suction cups",null,null,null,null,null,null,null,"Rubi",null,null,"new",{"$f":"IF(Suggested=\"Yes\",'Price List'!AA442,'Price List'!AG442)","v":210},"EA",{"$f":"+Instructions!$B$3","v":"N"},null,{"$f":"+Instructions!$D$22","v":0},{"$f":"ROUND($AA442*(1-W442)+0.004999,2)","v":210},null,"new",210,0,210,{"$f":"(AG442-AC442)/AG442","v":0},null,{"$f":"+A442","v":"RU"},{"$f":"SUM(AJ442:AL442)+AE442","v":210},null,null,{"$f":"ROUND(AC442/(1-VLOOKUP(AF442,Group,2,FALSE)),2)","v":210},{"$f":"IF(VLOOKUP(AF442,Group,3,FALSE)=\"YES\",VLOOKUP(ROUND(ROUND(AJ442,1)-AJ442,2),Round,2,FALSE)+VLOOKUP(AF442,Group,4,FALSE),0)","v":0},{"$f":"IF(VLOOKUP(AF442,Group,5,FALSE)=\"\",0,ROUND(AJ442-0.04999,1)-AJ442+AM442)","v":0},{"$f":"IF(VLOOKUP(AF442,Group,5,FALSE)=\"\",\"\",VLOOKUP(AF442,Group,5,FALSE))","v":""},null,"X"]
[]
[null,null,"Setting",null,null,null,null,null,null,null,null,null,null,null,null,null,null,null,null,null,null,null,null,null,null,null,null,null,null,null,null,null,null,null,null,null,null,null,null,null,"X"]
[null,null,null,null,null,null,null,null,null,null,null,null,null,null,null,null,null,null,null,null,null,null,null,null,null,null,null,null,null,null,null,null,null,null,null,null,null,null,null,null,"X"]
["RU1","Rubi - Saws/Cutters",null,"RU18978",null,18978,"Rubi Triller - Compact Manual Tile Vibrator - Helps to Expel Trapped Air",null,null,null,null,null,null,null,"Rubi",null,null,"new",{"$f":"IF(Suggested=\"Yes\",'Price List'!AA446,'Price List'!AG446)","v":463},"EA",{"$f":"+Instructions!$B$3","v":"N"},null,{"$f":"+Instructions!$D$22","v":0},{"$f":"ROUND($AA446*(1-W446)+0.004999,2)","v":463},null,"new",463,{"$f":"+W446","v":0},{"$f":"+X446","v":463},{"$f":"(AG446-AC446)/AG446","v":0},null,{"$f":"+A446","v":"RU1"},{"$f":"SUM(AJ446:AL446)+AE446","v":463},null,null,{"$f":"ROUND(AC446/(1-VLOOKUP(AF446,Group,2,FALSE)),2)","v":463},{"$f":"IF(VLOOKUP(AF446,Group,3,FALSE)=\"YES\",VLOOKUP(ROUND(ROUND(AJ446,1)-AJ446,2),Round,2,FALSE)+VLOOKUP(AF446,Group,4,FALSE),0)","v":0},{"$f":"IF(VLOOKUP(AF446,Group,5,FALSE)=\"\",0,ROUND(AJ446-0.04999,1)-AJ446+AM446)","v":0},{"$f":"IF(VLOOKUP(AF446,Group,5,FALSE)=\"\",\"\",VLOOKUP(AF446,Group,5,FALSE))","v":""},null,"X"]
[]
[null,null,"Edge Finishing",null,null,null,null,null,null,null,null,null,null,null,null,null,null,null,null,null,null,null,null,null,null,null,null,null,null,null,null,null,null,null,null,null,null,null,null,null,"X"]
[null,null,null,null,null,null,null,null,null,null,null,null,null,null,null,null,null,null,null,null,null,null,null,null,null,null,null,null,null,null,null,null,null,null,null,null,null,null,null,null,"X"]
["RU1","Rubi - Saws/Cutters",null,"RU16901",null,"16901","Pro-Edger 5/8\" for Mitering and Beveling",null,null,null,null,null,null,null,"Rubi",null,"Stock","new",{"$f":"IF(Suggested=\"Yes\",'Price List'!AA450,'Price List'!AG450)","v":460},"EA",{"$f":"+Instructions!$B$3","v":"N"},null,{"$f":"+Instructions!$D$22","v":0},{"$f":"ROUND($AA450*(1-W450)+0.004999,2)","v":460},null,"new",460,{"$f":"+W450","v":0},{"$f":"+X450","v":460},{"$f":"(AG450-AC450)/AG450","v":0},null,{"$f":"+A450","v":"RU1"},{"$f":"SUM(AJ450:AL450)+AE450","v":460},null,null,{"$f":"ROUND(AC450/(1-VLOOKUP(AF450,Group,2,FALSE)),2)","v":460},{"$f":"IF(VLOOKUP(AF450,Group,3,FALSE)=\"YES\",VLOOKUP(ROUND(ROUND(AJ450,1)-AJ450,2),Round,2,FALSE)+VLOOKUP(AF450,Group,4,FALSE),0)","v":0},{"$f":"IF(VLOOKUP(AF450,Group,5,FALSE)=\"\",0,ROUND(AJ450-0.04999,1)-AJ450+AM450)","v":0},{"$f":"IF(VLOOKUP(AF450,Group,5,FALSE)=\"\",\"\",VLOOKUP(AF450,Group,5,FALSE))","v":""},null,"X"]
[null,null,null,null,null,null,null,null,null,null,null,null,null,null,null,null,null,null,null,null,null,null,null,null,null,null,null,null,null,null,null,null,null,null,null,null,null,null,null,null,"X"]
[null,null,null,"Grinding Cups",null,null,null,null,null,null,null,null,null,null,null,null,null,null,null,null,null,null,null,null,null,null,null,null,null,null,null,null,null,null,null,null,null,null,null,null,"X"]
[null,null,null,"For the Rubi 16901 Pro-Edger"]
["RU","Rubi - All Other",null,{"$f":"\"RU\"&F454","v":"RU16957"},null,"16957","Pro-Edger R5 for high precision, blunt beveling (Fine Grain)",null,null,null,null,null,null,null,"Rubi",null,null,"new",{"$f":"IF(Suggested=\"Yes\",'Price List'!AA454,'Price List'!AG454)","v":73.900000000000006},"EA",{"$f":"+Instructions!$B$3","v":"N"},null,{"$f":"+Instructions!$D$22","v":0},{"$f":"ROUND($AA454*(1-W454)+0.004999,2)","v":73.900000000000006},null,"new",73.900000000000006,{"$f":"+W454","v":0},{"$f":"+X454","v":73.900000000000006},{"$f":"(AG454-AC454)/AG454","v":0},null,{"$f":"+A454","v":"RU"},{"$f":"SUM(AJ454:AL454)+AE454","v":73.900000000000006},null,null,{"$f":"ROUND(AC454/(1-VLOOKUP(AF454,Group,2,FALSE)),2)","v":73.900000000000006},{"$f":"IF(VLOOKUP(AF454,Group,3,FALSE)=\"YES\",VLOOKUP(ROUND(ROUND(AJ454,1)-AJ454,2),Round,2,FALSE)+VLOOKUP(AF454,Group,4,FALSE),0)","v":0},{"$f":"IF(VLOOKUP(AF454,Group,5,FALSE)=\"\",0,ROUND(AJ454-0.04999,1)-AJ454+AM454)","v":0},{"$f":"IF(VLOOKUP(AF454,Group,5,FALSE)=\"\",\"\",VLOOKUP(AF454,Group,5,FALSE))","v":""},null,"X"]
["RU","Rubi - All Other",null,{"$f":"\"RU\"&F455","v":"RU16958"},null,"16958","Pro-Edger R10 for high precision, blunt beveling (Smooth Grain)",null,null,null,null,null,null,null,"Rubi",null,null,"new",{"$f":"IF(Suggested=\"Yes\",'Price List'!AA455,'Price List'!AG455)","v":73.900000000000006},"EA",{"$f":"+Instructions!$B$3","v":"N"},null,{"$f":"+Instructions!$D$22","v":0},73.900000000000006,null,"new",73.900000000000006,0,73.900000000000006,0,null,{"$f":"+A455","v":"RU"},73.900000000000006,null,null,{"$f":"ROUND(AC455/(1-VLOOKUP(AF455,Group,2,FALSE)),2)","v":73.900000000000006},{"$f":"IF(VLOOKUP(AF455,Group,3,FALSE)=\"YES\",VLOOKUP(ROUND(ROUND(AJ455,1)-AJ455,2),Round,2,FALSE)+VLOOKUP(AF455,Group,4,FALSE),0)","v":0},{"$f":"IF(VLOOKUP(AF455,Group,5,FALSE)=\"\",0,ROUND(AJ455-0.04999,1)-AJ455+AM455)","v":0},{"$f":"IF(VLOOKUP(AF455,Group,5,FALSE)=\"\",\"\",VLOOKUP(AF455,Group,5,FALSE))","v":""},null,"X"]
["RU","Rubi - All Other",null,"RU16984",null,"16984","45x15mm for high precision mitering - Continuous (Fine Grain)",null,null,null,null,null,null,null,"Rubi",null,"Stock","new",{"$f":"IF(Suggested=\"Yes\",'Price List'!AA456,'Price List'!AG456)","v":106.75},"EA",{"$f":"+Instructions!$B$3","v":"N"},null,{"$f":"+Instructions!$D$22","v":0},106.75,null,"new",106.75,0,106.75,0,null,{"$f":"+A456","v":"RU"},106.75,null,null,{"$f":"ROUND(AC456/(1-VLOOKUP(AF456,Group,2,FALSE)),2)","v":106.75},{"$f":"IF(VLOOKUP(AF456,Group,3,FALSE)=\"YES\",VLOOKUP(ROUND(ROUND(AJ456,1)-AJ456,2),Round,2,FALSE)+VLOOKUP(AF456,Group,4,FALSE),0)","v":0},{"$f":"IF(VLOOKUP(AF456,Group,5,FALSE)=\"\",0,ROUND(AJ456-0.04999,1)-AJ456+AM456)","v":0},{"$f":"IF(VLOOKUP(AF456,Group,5,FALSE)=\"\",\"\",VLOOKUP(AF456,Group,5,FALSE))","v":""},null,"X"]
["RU","Rubi - All Other",null,"RU16985",null,"16985","45x15mm for high precision mitering - Turbo Twist (Coarse Grain)",null,null,null,null,null,null,null,"Rubi",null,"Stock","new",{"$f":"IF(Suggested=\"Yes\",'Price List'!AA457,'Price List'!AG457)","v":106.75},"EA",{"$f":"+Instructions!$B$3","v":"N"},null,{"$f":"+Instructions!$D$22","v":0},106.75,null,"new",106.75,0,106.75,0,null,{"$f":"+A457","v":"RU"},106.75,null,null,{"$f":"ROUND(AC457/(1-VLOOKUP(AF457,Group,2,FALSE)),2)","v":106.75},{"$f":"IF(VLOOKUP(AF457,Group,3,FALSE)=\"YES\",VLOOKUP(ROUND(ROUND(AJ457,1)-AJ457,2),Round,2,FALSE)+VLOOKUP(AF457,Group,4,FALSE),0)","v":0},{"$f":"IF(VLOOKUP(AF457,Group,5,FALSE)=\"\",0,ROUND(AJ457-0.04999,1)-AJ457+AM457)","v":0},{"$f":"IF(VLOOKUP(AF457,Group,5,FALSE)=\"\",\"\",VLOOKUP(AF457,Group,5,FALSE))","v":""},null,"X"]
["RU","Rubi - All Other",null,"RU16946",null,"16946","45x20mm for high precision mitering - Continuous (Fine Grain)",null,null,null,null,null,null,null,"Rubi",null,null,"new",{"$f":"IF(Suggested=\"Yes\",'Price List'!AA458,'Price List'!AG458)","v":123.15},"EA",{"$f":"+Instructions!$B$3","v":"N"},null,{"$f":"+Instructions!$D$22","v":0},123.15,null,"new",123.15,{"$f":"+W458","v":0},{"$f":"+X458","v":123.15},{"$f":"(AG458-AC458)/AG458","v":0},null,{"$f":"+A458","v":"RU"},{"$f":"SUM(AJ458:AL458)+AE458","v":123.15},null,null,{"$f":"ROUND(AC458/(1-VLOOKUP(AF458,Group,2,FALSE)),2)","v":123.15},{"$f":"IF(VLOOKUP(AF458,Group,3,FALSE)=\"YES\",VLOOKUP(ROUND(ROUND(AJ458,1)-AJ458,2),Round,2,FALSE)+VLOOKUP(AF458,Group,4,FALSE),0)","v":0},{"$f":"IF(VLOOKUP(AF458,Group,5,FALSE)=\"\",0,ROUND(AJ458-0.04999,1)-AJ458+AM458)","v":0},{"$f":"IF(VLOOKUP(AF458,Group,5,FALSE)=\"\",\"\",VLOOKUP(AF458,Group,5,FALSE))","v":""},null,"X"]
[null,null,null,null,null,null,null,null,null,null,null,null,null,null,null,null,null,null,null,null,null,null,null,null,null,null,null,null,null,null,null,null,null,null,null,null,null,null,null,null,"X"]
[null,null,null,"Diamond Sponge",null,null,null,null,null,null,null,null,null,null,null,null,null,null,null,null,null,null,null,null,null,null,null,null,null,null,null,null,null,null,null,null,null,null,null,null,"X"]
["RU","Rubi - All Other",null,{"$f":"\"RU\"&F461","v":"RU61974"},null,"61974","Diamond Polishing Pad",null,null,"60 Grit - Course",null,null,null,null,"Rubi",null,null,"new",{"$f":"IF(Suggested=\"Yes\",'Price List'!AA461,'Price List'!AG461)","v":27.35},"EA",{"$f":"+Instructions!$B$3","v":"N"},null,{"$f":"+Instructions!$D$22","v":0},{"$f":"ROUND($AA461*(1-W461)+0.004999,2)","v":27.35},null,"new",27.35,{"$f":"+W461","v":0},{"$f":"+X461","v":27.35},{"$f":"(AG461-AC461)/AG461","v":0},null,{"$f":"+A461","v":"RU"},{"$f":"SUM(AJ461:AL461)+AE461","v":27.35},null,null,{"$f":"ROUND(AC461/(1-VLOOKUP(AF461,Group,2,FALSE)),2)","v":27.35},{"$f":"IF(VLOOKUP(AF461,Group,3,FALSE)=\"YES\",VLOOKUP(ROUND(ROUND(AJ461,1)-AJ461,2),Round,2,FALSE)+VLOOKUP(AF461,Group,4,FALSE),0)","v":0},{"$f":"IF(VLOOKUP(AF461,Group,5,FALSE)=\"\",0,ROUND(AJ461-0.04999,1)-AJ461+AM461)","v":0},{"$f":"IF(VLOOKUP(AF461,Group,5,FALSE)=\"\",\"\",VLOOKUP(AF461,Group,5,FALSE))","v":""},null,"X"]
["RU","Rubi - All Other",null,"RU61975",null,"61975","Diamond Polishing Pad",null,null,"120 Grit - Smooth",null,null,null,null,"Rubi",null,"Stock","new",{"$f":"IF(Suggested=\"Yes\",'Price List'!AA462,'Price List'!AG462)","v":27.35},"EA",{"$f":"+Instructions!$B$3","v":"N"},null,{"$f":"+Instructions!$D$22","v":0},27.35,null,"new",27.35,0,27.35,0,null,{"$f":"+A462","v":"RU"},27.35,null,null,{"$f":"ROUND(AC462/(1-VLOOKUP(AF462,Group,2,FALSE)),2)","v":27.35},{"$f":"IF(VLOOKUP(AF462,Group,3,FALSE)=\"YES\",VLOOKUP(ROUND(ROUND(AJ462,1)-AJ462,2),Round,2,FALSE)+VLOOKUP(AF462,Group,4,FALSE),0)","v":0},{"$f":"IF(VLOOKUP(AF462,Group,5,FALSE)=\"\",0,ROUND(AJ462-0.04999,1)-AJ462+AM462)","v":0},{"$f":"IF(VLOOKUP(AF462,Group,5,FALSE)=\"\",\"\",VLOOKUP(AF462,Group,5,FALSE))","v":""},null,"X"]
["RU","Rubi - All Other",null,"RU61976",null,"61976","Diamond Polishing Pad",null,null,"200 Grit - Fine",null,null,null,null,"Rubi",null,"Stock","new",{"$f":"IF(Suggested=\"Yes\",'Price List'!AA463,'Price List'!AG463)","v":27.35},"EA",{"$f":"+Instructions!$B$3","v":"N"},null,{"$f":"+Instructions!$D$22","v":0},27.35,null,"new",27.35,0,27.35,0,null,{"$f":"+A463","v":"RU"},27.35,null,null,{"$f":"ROUND(AC463/(1-VLOOKUP(AF463,Group,2,FALSE)),2)","v":27.35},{"$f":"IF(VLOOKUP(AF463,Group,3,FALSE)=\"YES\",VLOOKUP(ROUND(ROUND(AJ463,1)-AJ463,2),Round,2,FALSE)+VLOOKUP(AF463,Group,4,FALSE),0)","v":0},{"$f":"IF(VLOOKUP(AF463,Group,5,FALSE)=\"\",0,ROUND(AJ463-0.04999,1)-AJ463+AM463)","v":0},{"$f":"IF(VLOOKUP(AF463,Group,5,FALSE)=\"\",\"\",VLOOKUP(AF463,Group,5,FALSE))","v":""},null,"X"]
["RU","Rubi - All Other",null,"RU61977",null,"61977","Diamond Polishing Pad",null,null,"400 Grit - Extra Fine",null,null,null,null,"Rubi",null,null,"new",{"$f":"IF(Suggested=\"Yes\",'Price List'!AA464,'Price List'!AG464)","v":27.35},"EA",{"$f":"+Instructions!$B$3","v":"N"},null,{"$f":"+Instructions!$D$22","v":0},27.35,null,"new",27.35,0,27.35,0,null,{"$f":"+A464","v":"RU"},27.35,null,null,{"$f":"ROUND(AC464/(1-VLOOKUP(AF464,Group,2,FALSE)),2)","v":27.35},{"$f":"IF(VLOOKUP(AF464,Group,3,FALSE)=\"YES\",VLOOKUP(ROUND(ROUND(AJ464,1)-AJ464,2),Round,2,FALSE)+VLOOKUP(AF464,Group,4,FALSE),0)","v":0},{"$f":"IF(VLOOKUP(AF464,Group,5,FALSE)=\"\",0,ROUND(AJ464-0.04999,1)-AJ464+AM464)","v":0},{"$f":"IF(VLOOKUP(AF464,Group,5,FALSE)=\"\",\"\",VLOOKUP(AF464,Group,5,FALSE))","v":""},null,"X"]
[null,null,null,null,null,null,null,null,null,null,null,null,null,null,null,null,null,null,null,null,null,null,null,null,null,null,null,null,null,null,null,null,null,null,null,null,null,null,null,null,"X"]
[null,null,"Discontinued - Large Gauged Tiles/Panels Tools",null,null,null,null,null,null,null,null,null,null,null,null,null,null,null,null,null,null,null,null,null,null,null,null,null,null,null,null,null,null,null,null,null,null,null,null,null,"X"]
[null,null,null,null,null,null,null,null,null,null,null,null,null,null,null,null,null,null,null,null,null,null,null,null,null,null,null,null,null,null,null,null,null,null,null,null,null,null,null,null,"X"]
[null,null,null,"Handling",null,null,null,null,null,null,null,null,null,null,null,null,null,null,null,null,null,null,null,null,null,null,null,null,null,null,null,null,null,null,null,null,null,null,null,null,"X"]
[null,null,null,null,null,null,null,null,null,null,null,null,null,null,null,null,null,null,null,null,null,null,null,null,null,null,null,null,null,null,null,null,null,null,null,null,null,null,null,null,"X"]
["ET1","ETM - HP",null,"ETETMGRIP3GEN",null,"ETM-GRIP3: 2' x 10' Adjustable Frame w/ 12 Suction Cups",null,null,null,null,null,null,null,null,"ETM",null,null,"a",{"$f":"IF(Suggested=\"Yes\",'Price List'!AA470,'Price List'!AG470)","v":2605.75},"EA",{"$f":"+Instructions!$B$3","v":"N"},null,{"$f":"+Instructions!$D$22","v":0},{"$f":"ROUND($AA470*(1-W470)+0.004999,2)","v":2605.75},null,"",2605.75,{"$f":"+W470","v":0},{"$f":"+X470","v":2605.75},{"$f":"(AG470-AC470)/AG470","v":0},null,{"$f":"+A470","v":"ET1"},{"$f":"SUM(AJ470:AL470)+AE470","v":2605.75},null,null,{"$f":"ROUND(AC470/(1-VLOOKUP(AF470,Group,2,FALSE)),2)","v":2605.75},{"$f":"IF(VLOOKUP(AF470,Group,3,FALSE)=\"YES\",VLOOKUP(ROUND(ROUND(AJ470,1)-AJ470,2),Round,2,FALSE)+VLOOKUP(AF470,Group,4,FALSE),0)","v":0},{"$f":"IF(VLOOKUP(AF470,Group,5,FALSE)=\"\",0,ROUND(AJ470-0.04999,1)-AJ470+AM470)","v":0},{"$f":"IF(VLOOKUP(AF470,Group,5,FALSE)=\"\",\"\",VLOOKUP(AF470,Group,5,FALSE))","v":""},null,"X"]
[null,null,null,null,null,null,null,null,null,null,null,null,null,null,null,null,null,"Special Sale Price",1600,"EA"]
[null,null,null,null,null,null,null,null,null,null,null,null,null,null,null,null,null,null,null,null,null,null,null,null,null,null,null,null,null,null,null,null,null,null,null,null,null,null,null,null,"X"]
[null,null,null,"Transport",null,null,null,null,null,null,null,null,null,null,null,null,null,null,null,null,null,null,null,null,null,null,null,null,null,null,null,null,null,null,null,null,null,null,null,null,"X"]
[]
["ET1","ETM - HP",null,"ETETRANS",null,"ETM-TRANSPORTER: - holds 8 6mm pieces or 16 3mm pieces",null,null,null,null,null,null,null,null,"ETM",null,null,"a",{"$f":"IF(Suggested=\"Yes\",'Price List'!AA475,'Price List'!AG475)","v":2555.75},"EA",{"$f":"+Instructions!$B$3","v":"N"},null,{"$f":"+Instructions!$D$22","v":0},{"$f":"ROUND($AA475*(1-W475)+0.004999,2)","v":2555.75},null,"YES",2555.75,{"$f":"+W475","v":0},{"$f":"+X475","v":2555.75},{"$f":"(AG475-AC475)/AG475","v":0},null,{"$f":"+A475","v":"ET1"},{"$f":"SUM(AJ475:AL475)+AE475","v":2555.75},null,null,{"$f":"ROUND(AC475/(1-VLOOKUP(AF475,Group,2,FALSE)),2)","v":2555.75},{"$f":"IF(VLOOKUP(AF475,Group,3,FALSE)=\"YES\",VLOOKUP(ROUND(ROUND(AJ475,1)-AJ475,2),Round,2,FALSE)+VLOOKUP(AF475,Group,4,FALSE),0)","v":0},{"$f":"IF(VLOOKUP(AF475,Group,5,FALSE)=\"\",0,ROUND(AJ475-0.04999,1)-AJ475+AM475)","v":0},{"$f":"IF(VLOOKUP(AF475,Group,5,FALSE)=\"\",\"\",VLOOKUP(AF475,Group,5,FALSE))","v":""},null,"X"]
[null,null,null,null,null,null,null,null,null,null,null,null,null,null,null,null,null,"Special Sale Price",1200,"EA"]
[]
[null,null,null,"Cutting Table",null,null,null,null,null,null,null,null,null,null,null,null,null,null,null,null,null,null,null,null,null,null,null,null,null,null,null,null,null,null,null,null,null,null,null,null,"X"]
[null,null,null,null,null,null,null,null,null,null,null,null,null,null,null,null,null,null,null,null,null,null,null,null,null,null,null,null,null,null,null,null,null,null,null,null,null,null,null,null,"X"]
["ET1","ETM - HP",null,"ETETABLE3",null,"ETM-TABLE3: 2 Connectable 39\" x 72\" Tables with Adjustable X-Bars",null,null,null,null,null,null,null,null,"ETM",null,null,"a",{"$f":"IF(Suggested=\"Yes\",'Price List'!AA480,'Price List'!AG480)","v":3386.8},"EA",{"$f":"+Instructions!$B$3","v":"N"},null,{"$f":"+Instructions!$D$22","v":0},{"$f":"ROUND($AA480*(1-W480)+0.004999,2)","v":3386.8},null,"",3386.8,{"$f":"+W480","v":0},{"$f":"+X480","v":3386.8},{"$f":"(AG480-AC480)/AG480","v":0},null,{"$f":"+A480","v":"ET1"},{"$f":"SUM(AJ480:AL480)+AE480","v":3386.8},null,null,{"$f":"ROUND(AC480/(1-VLOOKUP(AF480,Group,2,FALSE)),2)","v":3386.8},{"$f":"IF(VLOOKUP(AF480,Group,3,FALSE)=\"YES\",VLOOKUP(ROUND(ROUND(AJ480,1)-AJ480,2),Round,2,FALSE)+VLOOKUP(AF480,Group,4,FALSE),0)","v":0},{"$f":"IF(VLOOKUP(AF480,Group,5,FALSE)=\"\",0,ROUND(AJ480-0.04999,1)-AJ480+AM480)","v":0},{"$f":"IF(VLOOKUP(AF480,Group,5,FALSE)=\"\",\"\",VLOOKUP(AF480,Group,5,FALSE))","v":""},null,"X"]
[null,null,null,null,null,null,null,null,null,null,null,null,null,null,null,null,null,"Special Sale Price",2000,"EA"]
[]
[null,null,null,"Rail Cutters",null,null,null,null,null,null,null,null,null,null,null,null,null,null,null,null,null,null,null,null,null,null,null,null,null,null,null,null,null,null,null,null,null,null,null,null,"X"]
[]
["ET1","ETM - HP",null,"ETETMRAIL3GEN",null,"ETM-RAIL CUTTER: 2-6' Connectable Rails with Cutter Head,",null,null,null,null,null,null,null,null,"ETM",null,null,null,{"$f":"IF(Suggested=\"Yes\",'Price List'!AA485,'Price List'!AG485)","v":2149.6},"EA",{"$f":"+Instructions!$B$3","v":"N"},null,{"$f":"+Instructions!$D$22","v":0},{"$f":"ROUND($AA485*(1-W485)+0.004999,2)","v":2149.6},null,"YES",2149.6,{"$f":"+W485","v":0},{"$f":"+X485","v":2149.6},{"$f":"(AG485-AC485)/AG485","v":0},null,{"$f":"+A485","v":"ET1"},{"$f":"SUM(AJ485:AL485)+AE485","v":2149.6},null,null,{"$f":"ROUND(AC485/(1-VLOOKUP(AF485,Group,2,FALSE)),2)","v":2149.6},{"$f":"IF(VLOOKUP(AF485,Group,3,FALSE)=\"YES\",VLOOKUP(ROUND(ROUND(AJ485,1)-AJ485,2),Round,2,FALSE)+VLOOKUP(AF485,Group,4,FALSE),0)","v":0},{"$f":"IF(VLOOKUP(AF485,Group,5,FALSE)=\"\",0,ROUND(AJ485-0.04999,1)-AJ485+AM485)","v":0},{"$f":"IF(VLOOKUP(AF485,Group,5,FALSE)=\"\",\"\",VLOOKUP(AF485,Group,5,FALSE))","v":""},null,"X"]
[null,null,null,null,null,null,"Pressure Pliers, 3 Suction Cups and 2 Specialized Measuring tapes",null,null,null,null,null,null,null,null,null,null,"Special Sale Price",1100,"EA",null,null,null,null,null,null,null,null,null,null,null,null,null,null,null,null,null,null,null,null,"X"]
[]
["RU1","Rubi - Saws/Cutters",null,"RUTC125KIT",null,"51903","TC125 Circular Saw Kit",null,null,null,null,null,null,null,"Rubi",null,null,"a",{"$f":"IF(Suggested=\"Yes\",'Price List'!AA488,'Price List'!AG488)","v":629},"EA",{"$f":"+Instructions!$B$3","v":"N"},null,{"$f":"+Instructions!$D$22","v":0},{"$f":"ROUND($AA488*(1-W488)+0.004999,2)","v":629},null,"",629,{"$f":"+W488","v":0},{"$f":"+X488","v":629},{"$f":"(AG488-AC488)/AG488","v":0},null,{"$f":"+A488","v":"RU1"},{"$f":"SUM(AJ488:AL488)+AE488","v":629},null,null,{"$f":"ROUND(AC488/(1-VLOOKUP(AF488,Group,2,FALSE)),2)","v":629},{"$f":"IF(VLOOKUP(AF488,Group,3,FALSE)=\"YES\",VLOOKUP(ROUND(ROUND(AJ488,1)-AJ488,2),Round,2,FALSE)+VLOOKUP(AF488,Group,4,FALSE),0)","v":0},{"$f":"IF(VLOOKUP(AF488,Group,5,FALSE)=\"\",0,ROUND(AJ488-0.04999,1)-AJ488+AM488)","v":0},{"$f":"IF(VLOOKUP(AF488,Group,5,FALSE)=\"\",\"\",VLOOKUP(AF488,Group,5,FALSE))","v":""},null,"X"]
[null,null,null,null,"- Kit includes TC125 circular saw, 3 rails, 2 suction cups to place rails to tile panel, case and bag",null,null,null,null,null,null,null,null,null,null,null,null,"Special Sale Price",500,"EA"]
[null,null,null,null,"- Rails allow for straight cuts up to 126\" - Great for Gauged Panel Tiles"]
[null,null,null,null,"- Compatible with both 4-1/2\" and 5\" saw blades, wet or dry cut"]
[null,null,null,null,"- Able to do plunge and miter cuts"]
[null,null,null,null,"- Same rails as Slim Cutter - need scorer and breaker"]
[]
[null,null,null,"Express Cutters",null,null,null,null,null,null,null,null,null,null,null,null,null,null,null,null,null,null,null,null,null,null,null,null,null,null,null,null,null,null,null,null,null,null,null,null,"X"]
["ET1","ETM - HP",null,"ETEEXPRESS",null,"ETM-EXPRESS CUTTER",null,null,null,null,null,null,null,null,"ETM",null,null,"a",{"$f":"IF(Suggested=\"Yes\",'Price List'!AA496,'Price List'!AG496)","v":648.1},"EA",{"$f":"+Instructions!$B$3","v":"N"},null,{"$f":"+Instructions!$D$22","v":0},{"$f":"ROUND($AA496*(1-W496)+0.004999,2)","v":648.1},null,"",648.1,{"$f":"+W496","v":0},{"$f":"+X496","v":648.1},{"$f":"(AG496-AC496)/AG496","v":0},null,{"$f":"+A496","v":"ET1"},{"$f":"SUM(AJ496:AL496)+AE496","v":648.1},null,null,{"$f":"ROUND(AC496/(1-VLOOKUP(AF496,Group,2,FALSE)),2)","v":648.1},{"$f":"IF(VLOOKUP(AF496,Group,3,FALSE)=\"YES\",VLOOKUP(ROUND(ROUND(AJ496,1)-AJ496,2),Round,2,FALSE)+VLOOKUP(AF496,Group,4,FALSE),0)","v":0},{"$f":"IF(VLOOKUP(AF496,Group,5,FALSE)=\"\",0,ROUND(AJ496-0.04999,1)-AJ496+AM496)","v":0},{"$f":"IF(VLOOKUP(AF496,Group,5,FALSE)=\"\",\"\",VLOOKUP(AF496,Group,5,FALSE))","v":""},null,"X"]
[null,null,null,null,null,null,null,null,null,null,null,null,null,null,null,null,null,"Special Sale Price",400,"EA"]
[null,null,null,null,null,null,null,null,null,null,null,null,null,null,null,null,null,null,null,null,null,null,null,null,null,null,null,null,null,null,null,null,null,null,null,null,null,null,null,null,"X"]
[null,null,null,"Beveling, Mitering & Bullnosing",null,null,null,null,null,null,null,null,null,null,null,null,null,null,null,null,null,null,null,null,null,null,null,null,null,null,null,null,null,null,null,null,null,null,null,null,"X"]
["ET1","ETM - HP",null,"ETE36B3",null,"KERA-EDGE KIT: includes 36A KERA-EDGE, Bosch 1380 Slim Grinder,",null,null,null,null,null,null,null,null,"ETM",null,null,"a",{"$f":"IF(Suggested=\"Yes\",'Price List'!AA500,'Price List'!AG500)","v":1053.9000000000001},"EA",{"$f":"+Instructions!$B$3","v":"N"},null,{"$f":"+Instructions!$D$22","v":0},{"$f":"ROUND($AA500*(1-W500)+0.004999,2)","v":1053.9000000000001},null,"",1053.9000000000001,{"$f":"+W500","v":0},{"$f":"+X500","v":1053.9000000000001},{"$f":"(AG500-AC500)/AG500","v":0},null,{"$f":"+A500","v":"ET1"},{"$f":"SUM(AJ500:AL500)+AE500","v":1053.9000000000001},null,null,{"$f":"ROUND(AC500/(1-VLOOKUP(AF500,Group,2,FALSE)),2)","v":1053.9000000000001},{"$f":"IF(VLOOKUP(AF500,Group,3,FALSE)=\"YES\",VLOOKUP(ROUND(ROUND(AJ500,1)-AJ500,2),Round,2,FALSE)+VLOOKUP(AF500,Group,4,FALSE),0)","v":0},{"$f":"IF(VLOOKUP(AF500,Group,5,FALSE)=\"\",0,ROUND(AJ500-0.04999,1)-AJ500+AM500)","v":0},{"$f":"IF(VLOOKUP(AF500,Group,5,FALSE)=\"\",\"\",VLOOKUP(AF500,Group,5,FALSE))","v":""},null,"X"]
[null,null,null,null,null,null,"Water Kit, Diamond Cup, Backer Pad, and 4 Diamond Pads",null,null,null,null,null,null,null,null,null,null,"Special Sale Price",500,"EA",null,null,null,null,null,null,null,null,null,null,null,null,null,null,null,null,null,null,null,null,"X"]
[null,null,null,null,null,null,null,null,null,null,null,null,null,null,null,null,null,null,null,null,null,null,null,null,null,null,null,null,null,null,null,null,null,null,null,null,null,null,null,null,"X"]
[null,null,null,"Corners",null,null,null,null,null,null,null,null,null,null,null,null,null,null,null,null,null,null,null,null,null,null,null,null,null,null,null,null,null,null,null,null,null,null,null,null,"X"]
["ET","ETM - All Other",null,"ETTC6MM",null,"Corner Protectors - fits up to 6mm tiles",null,null,null,null,null,null,null,null,"ETM",null,null,"a",{"$f":"IF(Suggested=\"Yes\",'Price List'!AA504,'Price List'!AG504)","v":6.85},"EA",{"$f":"+Instructions!$B$3","v":"N"},null,{"$f":"+Instructions!$D$22","v":0},{"$f":"ROUND($AA504*(1-W504)+0.004999,2)","v":6.85},null,"",6.85,{"$f":"+W504","v":0},{"$f":"+X504","v":6.85},{"$f":"(AG504-AC504)/AG504","v":0},null,{"$f":"+A504","v":"ET"},{"$f":"SUM(AJ504:AL504)+AE504","v":6.85},null,null,{"$f":"ROUND(AC504/(1-VLOOKUP(AF504,Group,2,FALSE)),2)","v":6.85},{"$f":"IF(VLOOKUP(AF504,Group,3,FALSE)=\"YES\",VLOOKUP(ROUND(ROUND(AJ504,1)-AJ504,2),Round,2,FALSE)+VLOOKUP(AF504,Group,4,FALSE),0)","v":0},{"$f":"IF(VLOOKUP(AF504,Group,5,FALSE)=\"\",0,ROUND(AJ504-0.04999,1)-AJ504+AM504)","v":0},{"$f":"IF(VLOOKUP(AF504,Group,5,FALSE)=\"\",\"\",VLOOKUP(AF504,Group,5,FALSE))","v":""},null,"X"]
[null,null,null,null,null,null,null,null,null,null,null,null,null,null,null,null,null,"Special Sale Price",4,"EA"]
[null,null,null,null,null,null,null,null,null,null,null,null,null,null,null,null,null,null,null,null,null,null,null,null,null,null,null,null,null,null,null,null,null,null,null,null,null,null,null,null,"X"]
[null,null,null,"Notes:","a) Discontinued items are available until remaining stock is sold - check Conestoga Tile for remaining stock",null,null,null,null,null,null,null,null,null,null,null,null,null,null,null,null,null,null,null,null,null,null,null,null,null,null,null,null,null,null,null,null,null,null,null,"X"]
[null,null,null,null,null,null,null,null,null,null,null,null,null,null,null,null,null,null,null,null,null,null,null,null,null,null,null,null,null,null,null,null,null,null,null,null,null,null,null,null,"X"]
[]
[]
[]
[]
[]
[null,null,"This price list is available electronically on an Excel spreadsheet at www.conestogatile.com/pricelists.",null,null,null,null,null,null,null,null,null,null,null,null,null,null,null,null,null,null,null,null,null,null,null,null,null,null,null,null,null,null,null,null,null,null,null,null,null,"X"]
[null,null,null,null,null,null,null,null,null,null,null,null,null,null,null,null,null,null,null,null,null,null,null,null,null,null,null,null,null,null,null,null,null,null,null,null,null,null,null,null,"X"]
[null,null,null,null,null,null,null,null,null,null,null,null,null,null,null,null,null,null,null,null,null,null,null,null,null,null,null,null,null,null,null,null,null,null,null,null,null,null,null,null,"X"]
[null,null,null,null,null,null,null,null,null,null,null,null,null,null,null,null,null,null,null,null,null,null,null,null,null,null,null,null,null,null,null,null,null,null,null,null,null,null,null,null,"X"]
[null,null,null,null,null,null,null,null,null,null,null,null,null,null,null,null,null,null,null,null,null,null,null,null,null,null,null,null,null,null,null,null,null,null,null,null,null,null,null,null,"X"]
[null,"X","X","X","X","X","X","X","X","X","X","X","X","X","X","X","X","X","X","X","X","X","X","X","X","X","X","X","X","X","X","X","X","X","X","X","X","X","X","X","X"]
[]
[null,null,null,"$.05 Round Matrix"]
[null,null,null,-0.04,0.01]
[null,null,null,-0.03,0.02]
[null,null,null,-0.02,0.03]
[null,null,null,-0.01,-0.01]
[null,null,null,0,0]
[null,null,null,0.01,1.0000000000005116E-2]
[null,null,null,0.02,2.0000000000003126E-2]
[null,null,null,0.03,3.0000000000001137E-2]
[null,null,null,0.04,-0.01]
[null,null,null,0.05,0]

{"sheet":"Websites","index":3,"n_rows":16,"n_cols":2,"rows_kept":16,"cut":false,"hidden":false,"merged":[]}
["Easy Access Website links"]
[]
["ConestogaTile's Website","www.conestogatile.com"]
[]
["Manufacturer's Home Page"]
["Barwalt","www.barwalt.com"]
["European Tile Masters (ETMM)","www.europeantilemasters"]
["IQ Saws","https://iqpowertools.com/"]
["Mark E. Ind.","www.markeindustries.com"]
["MK Diamond","www.mkdiamond.com"]
["Progress Profiles","www.progressprofiles.com"]
["Rubi Tools","www.rubi.com"]
["Sigma (RTC)","www.rtcproducts.com"]
["Troxell Tools","https://troxellusa.com/"]
[]
["Product","Direct Website Link"]

{"sheet":"Updates","index":4,"n_rows":16,"n_cols":3,"rows_kept":16,"cut":false,"hidden":false,"merged":[]}
[null,"Price List"]
["Mfg","Date","Description"]
[]
["New Products"]
[]
[]
[]
[]
[]
[]
[]
[]
[]
[]
[]
["Discontinued Products"]